Body,Body name,Service label,Service divison label,Expenditure category,Detailed expenditure type,Detailed expenditure code,Date paid,Transaction number,Net amount,Capital or revenue,Supplier name
http://statistics.data.gov.uk/doc/local-authority/00DA,Leeds City Council,Central & Corporate Functions,Commercial Services Trading Services,Supplies and Services,Operational Materials,205,07/10/2011,1110-00001,524.54,R,A & A Electrical Distributors Ltd
http://statistics.data.gov.uk/doc/local-authority/00DA,Leeds City Council,Central & Corporate Functions,Commercial Services Trading Services,Supplies and Services,Operational Materials,205,14/10/2011,1110-00002,1975.85,R,A & A Electrical Distributors Ltd
http://statistics.data.gov.uk/doc/local-authority/00DA,Leeds City Council,Central & Corporate Functions,Commercial Services Trading Services,Supplies and Services,Operational Materials,205,21/10/2011,1110-00003,533.65,R,A & A Electrical Distributors Ltd
http://statistics.data.gov.uk/doc/local-authority/00DA,Leeds City Council,Central & Corporate Functions,Commercial Services Trading Services,Supplies and Services,Operational Materials,205,21/10/2011,1110-00004,578.30,R,A & A Electrical Distributors Ltd
http://statistics.data.gov.uk/doc/local-authority/00DA,Leeds City Council,Central & Corporate Functions,Commercial Services Trading Services,Supplies and Services,Other Hired And Contracted Services,265,06/10/2011,1110-00005,-2508.00,R,A Bush (Engineering Services) Ltd
http://statistics.data.gov.uk/doc/local-authority/00DA,Leeds City Council,Central & Corporate Functions,Commercial Services Trading Services,Supplies and Services,Other Hired And Contracted Services,265,06/10/2011,1110-00006,1450.00,R,A Bush (Engineering Services) Ltd
http://statistics.data.gov.uk/doc/local-authority/00DA,Leeds City Council,Central & Corporate Functions,Commercial Services Trading Services,Supplies and Services,Other Hired And Contracted Services,265,10/10/2011,1110-00007,600.00,R,A Bush (Engineering Services) Ltd
http://statistics.data.gov.uk/doc/local-authority/00DA,Leeds City Council,Central & Corporate Functions,Commercial Services Trading Services,Supplies and Services,Other Hired And Contracted Services,265,26/10/2011,1110-00008,1840.00,R,A Bush (Engineering Services) Ltd
http://statistics.data.gov.uk/doc/local-authority/00DA,Leeds City Council,City Development,Highways,Supplies and Services,Other Hired And Contracted Services,265,05/10/2011,1110-00009,575.00,R,A D D Loop Cutting Services Ltd
http://statistics.data.gov.uk/doc/local-authority/00DA,Leeds City Council,Adult Social Care,Roseville Enterprises,Supplies and Services,Operational Furniture And Equipment,203,07/10/2011,1110-00010,2028.00,R,A D G Engineering Ltd
http://statistics.data.gov.uk/doc/local-authority/00DA,Leeds City Council,Adult Social Care,Roseville Enterprises,Supplies and Services,Operational Furniture And Equipment,203,14/10/2011,1110-00011,2140.00,R,A D G Engineering Ltd
http://statistics.data.gov.uk/doc/local-authority/00DA,Leeds City Council,Adult Social Care,Roseville Enterprises,Supplies and Services,Operational Furniture And Equipment,203,21/10/2011,1110-00012,1430.00,R,A D G Engineering Ltd
http://statistics.data.gov.uk/doc/local-authority/00DA,Leeds City Council,Adult Social Care,Roseville Enterprises,Supplies and Services,Operational Furniture And Equipment,203,21/10/2011,1110-00013,2800.00,R,A D G Engineering Ltd
http://statistics.data.gov.uk/doc/local-authority/00DA,Leeds City Council,City Development,Highways,Capital,Construction,3,17/10/2011,1110-00014,205652.33,C,A E Yates Ltd
http://statistics.data.gov.uk/doc/local-authority/00DA,Leeds City Council,Childrens Services,Safeguarding Targeted & Specialist,Third Party Payments,General External Residential Placements,507,13/10/2011,1110-00015,13000.00,R,A Lowrie Care Service Limited
http://statistics.data.gov.uk/doc/local-authority/00DA,Leeds City Council,Childrens Services,Safeguarding Targeted & Specialist,Third Party Payments,General External Residential Placements,507,13/10/2011,1110-00016,14000.00,R,A Lowrie Care Service Limited
http://statistics.data.gov.uk/doc/local-authority/00DA,Leeds City Council,Central & Corporate Functions,Commercial Services Trading Services,Supplies and Services,Operational Materials,205,21/10/2011,1110-00017,4652.49,R,A O Smith Water Heaters
http://statistics.data.gov.uk/doc/local-authority/00DA,Leeds City Council,Central & Corporate Functions,Commercial Services Trading Services,Supplies and Services,Operational Materials,205,31/10/2011,1110-00018,561.02,R,A O Smith Water Products Company Uk
http://statistics.data.gov.uk/doc/local-authority/00DA,Leeds City Council,Environment & Neighbourhoods,Statutory Housing,Transport,Public Transport Expenses,310,19/10/2011,1110-00019,4020.00,R,A Zoom Taxis
http://statistics.data.gov.uk/doc/local-authority/00DA,Leeds City Council,Childrens Services,Safeguarding Targeted & Specialist,Supplies and Services,Operational Furniture And Equipment,203,11/10/2011,1110-00020,790.00,R,A2u
http://statistics.data.gov.uk/doc/local-authority/00DA,Leeds City Council,Childrens Services,Learning Skills & Universal,Supplies and Services,Other Hired And Contracted Services,265,18/10/2011,1110-00021,6460.00,R,Abbey Grange C Of E Academy Trust
http://statistics.data.gov.uk/doc/local-authority/00DA,Leeds City Council,Other Education Services,Active Accounts,Transfer Payments,School Budget Share,611,18/10/2011,1110-00022,14697.00,R,Abbey Grange C Of E Academy Trust
http://statistics.data.gov.uk/doc/local-authority/00DA,Leeds City Council,Other Education Services,Active Accounts,Transfer Payments,School Budget Share,611,20/10/2011,1110-00023,8177.00,R,Abbey Grange C Of E Academy Trust
http://statistics.data.gov.uk/doc/local-authority/00DA,Leeds City Council as Accountable Body,Social Services Pooled Budgets,Leeds Community Equip Store Pooled Budgt,Supplies and Services,Other Equipment,203,14/10/2011,1110-00024,1496.25,R,Abbey Healthcare
http://statistics.data.gov.uk/doc/local-authority/00DA,Leeds City Council as Accountable Body,Social Services Pooled Budgets,Leeds Community Equip Store Pooled Budgt,Supplies and Services,Other Equipment,203,28/10/2011,1110-00025,2175.00,R,Abbey Healthcare
http://statistics.data.gov.uk/doc/local-authority/00DA,Leeds City Council,Adult Social Care,Services For Older People - 65 And Over,Third Party Payments,Residential Care Emi,571,26/10/2011,1110-00026,1170.76,R,Abbey Lea Residential Care Home
http://statistics.data.gov.uk/doc/local-authority/00DA,Leeds City Council,Adult Social Care,Services For Adults Under 65 Mental/Dis,Third Party Payments,Residential,580,26/10/2011,1110-00027,1163.80,R,Abbeydale Care Home
http://statistics.data.gov.uk/doc/local-authority/00DA,Leeds City Council,Childrens Services,Learning Skills & Universal,Third Party Payments,Services Rendered By Other Organisations,511,07/10/2011,1110-00028,599.00,R,Abc Nursery At Lufc
http://statistics.data.gov.uk/doc/local-authority/00DA,Leeds City Council,Environment & Neighbourhoods,Environmental Health,Capital,Construction,3,03/10/2011,1110-00029,1355.00,C,Able Bathing & Building Contractors Ltd
http://statistics.data.gov.uk/doc/local-authority/00DA,Leeds City Council,Environment & Neighbourhoods,Environmental Health,Capital,Construction,3,03/10/2011,1110-00030,4150.00,C,Able Bathing & Building Contractors Ltd
http://statistics.data.gov.uk/doc/local-authority/00DA,Leeds City Council,Environment & Neighbourhoods,Environmental Health,Capital,Construction,3,10/10/2011,1110-00031,4150.00,C,Able Bathing & Building Contractors Ltd
http://statistics.data.gov.uk/doc/local-authority/00DA,Leeds City Council,Environment & Neighbourhoods,Environmental Health,Capital,Construction,3,10/10/2011,1110-00032,4150.00,C,Able Bathing & Building Contractors Ltd
http://statistics.data.gov.uk/doc/local-authority/00DA,Leeds City Council,Environment & Neighbourhoods,Environmental Health,Capital,Construction,3,17/10/2011,1110-00033,4325.00,C,Able Bathing & Building Contractors Ltd
http://statistics.data.gov.uk/doc/local-authority/00DA,Leeds City Council,Environment & Neighbourhoods,South South East,Capital,Construction,3,17/10/2011,1110-00034,4015.00,C,Able Bathing & Building Contractors Ltd
http://statistics.data.gov.uk/doc/local-authority/00DA,Leeds City Council,Environment & Neighbourhoods,Environmental Health,Capital,Construction,3,19/10/2011,1110-00035,2890.00,C,Able Bathing & Building Contractors Ltd
http://statistics.data.gov.uk/doc/local-authority/00DA,Leeds City Council,Environment & Neighbourhoods,Environmental Health,Capital,Construction,3,19/10/2011,1110-00036,4150.00,C,Able Bathing & Building Contractors Ltd
http://statistics.data.gov.uk/doc/local-authority/00DA,Leeds City Council,Environment & Neighbourhoods,Environmental Health,Capital,Construction,3,19/10/2011,1110-00037,4150.00,C,Able Bathing & Building Contractors Ltd
http://statistics.data.gov.uk/doc/local-authority/00DA,Leeds City Council,Environment & Neighbourhoods,South South East,Capital,Construction,3,19/10/2011,1110-00038,1501.68,C,Able Bathing & Building Contractors Ltd
http://statistics.data.gov.uk/doc/local-authority/00DA,Leeds City Council,Environment & Neighbourhoods,South South East,Capital,Construction,3,19/10/2011,1110-00039,3450.00,C,Able Bathing & Building Contractors Ltd
http://statistics.data.gov.uk/doc/local-authority/00DA,Leeds City Council,Environment & Neighbourhoods,South South East,Capital,Construction,3,19/10/2011,1110-00040,3865.00,C,Able Bathing & Building Contractors Ltd
http://statistics.data.gov.uk/doc/local-authority/00DA,Leeds City Council,Environment & Neighbourhoods,Environmental Health,Capital,Construction,3,27/10/2011,1110-00041,4310.00,C,Able Bathing & Building Contractors Ltd
http://statistics.data.gov.uk/doc/local-authority/00DA,Leeds City Council,Environment & Neighbourhoods,Environmental Health,Capital,Construction,3,27/10/2011,1110-00042,12466.60,C,Able Bathing & Building Contractors Ltd
http://statistics.data.gov.uk/doc/local-authority/00DA,Leeds City Council,Environment & Neighbourhoods,Environmental Health,Capital,Construction,3,28/10/2011,1110-00043,3205.00,C,Able Bathing & Building Contractors Ltd
http://statistics.data.gov.uk/doc/local-authority/00DA,Leeds City Council,Environment & Neighbourhoods,Environmental Health,Capital,Construction,3,28/10/2011,1110-00044,4150.00,C,Able Bathing & Building Contractors Ltd
http://statistics.data.gov.uk/doc/local-authority/00DA,Leeds City Council,Environment & Neighbourhoods,Environmental Health,Capital,Construction,3,28/10/2011,1110-00045,4150.00,C,Able Bathing & Building Contractors Ltd
http://statistics.data.gov.uk/doc/local-authority/00DA,Leeds City Council,Environment & Neighbourhoods,Environmental Health,Capital,Construction,3,27/10/2011,1110-00046,2268.00,C,Accent Homes Ltd
http://statistics.data.gov.uk/doc/local-authority/00DA,East - North East,East - North East,Housing Services,Premises,General Maintenance,104,21/10/2011,1110-00047,935.00,R,Access Locksmiths (Leeds) Limited
http://statistics.data.gov.uk/doc/local-authority/00DA,Leeds City Council,Central & Corporate Functions,Commercial Services Trading Services,Supplies and Services,Operational Materials,205,28/10/2011,1110-00048,542.40,R,Access Locksmiths (Leeds) Limited
http://statistics.data.gov.uk/doc/local-authority/00DA,Leeds City Council,City Development,Recreation,Supplies and Services,Security Services(Non Infrastructure),262,10/10/2011,1110-00049,808.01,R,Acclaimed Security Services
http://statistics.data.gov.uk/doc/local-authority/00DA,Leeds City Council,City Development,Recreation,Supplies and Services,Security Services(Non Infrastructure),262,10/10/2011,1110-00050,881.04,R,Acclaimed Security Services
http://statistics.data.gov.uk/doc/local-authority/00DA,Leeds City Council,City Development,Recreation,Supplies and Services,Security Services(Non Infrastructure),262,10/10/2011,1110-00051,1254.60,R,Acclaimed Security Services
http://statistics.data.gov.uk/doc/local-authority/00DA,Leeds City Council,City Development,Recreation,Supplies and Services,Security Services(Non Infrastructure),262,10/10/2011,1110-00052,1623.60,R,Acclaimed Security Services
http://statistics.data.gov.uk/doc/local-authority/00DA,Leeds City Council,City Development,Recreation,Supplies and Services,Security Services(Non Infrastructure),262,10/10/2011,1110-00053,2029.50,R,Acclaimed Security Services
http://statistics.data.gov.uk/doc/local-authority/00DA,Leeds City Council,City Development,Recreation,Supplies and Services,Security Services(Non Infrastructure),262,10/10/2011,1110-00054,2201.70,R,Acclaimed Security Services
http://statistics.data.gov.uk/doc/local-authority/00DA,Leeds City Council,City Development,Recreation,Supplies and Services,Security Services(Non Infrastructure),262,13/10/2011,1110-00055,826.56,R,Acclaimed Security Services
http://statistics.data.gov.uk/doc/local-authority/00DA,Leeds City Council,City Development,Recreation,Supplies and Services,Security Services(Non Infrastructure),262,20/10/2011,1110-00056,632.22,R,Acclaimed Security Services
http://statistics.data.gov.uk/doc/local-authority/00DA,Leeds City Council,City Development,Recreation,Supplies and Services,Security Services(Non Infrastructure),262,20/10/2011,1110-00057,1173.21,R,Acclaimed Security Services
http://statistics.data.gov.uk/doc/local-authority/00DA,Leeds City Council,City Development,Recreation,Supplies and Services,Security Services(Non Infrastructure),262,21/10/2011,1110-00058,808.01,R,Acclaimed Security Services
http://statistics.data.gov.uk/doc/local-authority/00DA,Leeds City Council,City Development,Recreation,Supplies and Services,Security Services(Non Infrastructure),262,21/10/2011,1110-00059,1097.88,R,Acclaimed Security Services
http://statistics.data.gov.uk/doc/local-authority/00DA,Leeds City Council,City Development,Recreation,Supplies and Services,Security Services(Non Infrastructure),262,21/10/2011,1110-00060,3286.56,R,Acclaimed Security Services
http://statistics.data.gov.uk/doc/local-authority/00DA,Leeds City Council,City Development,Recreation,Supplies and Services,Security Services(Non Infrastructure),262,24/10/2011,1110-00061,808.01,R,Acclaimed Security Services
http://statistics.data.gov.uk/doc/local-authority/00DA,Leeds City Council,City Development,Recreation,Supplies and Services,Security Services(Non Infrastructure),262,24/10/2011,1110-00062,1173.21,R,Acclaimed Security Services
http://statistics.data.gov.uk/doc/local-authority/00DA,Leeds City Council,City Development,Recreation,Supplies and Services,Security Services(Non Infrastructure),262,24/10/2011,1110-00063,1390.04,R,Acclaimed Security Services
http://statistics.data.gov.uk/doc/local-authority/00DA,Leeds City Council,City Development,Recreation,Supplies and Services,Security Services(Non Infrastructure),262,28/10/2011,1110-00064,841.32,R,Acclaimed Security Services
http://statistics.data.gov.uk/doc/local-authority/00DA,Leeds City Council,City Development,Recreation,Supplies and Services,Security Services(Non Infrastructure),262,28/10/2011,1110-00065,967.77,R,Acclaimed Security Services
http://statistics.data.gov.uk/doc/local-authority/00DA,Leeds City Council,Adult Social Care,Services For Older People Under 65 P/Dis,Supplies and Services,Operational Furniture And Equipment,203,26/10/2011,1110-00066,1213.00,R,Accora
http://statistics.data.gov.uk/doc/local-authority/00DA,Leeds City Council,Other Education Services,Primary Schools,Capital,Construction,3,12/10/2011,1110-00067,2499.00,C,Accurate
http://statistics.data.gov.uk/doc/local-authority/00DA,Leeds City Council,City Development,Recreation,Supplies and Services,Operational Furniture And Equipment,203,05/10/2011,1110-00068,860.00,R,Ace Engineers (Morley) Ltd
http://statistics.data.gov.uk/doc/local-authority/00DA,Leeds City Council,City Development,Recreation,Supplies and Services,Operational Materials,205,07/10/2011,1110-00069,2970.00,R,Ace Engineers (Morley) Ltd
http://statistics.data.gov.uk/doc/local-authority/00DA,Leeds City Council,City Development,Recreation,Supplies and Services,Operational Materials,205,21/10/2011,1110-00070,540.00,R,Ace Engineers (Morley) Ltd
http://statistics.data.gov.uk/doc/local-authority/00DA,Leeds City Council,City Development,Recreation,Supplies and Services,Operational Materials,205,26/10/2011,1110-00071,4402.40,R,Ace Engineers (Morley) Ltd
http://statistics.data.gov.uk/doc/local-authority/00DA,Leeds City Council,Central & Corporate Functions,Commercial Services Trading Services,Supplies and Services,Other Hired And Contracted Services,265,07/10/2011,1110-00072,1300.00,R,Acm
http://statistics.data.gov.uk/doc/local-authority/00DA,Leeds City Council,Central & Corporate Functions,Commercial Services Trading Services,Supplies and Services,Other Hired And Contracted Services,265,07/10/2011,1110-00073,3680.00,R,Acm
http://statistics.data.gov.uk/doc/local-authority/00DA,Leeds City Council,Central & Corporate Functions,Commercial Services Trading Services,Supplies and Services,Other Hired And Contracted Services,265,07/10/2011,1110-00074,3700.00,R,Acm
http://statistics.data.gov.uk/doc/local-authority/00DA,Leeds City Council,Central & Corporate Functions,Commercial Services Trading Services,Supplies and Services,Other Hired And Contracted Services,265,07/10/2011,1110-00075,3800.00,R,Acm
http://statistics.data.gov.uk/doc/local-authority/00DA,Leeds City Council,Central & Corporate Functions,Commercial Services Trading Services,Supplies and Services,Other Hired And Contracted Services,265,10/10/2011,1110-00076,2050.00,R,Acm
http://statistics.data.gov.uk/doc/local-authority/00DA,Leeds City Council,Central & Corporate Functions,Commercial Services Trading Services,Supplies and Services,Other Hired And Contracted Services,265,19/10/2011,1110-00077,860.00,R,Acm
http://statistics.data.gov.uk/doc/local-authority/00DA,Leeds City Council,City Development,Libraries  Arts & Heritage,Supplies and Services,Other Hired And Contracted Services,265,07/10/2011,1110-00078,1995.00,R,Acorn Event Solutions Ltd
http://statistics.data.gov.uk/doc/local-authority/00DA,Leeds City Council,Childrens Services,Learning Skills & Universal,Third Party Payments,Services Rendered By Other Organisations,511,07/10/2011,1110-00079,632.00,R,Acre Wood Childrens Nursery
http://statistics.data.gov.uk/doc/local-authority/00DA,Leeds City Council,Insurance,Insurance,Supplies and Services,Insurance Claims,248,20/10/2011,1110-00080,2688.43,R,Acromas Insurance Company Ltd
http://statistics.data.gov.uk/doc/local-authority/00DA,Leeds City Council,Childrens Services,Safeguarding Targeted & Specialist,Third Party Payments,Independent Fostering Agencies,509,04/10/2011,1110-00081,1694.00,R,Action For Children
http://statistics.data.gov.uk/doc/local-authority/00DA,Leeds City Council,Childrens Services,Safeguarding Targeted & Specialist,Third Party Payments,Independent Fostering Agencies,509,04/10/2011,1110-00082,4500.00,R,Action For Children
http://statistics.data.gov.uk/doc/local-authority/00DA,Leeds City Council,Childrens Services,Safeguarding Targeted & Specialist,Third Party Payments,Independent Fostering Agencies,509,04/10/2011,1110-00083,4620.00,R,Action For Children
http://statistics.data.gov.uk/doc/local-authority/00DA,Leeds City Council,Childrens Services,Safeguarding Targeted & Specialist,Third Party Payments,Independent Fostering Agencies,509,04/10/2011,1110-00084,5198.40,R,Action For Children
http://statistics.data.gov.uk/doc/local-authority/00DA,Leeds City Council,Childrens Services,Safeguarding Targeted & Specialist,Third Party Payments,Adoptions - Allowances,560,04/10/2011,1110-00085,-1683.56,R,Action For Children
http://statistics.data.gov.uk/doc/local-authority/00DA,Leeds City Council,Childrens Services,Safeguarding Targeted & Specialist,Third Party Payments,Adoptions - Allowances,560,04/10/2011,1110-00086,825.00,R,Action For Children
http://statistics.data.gov.uk/doc/local-authority/00DA,Leeds City Council,Childrens Services,Safeguarding Targeted & Specialist,Third Party Payments,Services Rendered By Other Organisations,511,13/10/2011,1110-00087,150005.75,R,Action For Children
http://statistics.data.gov.uk/doc/local-authority/00DA,Leeds City Council,Childrens Services,Safeguarding Targeted & Specialist,Third Party Payments,Adoptions - Allowances,560,13/10/2011,1110-00088,-1683.56,R,Action For Children
http://statistics.data.gov.uk/doc/local-authority/00DA,Leeds City Council,Childrens Services,Safeguarding Targeted & Specialist,Third Party Payments,Services Rendered By Other Organisations,511,14/10/2011,1110-00089,150005.75,R,Action For Children
http://statistics.data.gov.uk/doc/local-authority/00DA,Leeds City Council,Childrens Services,Safeguarding Targeted & Specialist,Third Party Payments,Adoptions - Allowances,560,14/10/2011,1110-00090,644.00,R,Action For Children
http://statistics.data.gov.uk/doc/local-authority/00DA,Leeds City Council,Childrens Services,Safeguarding Targeted & Specialist,Third Party Payments,Adoptions - Allowances,560,18/10/2011,1110-00091,825.00,R,Action For Children
http://statistics.data.gov.uk/doc/local-authority/00DA,Leeds City Council,Childrens Services,Safeguarding Targeted & Specialist,Third Party Payments,Adoptions - Allowances,560,24/10/2011,1110-00092,1683.56,R,Action For Children
http://statistics.data.gov.uk/doc/local-authority/00DA,Leeds City Council,Childrens Services,Safeguarding Targeted & Specialist,Third Party Payments,Adoptions - Allowances,560,25/10/2011,1110-00093,825.00,R,Action For Children
http://statistics.data.gov.uk/doc/local-authority/00DA,Leeds City Council,Childrens Services,Safeguarding Targeted & Specialist,Third Party Payments,Adoptions - Allowances,560,31/10/2011,1110-00094,644.00,R,Action For Children
http://statistics.data.gov.uk/doc/local-authority/00DA,West - North West ,West - North West,Property And Maintenance,Premises,H.R.A. - Special Maintenance,106,21/10/2011,1110-00095,450.00,R,Active Cleaning Solutions Ltd
http://statistics.data.gov.uk/doc/local-authority/00DA,Leeds City Council,Insurance,Insurance,Supplies and Services,Other Hired And Contracted Services,265,14/10/2011,1110-00096,580.00,R,Acumension
http://statistics.data.gov.uk/doc/local-authority/00DA,Leeds City Council,Adult Social Care,Assessment And Care Management,Support Services,Legal Disbursements,411,20/10/2011,1110-00097,675.00,R,Adam Fullwood
http://statistics.data.gov.uk/doc/local-authority/00DA,Leeds City Council,Childrens Services,Learning Skills & Universal,Third Party Payments,Services Rendered By Voluntary Sector,505,07/10/2011,1110-00098,442.00,R,Adel Pre School
http://statistics.data.gov.uk/doc/local-authority/00DA,Leeds City Council,Central & Corporate Functions,Executive Support,Supplies and Services,'Well Being' Large Grants Projects,230,31/10/2011,1110-00099,10000.00,R,Adel War Memorial Association
http://statistics.data.gov.uk/doc/local-authority/00DA,Leeds City Council,City Development,Libraries  Arts & Heritage,Supplies and Services,Operational Furniture And Equipment,203,20/10/2011,1110-00100,525.00,R,Adi Uk Ltd
http://statistics.data.gov.uk/doc/local-authority/00DA,Leeds City Council,City Development,Libraries  Arts & Heritage,Supplies and Services,Operational Furniture And Equipment,203,20/10/2011,1110-00101,4300.00,R,Adi Uk Ltd
http://statistics.data.gov.uk/doc/local-authority/00DA,Leeds City Council,Childrens Services,Safeguarding Targeted & Specialist,Third Party Payments,Adoptions - Allowances,560,04/10/2011,1110-00102,922.50,R,Adoption Uk
http://statistics.data.gov.uk/doc/local-authority/00DA,Leeds City Council,Environment & Neighbourhoods,Safer Leeds Drugs Team,Third Party Payments,Services Rendered By Voluntary Sector,505,28/10/2011,1110-00103,12500.00,R,Ads
http://statistics.data.gov.uk/doc/local-authority/00DA,Leeds City Council,Adult Social Care,Other Adult Services,Third Party Payments,Payments To Voluntary Organisations,561,28/10/2011,1110-00104,18656.25,R,Ads
http://statistics.data.gov.uk/doc/local-authority/00DA,Leeds City Council,Childrens Services,Learning Skills & Universal,Premises,Maintenance Of Buildings,101,17/10/2011,1110-00105,1148.21,R,Adt Fire And Security
http://statistics.data.gov.uk/doc/local-authority/00DA,Leeds City Council,Central & Corporate Functions,Support And Facilities General Fund,Supplies and Services,Operational Furniture And Equipment,203,15/09/2011,1110-00106,778.91,R,Adt Leeds CC
http://statistics.data.gov.uk/doc/local-authority/00DA,Leeds City Council,Central & Corporate Functions,Support And Facilities General Fund,Supplies and Services,Operational Furniture And Equipment,203,15/09/2011,1110-00107,478.13,R,Adt Leeds CC
http://statistics.data.gov.uk/doc/local-authority/00DA,Leeds City Council,Childrens Services,Safeguarding Targeted & Specialist,Support Services,Legal Disbursements,411,21/10/2011,1110-00108,4560.00,R,Advanced Child Care Assessments Ltd
http://statistics.data.gov.uk/doc/local-authority/00DA,Leeds City Council as Accountable Body,Social Services Pooled Budgets,Jcs For People With Learning Disabilitie,Third Party Payments,Residential,580,26/10/2011,1110-00109,17892.96,R,Advitam Ltd
http://statistics.data.gov.uk/doc/local-authority/00DA,Leeds City Council as Accountable Body,Social Services Pooled Budgets,Jcs For People With Learning Disabilitie,Third Party Payments,Home Care,568,06/10/2011,1110-00110,3848.08,R,Affinity Trust
http://statistics.data.gov.uk/doc/local-authority/00DA,Leeds City Council as Accountable Body,Social Services Pooled Budgets,Jcs For People With Learning Disabilitie,Third Party Payments,Home Care,568,06/10/2011,1110-00111,3848.08,R,Affinity Trust
http://statistics.data.gov.uk/doc/local-authority/00DA,Leeds City Council as Accountable Body,Social Services Pooled Budgets,Jcs For People With Learning Disabilitie,Third Party Payments,Home Care,568,06/10/2011,1110-00112,6193.32,R,Affinity Trust
http://statistics.data.gov.uk/doc/local-authority/00DA,Leeds City Council as Accountable Body,Social Services Pooled Budgets,Jcs For People With Learning Disabilitie,Third Party Payments,Home Care,568,07/10/2011,1110-00113,4040.00,R,Affinity Trust
http://statistics.data.gov.uk/doc/local-authority/00DA,Leeds City Council,Adult Social Care,Services For Older People Under 65 P/Dis,Third Party Payments,Home Care,568,27/10/2011,1110-00114,-1719.75,R,Affinity Trust
http://statistics.data.gov.uk/doc/local-authority/00DA,Leeds City Council as Accountable Body,Social Services Pooled Budgets,Jcs For People With Learning Disabilitie,Third Party Payments,Home Care,568,27/10/2011,1110-00115,4810.10,R,Affinity Trust
http://statistics.data.gov.uk/doc/local-authority/00DA,Leeds City Council as Accountable Body,Social Services Pooled Budgets,Jcs For People With Learning Disabilitie,Third Party Payments,Home Care,568,27/10/2011,1110-00116,4810.10,R,Affinity Trust
http://statistics.data.gov.uk/doc/local-authority/00DA,Leeds City Council as Accountable Body,Social Services Pooled Budgets,Jcs For People With Learning Disabilitie,Third Party Payments,Home Care,568,27/10/2011,1110-00117,7741.65,R,Affinity Trust
http://statistics.data.gov.uk/doc/local-authority/00DA,Leeds City Council,Childrens Services,Safeguarding Targeted & Specialist,Third Party Payments,Adoptions - Allowances,560,07/10/2011,1110-00118,8090.00,R,After Adoption
http://statistics.data.gov.uk/doc/local-authority/00DA,Leeds City Council,Childrens Services,Safeguarding Targeted & Specialist,Third Party Payments,Adoptions - Allowances,560,14/10/2011,1110-00119,3500.00,R,After Adoption
http://statistics.data.gov.uk/doc/local-authority/00DA,Leeds City Council,Childrens Services,Safeguarding Targeted & Specialist,Third Party Payments,Adoptions - Allowances,560,20/10/2011,1110-00120,1550.00,R,After Adoption
http://statistics.data.gov.uk/doc/local-authority/00DA,Leeds City Council,Environment & Neighbourhoods,Strategy & Commissioning,Third Party Payments,Supporting Ppl - Block Gross Chargeable,514,07/10/2011,1110-00121,3957.68,R,Age Uk Leeds
http://statistics.data.gov.uk/doc/local-authority/00DA,Leeds City Council,City Development,Highways,Capital,Construction,3,05/10/2011,1110-00122,74148.00,C,Aggregate Industries Uk Ltd
http://statistics.data.gov.uk/doc/local-authority/00DA,Leeds City Council,Adult Social Care,Services For Older People Under 65 P/Dis,Third Party Payments,Residential,580,26/10/2011,1110-00123,5652.04,R,Agricola House
http://statistics.data.gov.uk/doc/local-authority/00DA,Leeds City Council,Insurance,Insurance,Supplies and Services,Insurance Claims,248,06/10/2011,1110-00124,1260.02,R,Ai Claims Solutionsltd
http://statistics.data.gov.uk/doc/local-authority/00DA,Leeds City Council as Accountable Body,Social Services Pooled Budgets,Leeds Community Equip Store Pooled Budgt,Supplies and Services,Other Equipment,203,05/10/2011,1110-00125,780.00,R,Aidapt Bathrooms Ltd
http://statistics.data.gov.uk/doc/local-authority/00DA,Leeds City Council as Accountable Body,Social Services Pooled Budgets,Leeds Community Equip Store Pooled Budgt,Supplies and Services,Other Equipment,203,05/10/2011,1110-00126,1833.00,R,Aidapt Bathrooms Ltd
http://statistics.data.gov.uk/doc/local-authority/00DA,Leeds City Council as Accountable Body,Social Services Pooled Budgets,Leeds Community Equip Store Pooled Budgt,Supplies and Services,Other Equipment,203,07/10/2011,1110-00127,946.60,R,Aidapt Bathrooms Ltd
http://statistics.data.gov.uk/doc/local-authority/00DA,Leeds City Council as Accountable Body,Social Services Pooled Budgets,Leeds Community Equip Store Pooled Budgt,Supplies and Services,Other Equipment,203,13/10/2011,1110-00128,506.00,R,Aidapt Bathrooms Ltd
http://statistics.data.gov.uk/doc/local-authority/00DA,Leeds City Council as Accountable Body,Social Services Pooled Budgets,Leeds Community Equip Store Pooled Budgt,Supplies and Services,Other Equipment,203,14/10/2011,1110-00129,1975.00,R,Aidapt Bathrooms Ltd
http://statistics.data.gov.uk/doc/local-authority/00DA,Leeds City Council as Accountable Body,Social Services Pooled Budgets,Leeds Community Equip Store Pooled Budgt,Supplies and Services,Other Equipment,203,19/10/2011,1110-00130,490.50,R,Aidapt Bathrooms Ltd
http://statistics.data.gov.uk/doc/local-authority/00DA,Leeds City Council as Accountable Body,Social Services Pooled Budgets,Leeds Community Equip Store Pooled Budgt,Supplies and Services,Other Equipment,203,24/10/2011,1110-00131,1125.00,R,Aidapt Bathrooms Ltd
http://statistics.data.gov.uk/doc/local-authority/00DA,Leeds City Council,City Development,Economic Development,Capital,Other Costs,7,05/10/2011,1110-00132,2365.00,C,Aig Edenspiekermann Ltd
http://statistics.data.gov.uk/doc/local-authority/00DA,Leeds City Council,City Development,Economic Development,Capital,Other Costs,7,05/10/2011,1110-00133,9533.33,C,Aig Edenspiekermann Ltd
http://statistics.data.gov.uk/doc/local-authority/00DA,Leeds City Council,City Development,Economic Development,Capital,Other Costs,7,05/10/2011,1110-00134,9533.33,C,Aig Edenspiekermann Ltd
http://statistics.data.gov.uk/doc/local-authority/00DA,Leeds City Council,City Development,Economic Development,Supplies and Services,City Centre Enhancement,295,12/10/2011,1110-00135,950.00,R,Aig Edenspiekermann Ltd
http://statistics.data.gov.uk/doc/local-authority/00DA,Leeds City Council,City Development,Economic Development,Capital,Other Costs,7,06/10/2011,1110-00136,1571.50,C,Aig London Limited In Administration
http://statistics.data.gov.uk/doc/local-authority/00DA,Leeds City Council,City Development,Economic Development,Capital,Other Costs,7,06/10/2011,1110-00137,1572.00,C,Aig London Limited In Administration
http://statistics.data.gov.uk/doc/local-authority/00DA,Leeds City Council,City Development,Economic Development,Capital,Other Costs,7,06/10/2011,1110-00138,3496.50,C,Aig London Limited In Administration
http://statistics.data.gov.uk/doc/local-authority/00DA,Leeds City Council,City Development,Highways,Premises,Grounds Maintenance Work,111,14/10/2011,1110-00139,598.36,R,Ainsty Timber Marketing Ltd
http://statistics.data.gov.uk/doc/local-authority/00DA,Leeds City Council,City Development,Highways,Premises,Grounds Maintenance Work,111,14/10/2011,1110-00140,610.76,R,Ainsty Timber Marketing Ltd
http://statistics.data.gov.uk/doc/local-authority/00DA,Leeds City Council,City Development,Highways,Premises,Grounds Maintenance Work,111,14/10/2011,1110-00141,763.70,R,Ainsty Timber Marketing Ltd
http://statistics.data.gov.uk/doc/local-authority/00DA,Leeds City Council,City Development,Highways,Premises,Grounds Maintenance Work,111,14/10/2011,1110-00142,1881.18,R,Ainsty Timber Marketing Ltd
http://statistics.data.gov.uk/doc/local-authority/00DA,Leeds City Council,City Development,Highways,Premises,Grounds Maintenance Work,111,14/10/2011,1110-00143,4807.99,R,Ainsty Timber Marketing Ltd
http://statistics.data.gov.uk/doc/local-authority/00DA,Leeds City Council,City Development,Highways,Premises,Grounds Maintenance Work,111,14/10/2011,1110-00144,4873.38,R,Ainsty Timber Marketing Ltd
http://statistics.data.gov.uk/doc/local-authority/00DA,Leeds City Council,City Development,Highways,Premises,Grounds Maintenance Work,111,14/10/2011,1110-00145,11495.82,R,Ainsty Timber Marketing Ltd
http://statistics.data.gov.uk/doc/local-authority/00DA,Leeds City Council,City Development,Highways,Premises,Grounds Maintenance Work,111,14/10/2011,1110-00146,22534.92,R,Ainsty Timber Marketing Ltd
http://statistics.data.gov.uk/doc/local-authority/00DA,Leeds City Council,City Development,Highways,Premises,Grounds Maintenance Work,111,28/10/2011,1110-00147,598.38,R,Ainsty Timber Marketing Ltd
http://statistics.data.gov.uk/doc/local-authority/00DA,Leeds City Council,City Development,Highways,Premises,Grounds Maintenance Work,111,28/10/2011,1110-00148,610.76,R,Ainsty Timber Marketing Ltd
http://statistics.data.gov.uk/doc/local-authority/00DA,Leeds City Council,City Development,Highways,Premises,Grounds Maintenance Work,111,28/10/2011,1110-00149,763.70,R,Ainsty Timber Marketing Ltd
http://statistics.data.gov.uk/doc/local-authority/00DA,Leeds City Council,City Development,Highways,Premises,Grounds Maintenance Work,111,28/10/2011,1110-00150,780.00,R,Ainsty Timber Marketing Ltd
http://statistics.data.gov.uk/doc/local-authority/00DA,Leeds City Council,City Development,Highways,Premises,Grounds Maintenance Work,111,28/10/2011,1110-00151,1881.18,R,Ainsty Timber Marketing Ltd
http://statistics.data.gov.uk/doc/local-authority/00DA,Leeds City Council,City Development,Highways,Premises,Grounds Maintenance Work,111,28/10/2011,1110-00152,4807.99,R,Ainsty Timber Marketing Ltd
http://statistics.data.gov.uk/doc/local-authority/00DA,Leeds City Council,City Development,Highways,Premises,Grounds Maintenance Work,111,28/10/2011,1110-00153,4873.38,R,Ainsty Timber Marketing Ltd
http://statistics.data.gov.uk/doc/local-authority/00DA,Leeds City Council,City Development,Highways,Premises,Grounds Maintenance Work,111,28/10/2011,1110-00154,9583.61,R,Ainsty Timber Marketing Ltd
http://statistics.data.gov.uk/doc/local-authority/00DA,Leeds City Council,Central & Corporate Functions,Executive Support,Supplies and Services,Durban schools cluster,269,14/09/2011,1110-00155,760.41,R,Air France
http://statistics.data.gov.uk/doc/local-authority/00DA,Leeds City Council,Central & Corporate Functions,Executive Support,Supplies and Services,Durban schools cluster,269,14/09/2011,1110-00156,760.41,R,Air France
http://statistics.data.gov.uk/doc/local-authority/00DA,Leeds City Council,Central & Corporate Functions,Executive Support,Supplies and Services,Durban schools cluster,269,14/09/2011,1110-00157,760.41,R,Air France
http://statistics.data.gov.uk/doc/local-authority/00DA,Leeds City Council,Central & Corporate Functions,Commercial Services Trading Services,Supplies and Services,Other Hired And Contracted Services,265,07/10/2011,1110-00158,630.36,R,Aire Body Care
http://statistics.data.gov.uk/doc/local-authority/00DA,Leeds City Council as Accountable Body,Social Services Pooled Budgets,Jcs For People With Learning Disabilitie,Third Party Payments,Residential,580,26/10/2011,1110-00159,3080.08,R,Aire House
http://statistics.data.gov.uk/doc/local-authority/00DA,Leeds City Council,Environment & Neighbourhoods,Strategy & Commissioning,Supplies and Services,Non-Recurring Grants,227,07/10/2011,1110-00160,9212.00,R,Aire Valley Homes Leeds
http://statistics.data.gov.uk/doc/local-authority/00DA,West - North West ,West - North West,Property And Maintenance,Premises,General Maintenance,104,12/10/2011,1110-00161,2600.00,R,Aire Valley Landscaping Services Ltd
http://statistics.data.gov.uk/doc/local-authority/00DA,East - North East,East - North East,Business Improvement,Premises,Other,114,19/10/2011,1110-00162,1275.00,R,Aire Valley Landscaping Services Ltd
http://statistics.data.gov.uk/doc/local-authority/00DA,East - North East,East - North East,Housing Services,Premises,Horticulture Non Defined Work,112,03/10/2011,1110-00163,465.00,R,Aire Valley Tree Services Ltd
http://statistics.data.gov.uk/doc/local-authority/00DA,East - North East,East - North East,Housing Services,Premises,Horticulture Non Defined Work,112,03/10/2011,1110-00164,2020.00,R,Aire Valley Tree Services Ltd
http://statistics.data.gov.uk/doc/local-authority/00DA,East - North East,East - North East,Housing Services,Premises,Grounds Maintenance (Closed Landfill),134,03/10/2011,1110-00165,925.00,R,Aire Valley Tree Services Ltd
http://statistics.data.gov.uk/doc/local-authority/00DA,East - North East,East - North East,Housing Services,Premises,Horticulture Non Defined Work,112,04/10/2011,1110-00166,475.00,R,Aire Valley Tree Services Ltd
http://statistics.data.gov.uk/doc/local-authority/00DA,East - North East,East - North East,Housing Services,Premises,Grounds Maintenance (Closed Landfill),134,04/10/2011,1110-00167,425.00,R,Aire Valley Tree Services Ltd
http://statistics.data.gov.uk/doc/local-authority/00DA,East - North East,East - North East,Housing Services,Premises,Horticulture Non Defined Work,112,06/10/2011,1110-00168,475.00,R,Aire Valley Tree Services Ltd
http://statistics.data.gov.uk/doc/local-authority/00DA,East - North East,East - North East,Housing Services,Premises,Horticulture Non Defined Work,112,13/10/2011,1110-00169,565.00,R,Aire Valley Tree Services Ltd
http://statistics.data.gov.uk/doc/local-authority/00DA,East - North East,East - North East,Housing Services,Premises,Horticulture Non Defined Work,112,27/10/2011,1110-00170,550.00,R,Aire Valley Tree Services Ltd
http://statistics.data.gov.uk/doc/local-authority/00DA,East - North East,East - North East,Housing Services,Premises,Grounds Maintenance (Closed Landfill),134,27/10/2011,1110-00171,475.00,R,Aire Valley Tree Services Ltd
http://statistics.data.gov.uk/doc/local-authority/00DA,East - North East,East - North East,Housing Services,Premises,Grounds Maintenance (Closed Landfill),134,27/10/2011,1110-00172,920.00,R,Aire Valley Tree Services Ltd
http://statistics.data.gov.uk/doc/local-authority/00DA,Leeds City Council,Adult Social Care,Services For Older People - 65 And Over,Third Party Payments,Residential Care Emi,571,26/10/2011,1110-00173,23286.32,R,Aire View Residential Home
http://statistics.data.gov.uk/doc/local-authority/00DA,Leeds City Council,Adult Social Care,Services For Older People - 65 And Over,Third Party Payments,Residential,580,26/10/2011,1110-00174,15980.65,R,Aire View Residential Home
http://statistics.data.gov.uk/doc/local-authority/00DA,Leeds City Council,Childrens Services,Safeguarding Targeted & Specialist,Supplies and Services,Recurring & Major Grantss Projects,229,26/10/2011,1110-00175,13100.00,R,Aireborough Summer Activities Scheme
http://statistics.data.gov.uk/doc/local-authority/00DA,Leeds City Council,Adult Social Care,Services For Older People - 65 And Over,Third Party Payments,Residential,580,26/10/2011,1110-00176,27004.05,R,Airedale (Goldsborough)
http://statistics.data.gov.uk/doc/local-authority/00DA,Leeds City Council,City Development,Libraries  Arts & Heritage,Capital,Construction,3,28/10/2011,1110-00177,808.08,C,Airedale Mechanical & Electrical Ltd
http://statistics.data.gov.uk/doc/local-authority/00DA,Leeds City Council,City Development,Libraries  Arts & Heritage,Capital,Construction,3,28/10/2011,1110-00178,1391.00,C,Airedale Mechanical & Electrical Ltd
http://statistics.data.gov.uk/doc/local-authority/00DA,Leeds City Council,Central & Corporate Functions,Commercial Services Trading Services,Supplies and Services,Other Hired And Contracted Services,265,03/10/2011,1110-00179,2362.15,R,Airwave Solutions Ltd
http://statistics.data.gov.uk/doc/local-authority/00DA,Leeds City Council,City Development,Recreation,Supplies and Services,Operational Materials,205,20/10/2011,1110-00180,560.09,R,Aitkens Sportsturf Ltd
http://statistics.data.gov.uk/doc/local-authority/00DA,Leeds City Council,City Development,Recreation,Supplies and Services,Operational Materials,205,27/10/2011,1110-00181,615.60,R,Aitkens Sportsturf Ltd
http://statistics.data.gov.uk/doc/local-authority/00DA,Leeds City Council,City Development,Recreation,Supplies and Services,Operational Materials,205,27/10/2011,1110-00182,615.60,R,Aitkens Sportsturf Ltd
http://statistics.data.gov.uk/doc/local-authority/00DA,Leeds City Council,City Development,Recreation,Supplies and Services,Operational Materials,205,27/10/2011,1110-00183,760.00,R,Aitkens Sportsturf Ltd
http://statistics.data.gov.uk/doc/local-authority/00DA,Leeds City Council,City Development,Recreation,Supplies and Services,Operational Materials,205,27/10/2011,1110-00184,816.36,R,Aitkens Sportsturf Ltd
http://statistics.data.gov.uk/doc/local-authority/00DA,Leeds City Council,Adult Social Care,Services For Older People - 65 And Over,Third Party Payments,Home Care,568,07/10/2011,1110-00185,1078.52,R,Aj Social Care
http://statistics.data.gov.uk/doc/local-authority/00DA,Leeds City Council,Adult Social Care,Services For Older People Under 65 P/Dis,Third Party Payments,Home Care,568,07/10/2011,1110-00186,2361.55,R,Aj Social Care
http://statistics.data.gov.uk/doc/local-authority/00DA,Leeds City Council,Adult Social Care,Services For Older People - 65 And Over,Third Party Payments,Home Care,568,17/10/2011,1110-00187,2688.00,R,Aj Social Care
http://statistics.data.gov.uk/doc/local-authority/00DA,Leeds City Council,Adult Social Care,Services For Older People - 65 And Over,Third Party Payments,Home Care,568,17/10/2011,1110-00188,9776.00,R,Aj Social Care
http://statistics.data.gov.uk/doc/local-authority/00DA,Leeds City Council,Adult Social Care,Services For Older People Under 65 P/Dis,Third Party Payments,Home Care,568,17/10/2011,1110-00189,1075.20,R,Aj Social Care
http://statistics.data.gov.uk/doc/local-authority/00DA,Leeds City Council,Adult Social Care,Services For Older People Under 65 P/Dis,Third Party Payments,Home Care,568,17/10/2011,1110-00190,1163.90,R,Aj Social Care
http://statistics.data.gov.uk/doc/local-authority/00DA,East - North East,East - North East,Construction Services,Supplies and Services,Other Materials,205,05/10/2011,1110-00191,616.80,R,Ajm Fixings & Power Tools Ltd
http://statistics.data.gov.uk/doc/local-authority/00DA,East - North East,East - North East,Construction Services,Supplies and Services,Other Materials,205,05/10/2011,1110-00192,2103.11,R,Ajm Fixings & Power Tools Ltd
http://statistics.data.gov.uk/doc/local-authority/00DA,East - North East,East - North East,Construction Services,Supplies and Services,Other Materials,205,07/10/2011,1110-00193,1935.76,R,Ajm Fixings & Power Tools Ltd
http://statistics.data.gov.uk/doc/local-authority/00DA,Leeds City Council,Central & Corporate Functions,Commercial Services Trading Services,Supplies and Services,Operational Materials,205,07/10/2011,1110-00194,498.48,R,Ajm Fixings & Power Tools Ltd
http://statistics.data.gov.uk/doc/local-authority/00DA,East - North East,East - North East,Construction Services,Supplies and Services,Other Materials,205,19/10/2011,1110-00195,2291.59,R,Ajm Fixings & Power Tools Ltd
http://statistics.data.gov.uk/doc/local-authority/00DA,East - North East,East - North East,Construction Services,Supplies and Services,Other Materials,205,28/10/2011,1110-00196,700.77,R,Ajm Fixings & Power Tools Ltd
http://statistics.data.gov.uk/doc/local-authority/00DA,East - North East,East - North East,Construction Services,Supplies and Services,Other Materials,205,28/10/2011,1110-00197,953.49,R,Ajm Fixings & Power Tools Ltd
http://statistics.data.gov.uk/doc/local-authority/00DA,East - North East,East - North East,Construction Services,Supplies and Services,Other Materials,205,28/10/2011,1110-00198,994.43,R,Ajm Fixings & Power Tools Ltd
http://statistics.data.gov.uk/doc/local-authority/00DA,East - North East,East - North East,Construction Services,Supplies and Services,Other Materials,205,28/10/2011,1110-00199,1022.20,R,Ajm Fixings & Power Tools Ltd
http://statistics.data.gov.uk/doc/local-authority/00DA,East - North East,East - North East,Construction Services,Supplies and Services,Other Materials,205,28/10/2011,1110-00200,3626.35,R,Ajm Fixings & Power Tools Ltd
http://statistics.data.gov.uk/doc/local-authority/00DA,Leeds City Council,Central & Corporate Functions,Commercial Services Trading Services,Supplies and Services,Operational Materials,205,28/10/2011,1110-00201,453.65,R,Ajm Fixings & Power Tools Ltd
http://statistics.data.gov.uk/doc/local-authority/00DA,Leeds City Council,Other Education Services,Primary Schools,Capital,Construction,3,28/10/2011,1110-00202,3300.00,C,Alan Chappelow Sports Ground
http://statistics.data.gov.uk/doc/local-authority/00DA,Leeds City Council,Environment & Neighbourhoods,Regeneration Management,Supplies and Services,Other Hired And Contracted Services,265,24/10/2011,1110-00203,1100.00,R,Alan Gardner Associates
http://statistics.data.gov.uk/doc/local-authority/00DA,Leeds City Council,Other Education Services,Primary Schools,Capital,Construction,3,19/10/2011,1110-00204,7577.65,C,Albert Innes Limited
http://statistics.data.gov.uk/doc/local-authority/00DA,Leeds City Council,City Development,Libraries  Arts & Heritage,Transport,Plant Hire - By Directorate,305,07/10/2011,1110-00205,1093.29,R,Albury Asset Rentals Ltd
http://statistics.data.gov.uk/doc/local-authority/00DA,Leeds City Council,City Development,Planning & Sustainable Development,Supplies and Services,Other Hired And Contracted Services,265,28/10/2011,1110-00206,417.60,R,Alcontrol Uk Ltd
http://statistics.data.gov.uk/doc/local-authority/00DA,Leeds City Council,City Development,Planning & Sustainable Development,Supplies and Services,Other Hired And Contracted Services,265,28/10/2011,1110-00207,556.80,R,Alcontrol Uk Ltd
http://statistics.data.gov.uk/doc/local-authority/00DA,Leeds City Council,Adult Social Care,Services For Older People - 65 And Over,Third Party Payments,Residential Care Emi,571,26/10/2011,1110-00208,5614.48,R,Alexander Residential Home
http://statistics.data.gov.uk/doc/local-authority/00DA,Leeds City Council,Adult Social Care,Services For Older People - 65 And Over,Third Party Payments,Residential,580,26/10/2011,1110-00209,14887.08,R,Alexander Residential Home
http://statistics.data.gov.uk/doc/local-authority/00DA,Leeds City Council,Adult Social Care,Services For Older People Under 65 P/Dis,Third Party Payments,Residential,580,26/10/2011,1110-00210,1141.84,R,Alexander Residential Home
http://statistics.data.gov.uk/doc/local-authority/00DA,Leeds City Council as Accountable Body,Social Services Pooled Budgets,Jcs For People With Learning Disabilitie,Third Party Payments,Residential,580,26/10/2011,1110-00211,1220.72,R,Alexander Residential Home
http://statistics.data.gov.uk/doc/local-authority/00DA,Leeds City Council,Adult Social Care,Services For Older People - 65 And Over,Third Party Payments,Residential Care Emi,571,26/10/2011,1110-00212,1238.40,R,Alexandra Court
http://statistics.data.gov.uk/doc/local-authority/00DA,Leeds City Council,Adult Social Care,Services For Older People - 65 And Over,Third Party Payments,Residential,580,26/10/2011,1110-00213,9666.92,R,Alexandra Court
http://statistics.data.gov.uk/doc/local-authority/00DA,Leeds City Council,Environment & Neighbourhoods,Environmental Action (South),Supplies and Services,Other Hired And Contracted Services,265,20/10/2011,1110-00214,667.00,R,Alfies Boarding Kennels
http://statistics.data.gov.uk/doc/local-authority/00DA,Leeds City Council,City Development,Asset Management Services,Premises,Maintenance Of Buildings,101,26/10/2011,1110-00215,4184.70,R,Alfred Bagnall & Sons (Leeds) Ltd
http://statistics.data.gov.uk/doc/local-authority/00DA,Leeds City Council,City Development,Asset Management Services,Premises,Maintenance Of Buildings,101,26/10/2011,1110-00216,19256.58,R,Alfred Bagnall & Sons (Leeds) Ltd
http://statistics.data.gov.uk/doc/local-authority/00DA,Leeds City Council,City Development,Libraries  Arts & Heritage,Supplies and Services,Other Hired And Contracted Services,265,19/10/2011,1110-00217,500.00,R,Alison Andrews
http://statistics.data.gov.uk/doc/local-authority/00DA,Leeds City Council,City Development,Libraries  Arts & Heritage,Supplies and Services,Other Hired And Contracted Services,265,21/10/2011,1110-00218,1000.00,R,Alison Glew
http://statistics.data.gov.uk/doc/local-authority/00DA,Leeds City Council,City Development,Libraries  Arts & Heritage,Supplies and Services,Bought In Professional Services,277,21/10/2011,1110-00219,1756.80,R,Alison Glew
http://statistics.data.gov.uk/doc/local-authority/00DA,Leeds City Council,Adult Social Care,Services For Older People - 65 And Over,Third Party Payments,Residential,580,26/10/2011,1110-00220,1103.16,R,Allendale Residential Home
http://statistics.data.gov.uk/doc/local-authority/00DA,Leeds City Council,Central & Corporate Functions,Revenues,Supplies and Services,Bank Charges,263,05/10/2011,1110-00221,1161.17,R,Alliance & Leicester Commercial Bank
http://statistics.data.gov.uk/doc/local-authority/00DA,Leeds City Council,Childrens Services,Safeguarding Targeted & Specialist,Third Party Payments,General External Residential Placements,507,11/10/2011,1110-00222,19598.99,R,Alliance Care And Education
http://statistics.data.gov.uk/doc/local-authority/00DA,Leeds City Council,Childrens Services,Safeguarding Targeted & Specialist,Third Party Payments,General External Residential Placements,507,21/10/2011,1110-00223,26007.85,R,Alliance Care And Education
http://statistics.data.gov.uk/doc/local-authority/00DA,Leeds City Council,City Development,Recreation,Premises,Cleaning Maintenance & Toiletries,127,14/10/2011,1110-00224,510.92,R,Alliance Disposables Ltd
http://statistics.data.gov.uk/doc/local-authority/00DA,Leeds City Council,Adult Social Care,Services For Older People Under 65 P/Dis,Third Party Payments,Home Care,568,04/10/2011,1110-00225,568.65,R,Allied Healthcare Group Ltd
http://statistics.data.gov.uk/doc/local-authority/00DA,Leeds City Council as Accountable Body,Social Services Pooled Budgets,Jcs For People With Learning Disabilitie,Third Party Payments,Home Care,568,07/10/2011,1110-00226,519.57,R,Allied Healthcare Group Ltd
http://statistics.data.gov.uk/doc/local-authority/00DA,Leeds City Council as Accountable Body,Social Services Pooled Budgets,Jcs For People With Learning Disabilitie,Third Party Payments,Home Care,568,07/10/2011,1110-00227,801.92,R,Allied Healthcare Group Ltd
http://statistics.data.gov.uk/doc/local-authority/00DA,Leeds City Council as Accountable Body,Social Services Pooled Budgets,Jcs For People With Learning Disabilitie,Third Party Payments,Home Care,568,07/10/2011,1110-00228,1285.13,R,Allied Healthcare Group Ltd
http://statistics.data.gov.uk/doc/local-authority/00DA,Leeds City Council,Adult Social Care,Services For Older People - 65 And Over,Third Party Payments,Home Care,568,18/10/2011,1110-00229,530.40,R,Allied Healthcare Group Ltd
http://statistics.data.gov.uk/doc/local-authority/00DA,Leeds City Council,Adult Social Care,Services For Older People - 65 And Over,Third Party Payments,Home Care,568,18/10/2011,1110-00230,532.95,R,Allied Healthcare Group Ltd
http://statistics.data.gov.uk/doc/local-authority/00DA,Leeds City Council,Adult Social Care,Services For Older People - 65 And Over,Third Party Payments,Home Care,568,18/10/2011,1110-00231,555.90,R,Allied Healthcare Group Ltd
http://statistics.data.gov.uk/doc/local-authority/00DA,Leeds City Council,Adult Social Care,Services For Older People - 65 And Over,Third Party Payments,Home Care,568,18/10/2011,1110-00232,1142.40,R,Allied Healthcare Group Ltd
http://statistics.data.gov.uk/doc/local-authority/00DA,Leeds City Council,Adult Social Care,Services For Older People Under 65 P/Dis,Third Party Payments,Home Care,568,18/10/2011,1110-00233,-548.25,R,Allied Healthcare Group Ltd
http://statistics.data.gov.uk/doc/local-authority/00DA,Leeds City Council,Adult Social Care,Services For Older People Under 65 P/Dis,Third Party Payments,Home Care,568,18/10/2011,1110-00234,851.70,R,Allied Healthcare Group Ltd
http://statistics.data.gov.uk/doc/local-authority/00DA,Leeds City Council,Adult Social Care,Services For Older People Under 65 P/Dis,Third Party Payments,Home Care,568,18/10/2011,1110-00235,1428.00,R,Allied Healthcare Group Ltd
http://statistics.data.gov.uk/doc/local-authority/00DA,Leeds City Council,Adult Social Care,Services For Older People Under 65 P/Dis,Third Party Payments,Home Care,568,18/10/2011,1110-00236,6329.08,R,Allied Healthcare Group Ltd
http://statistics.data.gov.uk/doc/local-authority/00DA,Leeds City Council,Adult Social Care,Other Generic Services,Third Party Payments,Home Care,568,21/10/2011,1110-00237,4529.69,R,Allied Healthcare Group Ltd
http://statistics.data.gov.uk/doc/local-authority/00DA,Leeds City Council,Adult Social Care,Other Generic Services,Third Party Payments,Home Care,568,21/10/2011,1110-00238,14199.76,R,Allied Healthcare Group Ltd
http://statistics.data.gov.uk/doc/local-authority/00DA,Leeds City Council,Adult Social Care,Services For Older People - 65 And Over,Third Party Payments,Home Care,568,21/10/2011,1110-00239,11337.31,R,Allied Healthcare Group Ltd
http://statistics.data.gov.uk/doc/local-authority/00DA,Leeds City Council,Adult Social Care,Services For Older People - 65 And Over,Third Party Payments,Home Care,568,21/10/2011,1110-00240,11685.54,R,Allied Healthcare Group Ltd
http://statistics.data.gov.uk/doc/local-authority/00DA,Leeds City Council,Adult Social Care,Services For Older People - 65 And Over,Third Party Payments,Home Care,568,21/10/2011,1110-00241,14815.17,R,Allied Healthcare Group Ltd
http://statistics.data.gov.uk/doc/local-authority/00DA,Leeds City Council,Adult Social Care,Services For Older People - 65 And Over,Third Party Payments,Home Care,568,21/10/2011,1110-00242,18152.06,R,Allied Healthcare Group Ltd
http://statistics.data.gov.uk/doc/local-authority/00DA,Leeds City Council,Adult Social Care,Services For Older People - 65 And Over,Third Party Payments,Home Care,568,21/10/2011,1110-00243,24311.88,R,Allied Healthcare Group Ltd
http://statistics.data.gov.uk/doc/local-authority/00DA,Leeds City Council,Adult Social Care,Services For Older People Under 65 P/Dis,Third Party Payments,Home Care,568,21/10/2011,1110-00244,1214.19,R,Allied Healthcare Group Ltd
http://statistics.data.gov.uk/doc/local-authority/00DA,Leeds City Council,Adult Social Care,Services For Older People Under 65 P/Dis,Third Party Payments,Home Care,568,21/10/2011,1110-00245,1888.35,R,Allied Healthcare Group Ltd
http://statistics.data.gov.uk/doc/local-authority/00DA,Leeds City Council,Adult Social Care,Services For Older People Under 65 P/Dis,Third Party Payments,Home Care,568,21/10/2011,1110-00246,2965.63,R,Allied Healthcare Group Ltd
http://statistics.data.gov.uk/doc/local-authority/00DA,Leeds City Council as Accountable Body,Social Services Pooled Budgets,Jcs For People With Learning Disabilitie,Third Party Payments,Home Care,568,21/10/2011,1110-00247,1873.52,R,Allied Healthcare Group Ltd
http://statistics.data.gov.uk/doc/local-authority/00DA,Leeds City Council,Childrens Services,Safeguarding Targeted & Specialist,Support Services,Legal Disbursements,411,13/10/2011,1110-00248,1270.00,R,Alpha Biolabs
http://statistics.data.gov.uk/doc/local-authority/00DA,Leeds City Council,Childrens Services,Safeguarding Targeted & Specialist,Support Services,Legal Disbursements,411,21/10/2011,1110-00249,474.45,R,Alpha Biolabs
http://statistics.data.gov.uk/doc/local-authority/00DA,Aire Valley Homes Leeds,Aire Valley Homes Leeds,Housing,Supplies and Services,Clothing & Uniforms,241,25/10/2011,1110-00250,840.00,R,Alpha Tools (Northern) Ltd
http://statistics.data.gov.uk/doc/local-authority/00DA,Leeds City Council,Central & Corporate Functions,Commercial Services Trading Services,Supplies and Services,Operational Materials,205,05/10/2011,1110-00251,552.55,R,Alvin Morris Ltd
http://statistics.data.gov.uk/doc/local-authority/00DA,Leeds City Council,Adult Social Care,Services For Older People - 65 And Over,Third Party Payments,Payments To Voluntary Organisations,561,31/10/2011,1110-00252,75500.00,R,Alzheimers Society
http://statistics.data.gov.uk/doc/local-authority/00DA,Leeds City Council,Childrens Services,Learning Skills & Universal,Third Party Payments,Services Rendered By Other Organisations,511,07/10/2011,1110-00253,800.00,R,Amazing Grace Early Years Childcare
http://statistics.data.gov.uk/doc/local-authority/00DA,Leeds City Council,Childrens Services,Safeguarding Targeted & Specialist,Third Party Payments,General External Residential Placements,507,12/10/2011,1110-00254,16020.00,R,Amberleigh Care Ltd
http://statistics.data.gov.uk/doc/local-authority/00DA,Leeds City Council,Adult Social Care,Services For Older People - 65 And Over,Third Party Payments,Residential,580,26/10/2011,1110-00255,3955.63,R,Amelia House Care Home
http://statistics.data.gov.uk/doc/local-authority/00DA,Leeds City Council,Adult Social Care,Services For Older People - 65 And Over,Third Party Payments,Home Care,568,10/10/2011,1110-00256,16750.81,R,Anchor
http://statistics.data.gov.uk/doc/local-authority/00DA,Leeds City Council,Adult Social Care,Services For Older People Under 65 P/Dis,Third Party Payments,Home Care,568,10/10/2011,1110-00257,1011.56,R,Anchor
http://statistics.data.gov.uk/doc/local-authority/00DA,Leeds City Council,Adult Social Care,Services For Older People - 65 And Over,Third Party Payments,Home Care,568,27/10/2011,1110-00258,2281.28,R,Anchor
http://statistics.data.gov.uk/doc/local-authority/00DA,Leeds City Council,Adult Social Care,Services For Older People - 65 And Over,Third Party Payments,Home Care,568,27/10/2011,1110-00259,2290.17,R,Anchor
http://statistics.data.gov.uk/doc/local-authority/00DA,Leeds City Council,Adult Social Care,Services For Older People - 65 And Over,Third Party Payments,Home Care,568,27/10/2011,1110-00260,5819.38,R,Anchor
http://statistics.data.gov.uk/doc/local-authority/00DA,Leeds City Council,Adult Social Care,Services For Older People - 65 And Over,Third Party Payments,Home Care,568,27/10/2011,1110-00261,6964.59,R,Anchor
http://statistics.data.gov.uk/doc/local-authority/00DA,Leeds City Council,Adult Social Care,Services For Older People - 65 And Over,Third Party Payments,Home Care,568,27/10/2011,1110-00262,8226.66,R,Anchor
http://statistics.data.gov.uk/doc/local-authority/00DA,Leeds City Council,Adult Social Care,Services For Older People - 65 And Over,Third Party Payments,Home Care,568,27/10/2011,1110-00263,10205.00,R,Anchor
http://statistics.data.gov.uk/doc/local-authority/00DA,Leeds City Council,Adult Social Care,Services For Older People - 65 And Over,Third Party Payments,Home Care,568,27/10/2011,1110-00264,20033.27,R,Anchor
http://statistics.data.gov.uk/doc/local-authority/00DA,Leeds City Council,Adult Social Care,Services For Older People Under 65 P/Dis,Third Party Payments,Home Care,568,27/10/2011,1110-00265,573.60,R,Anchor
http://statistics.data.gov.uk/doc/local-authority/00DA,Leeds City Council,Adult Social Care,Services For Older People Under 65 P/Dis,Third Party Payments,Home Care,568,27/10/2011,1110-00266,702.51,R,Anchor
http://statistics.data.gov.uk/doc/local-authority/00DA,Leeds City Council,Adult Social Care,Services For Older People Under 65 P/Dis,Third Party Payments,Home Care,568,27/10/2011,1110-00267,1833.60,R,Anchor
http://statistics.data.gov.uk/doc/local-authority/00DA,Leeds City Council,Adult Social Care,Services For Older People Under 65 P/Dis,Third Party Payments,Home Care,568,27/10/2011,1110-00268,3020.64,R,Anchor
http://statistics.data.gov.uk/doc/local-authority/00DA,Leeds City Council as Accountable Body,Social Services Pooled Budgets,Jcs For People With Learning Disabilitie,Third Party Payments,Residential,580,06/10/2011,1110-00269,588.96,R,Anchor Trust
http://statistics.data.gov.uk/doc/local-authority/00DA,Leeds City Council,Environment & Neighbourhoods,Strategy & Commissioning,Third Party Payments,Supporting People - Block Subsidy,513,07/10/2011,1110-00270,846.28,R,Anchor Trust
http://statistics.data.gov.uk/doc/local-authority/00DA,Leeds City Council,Environment & Neighbourhoods,Strategy & Commissioning,Third Party Payments,Supporting Ppl - Block Gross Chargeable,514,07/10/2011,1110-00271,468.48,R,Anchor Trust
http://statistics.data.gov.uk/doc/local-authority/00DA,Leeds City Council,Environment & Neighbourhoods,Strategy & Commissioning,Third Party Payments,Supporting Ppl - Block Gross Chargeable,514,07/10/2011,1110-00272,9844.00,R,Anchor Trust
http://statistics.data.gov.uk/doc/local-authority/00DA,Leeds City Council,Adult Social Care,Services For Older People - 65 And Over,Third Party Payments,Home Care,568,19/10/2011,1110-00273,21556.35,R,Anchor Trust
http://statistics.data.gov.uk/doc/local-authority/00DA,Leeds City Council,Adult Social Care,Services For Older People Under 65 P/Dis,Third Party Payments,Home Care,568,19/10/2011,1110-00274,3297.74,R,Anchor Trust
http://statistics.data.gov.uk/doc/local-authority/00DA,Leeds City Council,Adult Social Care,Services For Older People - 65 And Over,Third Party Payments,Residential Care Emi,571,26/10/2011,1110-00275,478.68,R,Anchor Trust
http://statistics.data.gov.uk/doc/local-authority/00DA,Leeds City Council,Adult Social Care,Services For Older People - 65 And Over,Third Party Payments,Residential,580,26/10/2011,1110-00276,3403.76,R,Anchor Trust
http://statistics.data.gov.uk/doc/local-authority/00DA,Leeds City Council,Adult Social Care,Services For Older People - 65 And Over,Third Party Payments,Residential Care Emi,571,26/10/2011,1110-00277,1650.04,R,Anchor Trust
http://statistics.data.gov.uk/doc/local-authority/00DA,Leeds City Council,Adult Social Care,Services For Older People - 65 And Over,Third Party Payments,Nursing Care Emi,574,26/10/2011,1110-00278,1186.96,R,Anchor Trust
http://statistics.data.gov.uk/doc/local-authority/00DA,Leeds City Council,Adult Social Care,Services For Older People - 65 And Over,Third Party Payments,Residential,580,26/10/2011,1110-00279,5634.44,R,Anchor Trust
http://statistics.data.gov.uk/doc/local-authority/00DA,Leeds City Council,Adult Social Care,Services For Older People - 65 And Over,Third Party Payments,Nursing Home,570,26/10/2011,1110-00280,24115.80,R,Anchor Trust
http://statistics.data.gov.uk/doc/local-authority/00DA,Leeds City Council,Adult Social Care,Services For Older People Under 65 P/Dis,Third Party Payments,Nursing Home,570,26/10/2011,1110-00281,1397.80,R,Anchor Trust
http://statistics.data.gov.uk/doc/local-authority/00DA,Leeds City Council,Adult Social Care,Services For Older People - 65 And Over,Third Party Payments,Residential Care Emi,571,26/10/2011,1110-00282,3566.92,R,Anchor Trust
http://statistics.data.gov.uk/doc/local-authority/00DA,Leeds City Council,Adult Social Care,Services For Adults Under 65 Mental/Dis,Third Party Payments,Residential,580,26/10/2011,1110-00283,1094.56,R,Anchor Trust
http://statistics.data.gov.uk/doc/local-authority/00DA,Leeds City Council,Adult Social Care,Services For Older People - 65 And Over,Third Party Payments,Residential,580,26/10/2011,1110-00284,6646.70,R,Anchor Trust
http://statistics.data.gov.uk/doc/local-authority/00DA,Leeds City Council,Adult Social Care,Services For Older People - 65 And Over,Third Party Payments,Payments To Voluntary Organisations,561,28/10/2011,1110-00285,9167.48,R,Anchor Trust
http://statistics.data.gov.uk/doc/local-authority/00DA,Leeds City Council,Adult Social Care,Services For Older People - 65 And Over,Third Party Payments,Residential Care Emi,571,26/10/2011,1110-00286,9475.52,R,Anchor Trust Simon Marks Court
http://statistics.data.gov.uk/doc/local-authority/00DA,Leeds City Council,Adult Social Care,Services For Older People - 65 And Over,Third Party Payments,Residential,580,26/10/2011,1110-00287,3092.31,R,Anchor Trust Simon Marks Court
http://statistics.data.gov.uk/doc/local-authority/00DA,Leeds City Council,Childrens Services,Learning Skills & Universal,Supplies and Services,Bought In Professional Services,277,27/10/2011,1110-00288,700.00,R,Andrew Brooks
http://statistics.data.gov.uk/doc/local-authority/00DA,Leeds City Council,City Development,Highways,Supplies and Services,Bought In Professional Services,277,06/10/2011,1110-00289,450.00,R,Andrew Clayton
http://statistics.data.gov.uk/doc/local-authority/00DA,Aire Valley Homes Leeds,Aire Valley Homes Leeds,Aire Valley Homes Leeds,Supplies and Services,Other Hired And Contracted Services,265,04/10/2011,1110-00290,3400.00,R,Andrew Elliott
http://statistics.data.gov.uk/doc/local-authority/00DA,Leeds City Council,Adult Social Care,Services For Older People - 65 And Over,Third Party Payments,Home Care,568,13/10/2011,1110-00291,427.00,R,Angels Home Care Services
http://statistics.data.gov.uk/doc/local-authority/00DA,Leeds City Council,Adult Social Care,Services For Older People - 65 And Over,Third Party Payments,Home Care,568,19/10/2011,1110-00292,558.00,R,Angels Home Care Services
http://statistics.data.gov.uk/doc/local-authority/00DA,Leeds City Council,Adult Social Care,Services For Older People - 65 And Over,Third Party Payments,Home Care,568,19/10/2011,1110-00293,558.00,R,Angels Home Care Services
http://statistics.data.gov.uk/doc/local-authority/00DA,Leeds City Council,Adult Social Care,Services For Older People - 65 And Over,Third Party Payments,Home Care,568,19/10/2011,1110-00294,558.00,R,Angels Home Care Services
http://statistics.data.gov.uk/doc/local-authority/00DA,Leeds City Council,Adult Social Care,Services For Older People - 65 And Over,Third Party Payments,Home Care,568,19/10/2011,1110-00295,558.00,R,Angels Home Care Services
http://statistics.data.gov.uk/doc/local-authority/00DA,Leeds City Council,Adult Social Care,Services For Older People - 65 And Over,Third Party Payments,Home Care,568,19/10/2011,1110-00296,1389.50,R,Angels Home Care Services
http://statistics.data.gov.uk/doc/local-authority/00DA,Leeds City Council,Adult Social Care,Services For Older People - 65 And Over,Third Party Payments,Home Care,568,19/10/2011,1110-00297,2009.00,R,Angels Home Care Services
http://statistics.data.gov.uk/doc/local-authority/00DA,Leeds City Council,Adult Social Care,Services For Older People - 65 And Over,Third Party Payments,Home Care,568,19/10/2011,1110-00298,2506.00,R,Angels Home Care Services
http://statistics.data.gov.uk/doc/local-authority/00DA,Leeds City Council,Adult Social Care,Services For Older People - 65 And Over,Third Party Payments,Home Care,568,21/10/2011,1110-00299,448.00,R,Angels Home Care Services
http://statistics.data.gov.uk/doc/local-authority/00DA,Leeds City Council,Adult Social Care,Services For Older People - 65 And Over,Third Party Payments,Home Care,568,21/10/2011,1110-00300,560.00,R,Angels Home Care Services
http://statistics.data.gov.uk/doc/local-authority/00DA,Leeds City Council,Adult Social Care,Services For Older People - 65 And Over,Third Party Payments,Home Care,568,21/10/2011,1110-00301,560.00,R,Angels Home Care Services
http://statistics.data.gov.uk/doc/local-authority/00DA,Leeds City Council,Adult Social Care,Services For Older People - 65 And Over,Third Party Payments,Home Care,568,21/10/2011,1110-00302,588.00,R,Angels Home Care Services
http://statistics.data.gov.uk/doc/local-authority/00DA,Leeds City Council,Adult Social Care,Services For Older People - 65 And Over,Third Party Payments,Home Care,568,21/10/2011,1110-00303,641.90,R,Angels Home Care Services
http://statistics.data.gov.uk/doc/local-authority/00DA,Leeds City Council,Adult Social Care,Services For Older People - 65 And Over,Third Party Payments,Home Care,568,21/10/2011,1110-00304,703.50,R,Angels Home Care Services
http://statistics.data.gov.uk/doc/local-authority/00DA,Leeds City Council,Adult Social Care,Services For Older People - 65 And Over,Third Party Payments,Home Care,568,21/10/2011,1110-00305,793.66,R,Angels Home Care Services
http://statistics.data.gov.uk/doc/local-authority/00DA,Leeds City Council,Adult Social Care,Services For Older People Under 65 P/Dis,Third Party Payments,Home Care,568,21/10/2011,1110-00306,903.00,R,Angels Home Care Services
http://statistics.data.gov.uk/doc/local-authority/00DA,Leeds City Council,Adult Social Care,Services For Older People Under 65 P/Dis,Third Party Payments,Home Care,568,21/10/2011,1110-00307,1372.00,R,Angels Home Care Services
http://statistics.data.gov.uk/doc/local-authority/00DA,Leeds City Council,Adult Social Care,Services For Older People Under 65 P/Dis,Third Party Payments,Home Care,568,21/10/2011,1110-00308,1589.00,R,Angels Home Care Services
http://statistics.data.gov.uk/doc/local-authority/00DA,Leeds City Council,Adult Social Care,Services For Older People Under 65 P/Dis,Third Party Payments,Home Care,568,21/10/2011,1110-00309,2009.00,R,Angels Home Care Services
http://statistics.data.gov.uk/doc/local-authority/00DA,Leeds City Council,Adult Social Care,Services For Older People - 65 And Over,Third Party Payments,Home Care,568,27/10/2011,1110-00310,448.00,R,Angels Home Care Services
http://statistics.data.gov.uk/doc/local-authority/00DA,Leeds City Council,Adult Social Care,Services For Older People - 65 And Over,Third Party Payments,Home Care,568,27/10/2011,1110-00311,3250.50,R,Angels Home Care Services
http://statistics.data.gov.uk/doc/local-authority/00DA,Leeds City Council,Adult Social Care,Services For Older People - 65 And Over,Third Party Payments,Home Care,568,27/10/2011,1110-00312,4550.00,R,Angels Home Care Services
http://statistics.data.gov.uk/doc/local-authority/00DA,Leeds City Council,Adult Social Care,Services For Older People Under 65 P/Dis,Third Party Payments,Home Care,568,28/10/2011,1110-00313,2654.40,R,Angels Home Care Services
http://statistics.data.gov.uk/doc/local-authority/00DA,Leeds City Council,Adult Social Care,Services For Older People Under 65 P/Dis,Third Party Payments,Home Care,568,28/10/2011,1110-00314,3318.00,R,Angels Home Care Services
http://statistics.data.gov.uk/doc/local-authority/00DA,Leeds City Council,Environment & Neighbourhoods,Strategy & Commissioning,Supplies and Services,Non-Recurring Grants,227,07/10/2011,1110-00315,6800.00,R,Angels Housekeeping Cic Ltd
http://statistics.data.gov.uk/doc/local-authority/00DA,Leeds City Council,Childrens Services,Learning Skills & Universal,Third Party Payments,Services Rendered By Other Organisations,511,07/10/2011,1110-00316,1265.00,R,Angels Nursery
http://statistics.data.gov.uk/doc/local-authority/00DA,Leeds City Council,City Development,Libraries  Arts & Heritage,Supplies and Services,Bought In Professional Services,277,18/10/2011,1110-00317,577.00,R,Anita Morris Associates Ltd
http://statistics.data.gov.uk/doc/local-authority/00DA,Leeds City Council,City Development,Libraries  Arts & Heritage,Supplies and Services,Bought In Professional Services,277,18/10/2011,1110-00318,577.00,R,Anita Morris Associates Ltd
http://statistics.data.gov.uk/doc/local-authority/00DA,Leeds City Council,City Development,Libraries  Arts & Heritage,Supplies and Services,Bought In Professional Services,277,18/10/2011,1110-00319,577.00,R,Anita Morris Associates Ltd
http://statistics.data.gov.uk/doc/local-authority/00DA,Leeds City Council,City Development,Libraries  Arts & Heritage,Supplies and Services,Bought In Professional Services,277,18/10/2011,1110-00320,577.00,R,Anita Morris Associates Ltd
http://statistics.data.gov.uk/doc/local-authority/00DA,Leeds City Council,City Development,Libraries  Arts & Heritage,Precepts,Art Galleries Total Stores,003,11/10/2011,1110-00321,617.50,R,Ankh Of Harrogate
http://statistics.data.gov.uk/doc/local-authority/00DA,Leeds City Council,Childrens Services,Safeguarding Targeted & Specialist,Support Services,Legal Disbursements,411,06/10/2011,1110-00322,1429.50,R,Ann M Mortimer
http://statistics.data.gov.uk/doc/local-authority/00DA,Leeds City Council,Central & Corporate Functions,Support And Facilities Trading Services,Supplies and Services,Operational Materials,205,03/10/2011,1110-00323,469.00,R,Antalis Mcnaughton Limited
http://statistics.data.gov.uk/doc/local-authority/00DA,Leeds City Council,Central & Corporate Functions,Support And Facilities Trading Services,Supplies and Services,Operational Materials,205,14/10/2011,1110-00324,469.01,R,Antalis Mcnaughton Limited
http://statistics.data.gov.uk/doc/local-authority/00DA,Leeds City Council,Central & Corporate Functions,Support And Facilities Trading Services,Supplies and Services,Operational Materials,205,21/10/2011,1110-00325,469.00,R,Antalis Mcnaughton Limited
http://statistics.data.gov.uk/doc/local-authority/00DA,Leeds City Council,Central & Corporate Functions,Support And Facilities Trading Services,Supplies and Services,Operational Materials,205,28/10/2011,1110-00326,469.00,R,Antalis Mcnaughton Limited
http://statistics.data.gov.uk/doc/local-authority/00DA,Leeds City Council,Central & Corporate Functions,Support And Facilities Trading Services,Supplies and Services,Operational Materials,205,28/10/2011,1110-00327,469.00,R,Antalis Mcnaughton Limited
http://statistics.data.gov.uk/doc/local-authority/00DA,Leeds City Council,Central & Corporate Functions,Commercial Services Trading Services,Supplies and Services,Food & Drink,231,04/10/2011,1110-00328,1469.90,R,Apetito Ltd
http://statistics.data.gov.uk/doc/local-authority/00DA,Leeds City Council,Central & Corporate Functions,Commercial Services Trading Services,Supplies and Services,Food & Drink,231,07/10/2011,1110-00329,1205.95,R,Apetito Ltd
http://statistics.data.gov.uk/doc/local-authority/00DA,Leeds City Council,Central & Corporate Functions,Commercial Services Trading Services,Transport,External Hire- ( Fleet Management),313,12/10/2011,1110-00330,30375.00,R,Apetito Ltd
http://statistics.data.gov.uk/doc/local-authority/00DA,Leeds City Council,Central & Corporate Functions,Commercial Services Trading Services,Supplies and Services,Food & Drink,231,19/10/2011,1110-00331,540.43,R,Apetito Ltd
http://statistics.data.gov.uk/doc/local-authority/00DA,Leeds City Council,Central & Corporate Functions,Commercial Services Trading Services,Supplies and Services,Food & Drink,231,19/10/2011,1110-00332,911.43,R,Apetito Ltd
http://statistics.data.gov.uk/doc/local-authority/00DA,Leeds City Council,Central & Corporate Functions,Commercial Services Trading Services,Supplies and Services,Food & Drink,231,19/10/2011,1110-00333,1229.27,R,Apetito Ltd
http://statistics.data.gov.uk/doc/local-authority/00DA,Leeds City Council,Central & Corporate Functions,Commercial Services Trading Services,Supplies and Services,Food & Drink,231,19/10/2011,1110-00334,1482.77,R,Apetito Ltd
http://statistics.data.gov.uk/doc/local-authority/00DA,Leeds City Council,Central & Corporate Functions,Commercial Services Trading Services,Supplies and Services,Food & Drink,231,21/10/2011,1110-00335,1022.49,R,Apetito Ltd
http://statistics.data.gov.uk/doc/local-authority/00DA,Leeds City Council,Central & Corporate Functions,Commercial Services Trading Services,Supplies and Services,Food & Drink,231,21/10/2011,1110-00336,1296.69,R,Apetito Ltd
http://statistics.data.gov.uk/doc/local-authority/00DA,Leeds City Council,Central & Corporate Functions,Commercial Services Trading Services,Supplies and Services,Food & Drink,231,21/10/2011,1110-00337,1325.59,R,Apetito Ltd
http://statistics.data.gov.uk/doc/local-authority/00DA,Leeds City Council,Central & Corporate Functions,Commercial Services Trading Services,Supplies and Services,Food & Drink,231,28/10/2011,1110-00338,1447.44,R,Apetito Ltd
http://statistics.data.gov.uk/doc/local-authority/00DA,Leeds City Council,Central & Corporate Functions,Commercial Services Trading Services,Supplies and Services,Food & Drink,231,28/10/2011,1110-00339,1703.44,R,Apetito Ltd
http://statistics.data.gov.uk/doc/local-authority/00DA,Leeds City Council,Central & Corporate Functions,Commercial Services Trading Services,Supplies and Services,Food & Drink,231,28/10/2011,1110-00340,1862.39,R,Apetito Ltd
http://statistics.data.gov.uk/doc/local-authority/00DA,Leeds City Council,City Development,Economic Development,Supplies and Services,Advertising,211,31/10/2011,1110-00341,1700.00,R,Appeal Pr Ltd
http://statistics.data.gov.uk/doc/local-authority/00DA,Leeds City Council,City Development,Libraries  Arts & Heritage,Supplies and Services,Operational Furniture And Equipment,203,27/10/2011,1110-00342,860.00,R,Apple Display & Shopfitting Ltd
http://statistics.data.gov.uk/doc/local-authority/00DA,Leeds City Council as Accountable Body,Social Services Pooled Budgets,Jcs For People With Learning Disabilitie,Third Party Payments,Residential,580,26/10/2011,1110-00343,10647.76,R,Applewalk Homes
http://statistics.data.gov.uk/doc/local-authority/00DA,Leeds City Council,Environment & Neighbourhoods,Environmental Health,Capital,Construction,3,19/10/2011,1110-00344,3212.68,C,Aqua Interiors T/A V & T Plumbing
http://statistics.data.gov.uk/doc/local-authority/00DA,West - North West ,West - North West,Customer And Tenancy,Supplies and Services,Provisions,231,14/10/2011,1110-00345,516.80,R,Aquaid (West Yorkshire)
http://statistics.data.gov.uk/doc/local-authority/00DA,Leeds City Council as Accountable Body,Social Services Pooled Budgets,Jcs For People With Learning Disabilitie,Third Party Payments,Home Care,568,06/10/2011,1110-00346,417.00,R,Arabella Health Staffing Ltd
http://statistics.data.gov.uk/doc/local-authority/00DA,Leeds City Council as Accountable Body,Social Services Pooled Budgets,Jcs For People With Learning Disabilitie,Third Party Payments,Home Care,568,06/10/2011,1110-00347,729.72,R,Arabella Health Staffing Ltd
http://statistics.data.gov.uk/doc/local-authority/00DA,Leeds City Council as Accountable Body,Social Services Pooled Budgets,Jcs For People With Learning Disabilitie,Third Party Payments,Home Care,568,06/10/2011,1110-00348,1260.14,R,Arabella Health Staffing Ltd
http://statistics.data.gov.uk/doc/local-authority/00DA,Leeds City Council as Accountable Body,Social Services Pooled Budgets,Jcs For People With Learning Disabilitie,Third Party Payments,Home Care,568,13/10/2011,1110-00349,511.19,R,Arabella Health Staffing Ltd
http://statistics.data.gov.uk/doc/local-authority/00DA,Leeds City Council as Accountable Body,Social Services Pooled Budgets,Jcs For People With Learning Disabilitie,Third Party Payments,Home Care,568,13/10/2011,1110-00350,1583.37,R,Arabella Health Staffing Ltd
http://statistics.data.gov.uk/doc/local-authority/00DA,Leeds City Council as Accountable Body,Social Services Pooled Budgets,Jcs For People With Learning Disabilitie,Third Party Payments,Home Care,568,13/10/2011,1110-00351,2510.25,R,Arabella Health Staffing Ltd
http://statistics.data.gov.uk/doc/local-authority/00DA,Leeds City Council as Accountable Body,Social Services Pooled Budgets,Jcs For People With Learning Disabilitie,Third Party Payments,Home Care,568,21/10/2011,1110-00352,472.24,R,Arabella Health Staffing Ltd
http://statistics.data.gov.uk/doc/local-authority/00DA,Leeds City Council as Accountable Body,Social Services Pooled Budgets,Jcs For People With Learning Disabilitie,Third Party Payments,Home Care,568,21/10/2011,1110-00353,770.41,R,Arabella Health Staffing Ltd
http://statistics.data.gov.uk/doc/local-authority/00DA,Leeds City Council as Accountable Body,Social Services Pooled Budgets,Jcs For People With Learning Disabilitie,Third Party Payments,Home Care,568,21/10/2011,1110-00354,789.74,R,Arabella Health Staffing Ltd
http://statistics.data.gov.uk/doc/local-authority/00DA,Leeds City Council as Accountable Body,Social Services Pooled Budgets,Jcs For People With Learning Disabilitie,Third Party Payments,Home Care,568,21/10/2011,1110-00355,2143.56,R,Arabella Health Staffing Ltd
http://statistics.data.gov.uk/doc/local-authority/00DA,Leeds City Council as Accountable Body,Social Services Pooled Budgets,Jcs For People With Learning Disabilitie,Third Party Payments,Home Care,568,25/10/2011,1110-00356,511.19,R,Arabella Health Staffing Ltd
http://statistics.data.gov.uk/doc/local-authority/00DA,Leeds City Council as Accountable Body,Social Services Pooled Budgets,Jcs For People With Learning Disabilitie,Third Party Payments,Home Care,568,25/10/2011,1110-00357,540.06,R,Arabella Health Staffing Ltd
http://statistics.data.gov.uk/doc/local-authority/00DA,Leeds City Council as Accountable Body,Social Services Pooled Budgets,Jcs For People With Learning Disabilitie,Third Party Payments,Home Care,568,25/10/2011,1110-00358,1312.27,R,Arabella Health Staffing Ltd
http://statistics.data.gov.uk/doc/local-authority/00DA,Leeds City Council as Accountable Body,Social Services Pooled Budgets,Jcs For People With Learning Disabilitie,Third Party Payments,Home Care,568,26/10/2011,1110-00359,2673.84,R,Arabella Health Staffing Ltd
http://statistics.data.gov.uk/doc/local-authority/00DA,Leeds City Council,Central & Corporate Functions,Commercial Services Trading Services,Supplies and Services,Other Hired And Contracted Services,265,07/10/2011,1110-00360,503.02,R,Archbold Carshop Ltd
http://statistics.data.gov.uk/doc/local-authority/00DA,Leeds City Council,Central & Corporate Functions,Commercial Services Trading Services,Supplies and Services,Other Hired And Contracted Services,265,20/10/2011,1110-00361,558.42,R,Archbold Carshop Ltd
http://statistics.data.gov.uk/doc/local-authority/00DA,Leeds City Council,Central & Corporate Functions,Commercial Services Trading Services,Supplies and Services,Other Hired And Contracted Services,265,27/10/2011,1110-00362,810.54,R,Archbold Carshop Ltd
http://statistics.data.gov.uk/doc/local-authority/00DA,Leeds City Council,Environment & Neighbourhoods,Strategy & Commissioning,Supplies and Services,Non-Recurring Grants,227,07/10/2011,1110-00363,31880.00,R,Archway
http://statistics.data.gov.uk/doc/local-authority/00DA,Leeds City Council,Central & Corporate Functions,Commercial Services Trading Services,Supplies and Services,Operational Materials,205,04/10/2011,1110-00364,432.50,R,Arco Ltd
http://statistics.data.gov.uk/doc/local-authority/00DA,Leeds City Council,Central & Corporate Functions,Commercial Services Trading Services,Supplies and Services,Operational Materials,205,04/10/2011,1110-00365,461.70,R,Arco Ltd
http://statistics.data.gov.uk/doc/local-authority/00DA,East - North East,East - North East,Technical Services,Support Services,Health  Safety And Welfare,426,06/10/2011,1110-00366,427.19,R,Arco Ltd
http://statistics.data.gov.uk/doc/local-authority/00DA,Leeds City Council,City Development,Recreation,Supplies and Services,Operational Furniture And Equipment,203,12/10/2011,1110-00367,540.00,R,Arco Ltd
http://statistics.data.gov.uk/doc/local-authority/00DA,Leeds City Council,Central & Corporate Functions,Commercial Services Trading Services,Supplies and Services,Clothing & Uniforms,241,25/10/2011,1110-00368,-1024.32,R,Arco Ltd
http://statistics.data.gov.uk/doc/local-authority/00DA,West - North West ,West - North West,Corporate Services,Supplies and Services,Clothing & Uniforms,241,25/10/2011,1110-00369,747.99,R,Arco Ltd
http://statistics.data.gov.uk/doc/local-authority/00DA,Leeds City Council,Central & Corporate Functions,Commercial Services Trading Services,Supplies and Services,Operational Materials,205,26/10/2011,1110-00370,-1692.90,R,Arco Ltd
http://statistics.data.gov.uk/doc/local-authority/00DA,Leeds City Council,Central & Corporate Functions,Commercial Services Trading Services,Supplies and Services,Operational Materials,205,26/10/2011,1110-00371,666.90,R,Arco Ltd
http://statistics.data.gov.uk/doc/local-authority/00DA,Leeds City Council,Central & Corporate Functions,Commercial Services Trading Services,Supplies and Services,Operational Materials,205,26/10/2011,1110-00372,1026.00,R,Arco Ltd
http://statistics.data.gov.uk/doc/local-authority/00DA,Leeds City Council,Central & Corporate Functions,Commercial Services Trading Services,Supplies and Services,Clothing & Uniforms,241,27/10/2011,1110-00373,681.36,R,Arco Ltd
http://statistics.data.gov.uk/doc/local-authority/00DA,East - North East,East - North East,Construction Services,Supplies and Services,Other Materials,205,28/10/2011,1110-00374,774.16,R,Arco Ltd
http://statistics.data.gov.uk/doc/local-authority/00DA,Leeds City Council,Environment & Neighbourhoods,Streetscene Environmental Services,Supplies and Services,Clothing & Uniforms,241,10/10/2011,1110-00375,4959.75,R,Arden Winch And Company Limited
http://statistics.data.gov.uk/doc/local-authority/00DA,Aire Valley Homes Leeds,Aire Valley Homes Leeds,Aire Valley Homes Leeds,Supplies and Services,Information Technology (Computers),214,06/10/2011,1110-00376,1950.00,R,Arena Partnership Limited
http://statistics.data.gov.uk/doc/local-authority/00DA,Leeds City Council,City Development,Recreation,Supplies and Services,Publication And Promotion,267,21/10/2011,1110-00377,791.00,R,Argon Promotions
http://statistics.data.gov.uk/doc/local-authority/00DA,Leeds City Council,Environment & Neighbourhoods,Environmental Health,Supplies and Services,Bought In Professional Services,277,05/10/2011,1110-00378,658.30,R,Ari Environmental Services Ltd
http://statistics.data.gov.uk/doc/local-authority/00DA,Leeds City Council,Environment & Neighbourhoods,Environmental Health,Supplies and Services,Bought In Professional Services,277,05/10/2011,1110-00379,1255.65,R,Ari Environmental Services Ltd
http://statistics.data.gov.uk/doc/local-authority/00DA,Leeds City Council,Environment & Neighbourhoods,Environmental Health,Supplies and Services,Bought In Professional Services,277,05/10/2011,1110-00380,2573.80,R,Ari Environmental Services Ltd
http://statistics.data.gov.uk/doc/local-authority/00DA,East - North East,East - North East,Technical Services,Supplies and Services,Other Hired And Contracted Services,265,25/10/2011,1110-00381,10500.00,R,Ariba
http://statistics.data.gov.uk/doc/local-authority/00DA,Leeds City Council,City Development,Highways,Transport,Plant Hire - By Directorate,305,19/10/2011,1110-00382,2000.00,R,Armcon Limited
http://statistics.data.gov.uk/doc/local-authority/00DA,Leeds City Council,Childrens Services,Learning Skills & Universal,Third Party Payments,Services Rendered By Voluntary Sector,505,17/10/2011,1110-00383,4070.00,R,Armley Juniors
http://statistics.data.gov.uk/doc/local-authority/00DA,Leeds City Council,Childrens Services,Learning Skills & Universal,Third Party Payments,Services Rendered By Voluntary Sector,505,17/10/2011,1110-00384,7126.00,R,Armley Juniors
http://statistics.data.gov.uk/doc/local-authority/00DA,East - North East,East - North East,Construction Services,Supplies and Services,Other Materials,205,07/10/2011,1110-00385,619.93,R,Arnold Laver & Co Ltd
http://statistics.data.gov.uk/doc/local-authority/00DA,East - North East,East - North East,Construction Services,Supplies and Services,Other Materials,205,14/10/2011,1110-00386,543.93,R,Arnold Laver & Co Ltd
http://statistics.data.gov.uk/doc/local-authority/00DA,East - North East,East - North East,Construction Services,Supplies and Services,Other Materials,205,25/10/2011,1110-00387,803.33,R,Arnold Laver & Co Ltd
http://statistics.data.gov.uk/doc/local-authority/00DA,East - North East,East - North East,Construction Services,Supplies and Services,Other Materials,205,28/10/2011,1110-00388,926.63,R,Arnold Laver & Co Ltd
http://statistics.data.gov.uk/doc/local-authority/00DA,Leeds City Council,Central & Corporate Functions,Commercial Services Trading Services,Supplies and Services,Operational Materials,205,06/10/2011,1110-00389,963.43,R,Arnold Laver Timber World
http://statistics.data.gov.uk/doc/local-authority/00DA,East - North East,East - North East,Technical Services,Supplies and Services,Other Hired And Contracted Services,265,07/10/2011,1110-00390,3300.00,R,Arr Spend Management Solutions
http://statistics.data.gov.uk/doc/local-authority/00DA,East - North East,East - North East,Technical Services,Supplies and Services,Other Hired And Contracted Services,265,21/10/2011,1110-00391,4440.00,R,Arr Spend Management Solutions
http://statistics.data.gov.uk/doc/local-authority/00DA,Leeds City Council,Adult Social Care,Services For Older People - 65 And Over,Third Party Payments,Nursing Home,570,27/10/2011,1110-00392,1347.20,R,Arrigadeen Nursing Home
http://statistics.data.gov.uk/doc/local-authority/00DA,Leeds City Council,Strategic Accounts,Miscellaneous,Supplies and Services,Non-Recurring Grants,227,20/10/2011,1110-00393,500.00,R,Art For Barwick Children
http://statistics.data.gov.uk/doc/local-authority/00DA,Leeds City Council as Accountable Body,Social Services Pooled Budgets,Jcs For People With Learning Disabilitie,Third Party Payments,Other Agency Services,561,05/10/2011,1110-00394,2046.91,R,Articulate Advocacy
http://statistics.data.gov.uk/doc/local-authority/00DA,Leeds City Council,Adult Social Care,Social Services Support Services,Third Party Payments,Payments To Voluntary Organisations,561,24/10/2011,1110-00395,1913.79,R,Articulate Advocacy
http://statistics.data.gov.uk/doc/local-authority/00DA,Leeds City Council,Adult Social Care,Social Services Support Services,Third Party Payments,Payments To Voluntary Organisations,561,24/10/2011,1110-00396,9209.46,R,Articulate Advocacy
http://statistics.data.gov.uk/doc/local-authority/00DA,Leeds City Council,Adult Social Care,Social Services Support Services,Third Party Payments,Services Rendered By Voluntary Sector,505,26/10/2011,1110-00397,1718.86,R,Articulate Advocacy
http://statistics.data.gov.uk/doc/local-authority/00DA,Leeds City Council,Adult Social Care,Social Services Support Services,Third Party Payments,Services Rendered By Voluntary Sector,505,26/10/2011,1110-00398,1790.49,R,Articulate Advocacy
http://statistics.data.gov.uk/doc/local-authority/00DA,Leeds City Council,Adult Social Care,Social Services Support Services,Third Party Payments,Services Rendered By Voluntary Sector,505,26/10/2011,1110-00399,1940.20,R,Articulate Advocacy
http://statistics.data.gov.uk/doc/local-authority/00DA,Leeds City Council,Adult Social Care,Social Services Support Services,Third Party Payments,Services Rendered By Voluntary Sector,505,26/10/2011,1110-00400,8597.70,R,Articulate Advocacy
http://statistics.data.gov.uk/doc/local-authority/00DA,Leeds City Council,Adult Social Care,Social Services Support Services,Third Party Payments,Services Rendered By Voluntary Sector,505,26/10/2011,1110-00401,8752.84,R,Articulate Advocacy
http://statistics.data.gov.uk/doc/local-authority/00DA,Leeds City Council,Adult Social Care,Social Services Support Services,Third Party Payments,Services Rendered By Voluntary Sector,505,31/10/2011,1110-00402,640.31,R,Articulate Advocacy
http://statistics.data.gov.uk/doc/local-authority/00DA,Leeds City Council,Adult Social Care,Social Services Support Services,Third Party Payments,Services Rendered By Voluntary Sector,505,31/10/2011,1110-00403,1131.52,R,Articulate Advocacy
http://statistics.data.gov.uk/doc/local-authority/00DA,Leeds City Council,Childrens Services,Learning Skills & Universal,Transport,Fuel (Non LCC Supplies),321,07/10/2011,1110-00404,1321.32,R,Arval Phh Business Solutions Ltd
http://statistics.data.gov.uk/doc/local-authority/00DA,Leeds City Council,Central & Corporate Functions,Commercial Services Trading Services,Supplies and Services,Other Hired And Contracted Services,265,07/10/2011,1110-00405,607.50,R,Asbestos Sample Analysis Limited
http://statistics.data.gov.uk/doc/local-authority/00DA,Leeds City Council,Central & Corporate Functions,Commercial Services Trading Services,Supplies and Services,Other Hired And Contracted Services,265,20/10/2011,1110-00406,457.50,R,Asbestos Sample Analysis Limited
http://statistics.data.gov.uk/doc/local-authority/00DA,Leeds City Council,Central & Corporate Functions,Commercial Services Trading Services,Supplies and Services,Other Hired And Contracted Services,265,20/10/2011,1110-00407,712.50,R,Asbestos Sample Analysis Limited
http://statistics.data.gov.uk/doc/local-authority/00DA,Leeds City Council,Central & Corporate Functions,Commercial Services Trading Services,Supplies and Services,Other Hired And Contracted Services,265,21/10/2011,1110-00408,457.50,R,Asbestos Sample Analysis Limited
http://statistics.data.gov.uk/doc/local-authority/00DA,Leeds City Council,Central & Corporate Functions,Commercial Services Trading Services,Supplies and Services,Other Hired And Contracted Services,265,27/10/2011,1110-00409,832.50,R,Asbestos Sample Analysis Limited
http://statistics.data.gov.uk/doc/local-authority/00DA,Leeds City Council,Central & Corporate Functions,Commercial Services Trading Services,Supplies and Services,Operational Furniture And Equipment,203,15/09/2011,1110-00410,870.00,R,Ascertiva Group Ltd
http://statistics.data.gov.uk/doc/local-authority/00DA,Leeds City Council,Central & Corporate Functions,Support And Facilities Trading Services,Supplies and Services,Operational Materials,205,19/10/2011,1110-00411,427.50,R,Asd Metal Services
http://statistics.data.gov.uk/doc/local-authority/00DA,Leeds City Council,Central & Corporate Functions,Support And Facilities Trading Services,Supplies and Services,Operational Materials,205,26/10/2011,1110-00412,1255.50,R,Asd Metal Services
http://statistics.data.gov.uk/doc/local-authority/00DA,Leeds City Council,City Development,Asset Management Services,Premises,Rents,141,14/10/2011,1110-00413,17017.50,R,Asda Stores Limited
http://statistics.data.gov.uk/doc/local-authority/00DA,Leeds City Council,Adult Social Care,Services For Older People - 65 And Over,Third Party Payments,Residential,580,26/10/2011,1110-00414,7185.81,R,Ashcroft House Residential Home
http://statistics.data.gov.uk/doc/local-authority/00DA,Leeds City Council,Adult Social Care,Services For Older People - 65 And Over,Third Party Payments,Nursing Home,570,26/10/2011,1110-00415,1253.24,R,Ashcroft Nursing Home
http://statistics.data.gov.uk/doc/local-authority/00DA,Leeds City Council,Adult Social Care,Services For Older People - 65 And Over,Third Party Payments,Residential Care Emi,571,26/10/2011,1110-00416,782.16,R,Ashcroft Nursing Home
http://statistics.data.gov.uk/doc/local-authority/00DA,Leeds City Council,Adult Social Care,Services For Older People - 65 And Over,Third Party Payments,Nursing Home,570,26/10/2011,1110-00417,2304.12,R,Ashcroft Nursing Home
http://statistics.data.gov.uk/doc/local-authority/00DA,Leeds City Council,Adult Social Care,Services For Older People - 65 And Over,Third Party Payments,Residential Care Emi,571,26/10/2011,1110-00418,660.48,R,Ashfield Court
http://statistics.data.gov.uk/doc/local-authority/00DA,Leeds City Council,Adult Social Care,Services For Older People - 65 And Over,Third Party Payments,Residential,580,26/10/2011,1110-00419,565.80,R,Ashfield Court
http://statistics.data.gov.uk/doc/local-authority/00DA,Leeds City Council,Adult Social Care,Services For Older People - 65 And Over,Third Party Payments,Nursing Home,570,26/10/2011,1110-00420,17888.14,R,Ashfield Nursing Home
http://statistics.data.gov.uk/doc/local-authority/00DA,Leeds City Council,Adult Social Care,Services For Adults Under 65 Mental/Dis,Third Party Payments,Residential,580,26/10/2011,1110-00421,2318.40,R,Ashfield Nursing Home
http://statistics.data.gov.uk/doc/local-authority/00DA,Leeds City Council,Adult Social Care,Services For Older People - 65 And Over,Third Party Payments,Residential,580,26/10/2011,1110-00422,2697.88,R,Ashfield Nursing Home
http://statistics.data.gov.uk/doc/local-authority/00DA,Leeds City Council,Adult Social Care,Services For Older People - 65 And Over,Third Party Payments,Nursing Home,570,26/10/2011,1110-00423,1504.00,R,Ashley Care Ltd
http://statistics.data.gov.uk/doc/local-authority/00DA,Leeds City Council,Childrens Services,Learning Skills & Universal,Supplies and Services,Other Hired And Contracted Services,265,10/10/2011,1110-00424,7682.04,R,Ashtead Plant Hire Company Ltd
http://statistics.data.gov.uk/doc/local-authority/00DA,Leeds City Council,City Development,Highways,Transport,Plant Hire - By Directorate,305,24/10/2011,1110-00425,759.00,R,Ashtead Plant Hire Company Ltd
http://statistics.data.gov.uk/doc/local-authority/00DA,Leeds City Council,City Development,Highways,Transport,Plant Hire - By Directorate,305,24/10/2011,1110-00426,759.00,R,Ashtead Plant Hire Company Ltd
http://statistics.data.gov.uk/doc/local-authority/00DA,Leeds City Council,City Development,Highways,Transport,Plant Hire - By Directorate,305,24/10/2011,1110-00427,759.00,R,Ashtead Plant Hire Company Ltd
http://statistics.data.gov.uk/doc/local-authority/00DA,Leeds City Council,City Development,Highways,Transport,Plant Hire - By Directorate,305,24/10/2011,1110-00428,759.00,R,Ashtead Plant Hire Company Ltd
http://statistics.data.gov.uk/doc/local-authority/00DA,Leeds City Council,Adult Social Care,Services For Older People - 65 And Over,Third Party Payments,Residential Care Emi,571,26/10/2011,1110-00429,981.44,R,Ashville Care Home
http://statistics.data.gov.uk/doc/local-authority/00DA,Leeds City Council,Adult Social Care,Services For Older People - 65 And Over,Third Party Payments,Residential,580,27/10/2011,1110-00430,1121.92,R,Ashworth Grange
http://statistics.data.gov.uk/doc/local-authority/00DA,Leeds City Council,City Development,Libraries  Arts & Heritage,Supplies and Services,Books & Audio-Visual Materials,206,03/10/2011,1110-00431,587.88,R,Askews & Holts
http://statistics.data.gov.uk/doc/local-authority/00DA,Leeds City Council,City Development,Libraries  Arts & Heritage,Supplies and Services,Books & Audio-Visual Materials,206,03/10/2011,1110-00432,1411.55,R,Askews & Holts
http://statistics.data.gov.uk/doc/local-authority/00DA,Leeds City Council,City Development,Libraries  Arts & Heritage,Supplies and Services,Books & Audio-Visual Materials,206,03/10/2011,1110-00433,1448.44,R,Askews & Holts
http://statistics.data.gov.uk/doc/local-authority/00DA,Leeds City Council,City Development,Libraries  Arts & Heritage,Supplies and Services,Books & Audio-Visual Materials,206,03/10/2011,1110-00434,3246.91,R,Askews & Holts
http://statistics.data.gov.uk/doc/local-authority/00DA,Leeds City Council,City Development,Libraries  Arts & Heritage,Supplies and Services,Books & Audio-Visual Materials,206,03/10/2011,1110-00435,4066.25,R,Askews & Holts
http://statistics.data.gov.uk/doc/local-authority/00DA,Leeds City Council,City Development,Libraries  Arts & Heritage,Supplies and Services,Books & Audio-Visual Materials,206,03/10/2011,1110-00436,5546.33,R,Askews & Holts
http://statistics.data.gov.uk/doc/local-authority/00DA,Leeds City Council,City Development,Libraries  Arts & Heritage,Supplies and Services,Books & Audio-Visual Materials,206,10/10/2011,1110-00437,452.70,R,Askews & Holts
http://statistics.data.gov.uk/doc/local-authority/00DA,Leeds City Council,City Development,Libraries  Arts & Heritage,Supplies and Services,Books & Audio-Visual Materials,206,10/10/2011,1110-00438,615.77,R,Askews & Holts
http://statistics.data.gov.uk/doc/local-authority/00DA,Leeds City Council,City Development,Libraries  Arts & Heritage,Supplies and Services,Books & Audio-Visual Materials,206,10/10/2011,1110-00439,703.55,R,Askews & Holts
http://statistics.data.gov.uk/doc/local-authority/00DA,Leeds City Council,City Development,Libraries  Arts & Heritage,Supplies and Services,Books & Audio-Visual Materials,206,10/10/2011,1110-00440,1023.37,R,Askews & Holts
http://statistics.data.gov.uk/doc/local-authority/00DA,Leeds City Council,City Development,Libraries  Arts & Heritage,Supplies and Services,Books & Audio-Visual Materials,206,10/10/2011,1110-00441,3388.78,R,Askews & Holts
http://statistics.data.gov.uk/doc/local-authority/00DA,Leeds City Council,City Development,Libraries  Arts & Heritage,Supplies and Services,Books & Audio-Visual Materials,206,10/10/2011,1110-00442,4304.16,R,Askews & Holts
http://statistics.data.gov.uk/doc/local-authority/00DA,Leeds City Council,City Development,Libraries  Arts & Heritage,Supplies and Services,Books & Audio-Visual Materials,206,10/10/2011,1110-00443,4599.59,R,Askews & Holts
http://statistics.data.gov.uk/doc/local-authority/00DA,Leeds City Council,City Development,Libraries  Arts & Heritage,Supplies and Services,Books & Audio-Visual Materials,206,10/10/2011,1110-00444,5203.89,R,Askews & Holts
http://statistics.data.gov.uk/doc/local-authority/00DA,Leeds City Council,City Development,Libraries  Arts & Heritage,Supplies and Services,Books & Audio-Visual Materials,206,18/10/2011,1110-00445,554.24,R,Askews & Holts
http://statistics.data.gov.uk/doc/local-authority/00DA,Leeds City Council,City Development,Libraries  Arts & Heritage,Supplies and Services,Books & Audio-Visual Materials,206,18/10/2011,1110-00446,954.28,R,Askews & Holts
http://statistics.data.gov.uk/doc/local-authority/00DA,Leeds City Council,City Development,Libraries  Arts & Heritage,Supplies and Services,Books & Audio-Visual Materials,206,18/10/2011,1110-00447,1230.00,R,Askews & Holts
http://statistics.data.gov.uk/doc/local-authority/00DA,Leeds City Council,City Development,Libraries  Arts & Heritage,Supplies and Services,Books & Audio-Visual Materials,206,18/10/2011,1110-00448,3913.27,R,Askews & Holts
http://statistics.data.gov.uk/doc/local-authority/00DA,Leeds City Council,City Development,Libraries  Arts & Heritage,Supplies and Services,Books & Audio-Visual Materials,206,18/10/2011,1110-00449,4262.35,R,Askews & Holts
http://statistics.data.gov.uk/doc/local-authority/00DA,Leeds City Council,City Development,Libraries  Arts & Heritage,Supplies and Services,Books & Audio-Visual Materials,206,20/10/2011,1110-00450,558.45,R,Askews & Holts
http://statistics.data.gov.uk/doc/local-authority/00DA,Leeds City Council,City Development,Libraries  Arts & Heritage,Supplies and Services,Books & Audio-Visual Materials,206,24/10/2011,1110-00451,793.28,R,Askews & Holts
http://statistics.data.gov.uk/doc/local-authority/00DA,Leeds City Council,City Development,Libraries  Arts & Heritage,Supplies and Services,Books & Audio-Visual Materials,206,24/10/2011,1110-00452,1858.89,R,Askews & Holts
http://statistics.data.gov.uk/doc/local-authority/00DA,Leeds City Council,City Development,Libraries  Arts & Heritage,Supplies and Services,Books & Audio-Visual Materials,206,24/10/2011,1110-00453,3925.92,R,Askews & Holts
http://statistics.data.gov.uk/doc/local-authority/00DA,Leeds City Council,City Development,Libraries  Arts & Heritage,Supplies and Services,Books & Audio-Visual Materials,206,24/10/2011,1110-00454,3961.65,R,Askews & Holts
http://statistics.data.gov.uk/doc/local-authority/00DA,Leeds City Council,City Development,Libraries  Arts & Heritage,Supplies and Services,Books & Audio-Visual Materials,206,27/10/2011,1110-00455,903.12,R,Askews & Holts
http://statistics.data.gov.uk/doc/local-authority/00DA,Leeds City Council,Childrens Services,Learning Skills & Universal,Premises,Maintenance Of Buildings,101,21/10/2011,1110-00456,1152.08,R,Aspect Building Solutions
http://statistics.data.gov.uk/doc/local-authority/00DA,Leeds City Council,Other Education Services,Primary Schools,Capital,Construction,3,27/10/2011,1110-00457,27469.25,C,Aspect Building Solutions
http://statistics.data.gov.uk/doc/local-authority/00DA,Leeds City Council,Other Education Services,Primary Schools,Capital,Construction,3,27/10/2011,1110-00458,38508.34,C,Aspect Building Solutions
http://statistics.data.gov.uk/doc/local-authority/00DA,Leeds City Council,City Development,Highways,Transport,Plant Hire - By Directorate,305,03/10/2011,1110-00459,495.00,R,Asphalt Pavers
http://statistics.data.gov.uk/doc/local-authority/00DA,Leeds City Council,City Development,Highways,Transport,Plant Hire - By Directorate,305,03/10/2011,1110-00460,632.00,R,Asphalt Pavers
http://statistics.data.gov.uk/doc/local-authority/00DA,Leeds City Council,City Development,Highways,Transport,Plant Hire - By Directorate,305,03/10/2011,1110-00461,790.00,R,Asphalt Pavers
http://statistics.data.gov.uk/doc/local-authority/00DA,Leeds City Council,City Development,Highways,Transport,Plant Hire - By Directorate,305,03/10/2011,1110-00462,790.00,R,Asphalt Pavers
http://statistics.data.gov.uk/doc/local-authority/00DA,Leeds City Council,City Development,Highways,Transport,Plant Hire - By Directorate,305,03/10/2011,1110-00463,790.00,R,Asphalt Pavers
http://statistics.data.gov.uk/doc/local-authority/00DA,Leeds City Council,City Development,Highways,Transport,Plant Hire - By Directorate,305,03/10/2011,1110-00464,917.50,R,Asphalt Pavers
http://statistics.data.gov.uk/doc/local-authority/00DA,Leeds City Council,City Development,Highways,Transport,Plant Hire - By Directorate,305,03/10/2011,1110-00465,990.00,R,Asphalt Pavers
http://statistics.data.gov.uk/doc/local-authority/00DA,Leeds City Council,City Development,Highways,Transport,Plant Hire - By Directorate,305,03/10/2011,1110-00466,1064.00,R,Asphalt Pavers
http://statistics.data.gov.uk/doc/local-authority/00DA,Leeds City Council,City Development,Highways,Transport,Plant Hire - By Directorate,305,03/10/2011,1110-00467,1064.00,R,Asphalt Pavers
http://statistics.data.gov.uk/doc/local-authority/00DA,Leeds City Council,City Development,Highways,Transport,Plant Hire - By Directorate,305,03/10/2011,1110-00468,3061.00,R,Asphalt Pavers
http://statistics.data.gov.uk/doc/local-authority/00DA,Leeds City Council,City Development,Highways,Transport,Plant Hire - By Directorate,305,14/10/2011,1110-00469,635.00,R,Asphalt Pavers
http://statistics.data.gov.uk/doc/local-authority/00DA,Leeds City Council,City Development,Highways,Transport,Plant Hire - By Directorate,305,14/10/2011,1110-00470,790.00,R,Asphalt Pavers
http://statistics.data.gov.uk/doc/local-authority/00DA,Leeds City Council,City Development,Highways,Transport,Plant Hire - By Directorate,305,14/10/2011,1110-00471,3152.00,R,Asphalt Pavers
http://statistics.data.gov.uk/doc/local-authority/00DA,Leeds City Council,City Development,Highways,Transport,Plant Hire - By Directorate,305,21/10/2011,1110-00472,790.00,R,Asphalt Pavers
http://statistics.data.gov.uk/doc/local-authority/00DA,Leeds City Council,City Development,Highways,Transport,Plant Hire - By Directorate,305,21/10/2011,1110-00473,790.00,R,Asphalt Pavers
http://statistics.data.gov.uk/doc/local-authority/00DA,Leeds City Council,City Development,Highways,Transport,Plant Hire - By Directorate,305,28/10/2011,1110-00474,790.00,R,Asphalt Pavers
http://statistics.data.gov.uk/doc/local-authority/00DA,Leeds City Council,City Development,Highways,Transport,Plant Hire - By Directorate,305,28/10/2011,1110-00475,790.00,R,Asphalt Pavers
http://statistics.data.gov.uk/doc/local-authority/00DA,Leeds City Council,City Development,Highways,Transport,Plant Hire - By Directorate,305,28/10/2011,1110-00476,895.00,R,Asphalt Pavers
http://statistics.data.gov.uk/doc/local-authority/00DA,Leeds City Council,City Development,Highways,Transport,Plant Hire - By Directorate,305,28/10/2011,1110-00477,1021.00,R,Asphalt Pavers
http://statistics.data.gov.uk/doc/local-authority/00DA,Leeds City Council,City Development,Highways,Transport,Plant Hire - By Directorate,305,28/10/2011,1110-00478,1300.00,R,Asphalt Pavers
http://statistics.data.gov.uk/doc/local-authority/00DA,Leeds City Council,City Development,Highways,Transport,Plant Hire - By Directorate,305,28/10/2011,1110-00479,1300.00,R,Asphalt Pavers
http://statistics.data.gov.uk/doc/local-authority/00DA,Leeds City Council,City Development,Highways,Transport,Plant Hire - By Directorate,305,28/10/2011,1110-00480,1791.00,R,Asphalt Pavers
http://statistics.data.gov.uk/doc/local-authority/00DA,Leeds City Council,City Development,Highways,Transport,Plant Hire - By Directorate,305,28/10/2011,1110-00481,2237.00,R,Asphalt Pavers
http://statistics.data.gov.uk/doc/local-authority/00DA,Leeds City Council,Childrens Services,Learning Skills & Universal,Supplies and Services,Other Hired And Contracted Services,265,21/10/2011,1110-00482,5992.00,R,Aspire Creative Llp
http://statistics.data.gov.uk/doc/local-authority/00DA,Leeds City Council,Central & Corporate Functions,Commercial Services Trading Services,Supplies and Services,Operational Furniture And Equipment,203,07/09/2011,1110-00483,649.00,R,Aspli Safety Equipment
http://statistics.data.gov.uk/doc/local-authority/00DA,Leeds City Council,Environment & Neighbourhoods,West North West,Capital,Construction,3,13/10/2011,1110-00484,2165.00,C,Asprey Bros Ltd
http://statistics.data.gov.uk/doc/local-authority/00DA,Leeds City Council,Environment & Neighbourhoods,East North East,Capital,Construction,3,21/10/2011,1110-00485,16235.00,C,Asprey Bros Ltd
http://statistics.data.gov.uk/doc/local-authority/00DA,Leeds City Council,Childrens Services,Learning Skills & Universal,Third Party Payments,Services Rendered By Other Organisations,511,07/10/2011,1110-00486,507.00,R,Asquith Court Nursery
http://statistics.data.gov.uk/doc/local-authority/00DA,Leeds City Council,Central & Corporate Functions,Commercial Services Trading Services,Premises,Removal of workplace waste,126,09/09/2011,1110-00487,1395.00,R,Associated Waste Management
http://statistics.data.gov.uk/doc/local-authority/00DA,Leeds City Council,Central & Corporate Functions,Commercial Services Trading Services,Premises,Removal of workplace waste,126,22/09/2011,1110-00488,1324.87,R,Associated Waste Management
http://statistics.data.gov.uk/doc/local-authority/00DA,Leeds City Council,City Development,Recreation,Premises,Removal Of Workplace Waste,126,04/10/2011,1110-00489,650.00,R,Associated Waste Management Limited
http://statistics.data.gov.uk/doc/local-authority/00DA,Leeds City Council,City Development,Recreation,Premises,Removal Of Workplace Waste,126,04/10/2011,1110-00490,686.42,R,Associated Waste Management Limited
http://statistics.data.gov.uk/doc/local-authority/00DA,Leeds City Council,City Development,Recreation,Premises,Removal Of Workplace Waste,126,05/10/2011,1110-00491,426.00,R,Associated Waste Management Limited
http://statistics.data.gov.uk/doc/local-authority/00DA,Leeds City Council,Environment & Neighbourhoods,Streetscene Environmental Services,Supplies and Services,Recycling & Reuse Charges,234,07/10/2011,1110-00492,6282.42,R,Associated Waste Management Limited
http://statistics.data.gov.uk/doc/local-authority/00DA,Leeds City Council,Environment & Neighbourhoods,Streetscene Environmental Services,Supplies and Services,Waste Disposal Charges,236,07/10/2011,1110-00493,11667.33,R,Associated Waste Management Limited
http://statistics.data.gov.uk/doc/local-authority/00DA,Leeds City Council,Environment & Neighbourhoods,Streetscene Environmental Services,Supplies and Services,Waste Disposal Charges,236,07/10/2011,1110-00494,21925.17,R,Associated Waste Management Limited
http://statistics.data.gov.uk/doc/local-authority/00DA,Leeds City Council,Central & Corporate Functions,Commercial Services Trading Services,Supplies and Services,Other Hired And Contracted Services,265,07/10/2011,1110-00495,743.00,R,Associated Waste Management Limited
http://statistics.data.gov.uk/doc/local-authority/00DA,Leeds City Council,City Development,Recreation,Premises,Removal Of Workplace Waste,126,13/10/2011,1110-00496,1016.00,R,Associated Waste Management Limited
http://statistics.data.gov.uk/doc/local-authority/00DA,Leeds City Council,Central & Corporate Functions,Support And Facilities General Fund,Premises,Removal Of Workplace Waste,126,14/10/2011,1110-00497,433.00,R,Associated Waste Management Limited
http://statistics.data.gov.uk/doc/local-authority/00DA,Leeds City Council,City Development,Libraries  Arts & Heritage,Premises,Removal Of Workplace Waste,126,14/10/2011,1110-00498,1116.00,R,Associated Waste Management Limited
http://statistics.data.gov.uk/doc/local-authority/00DA,Leeds City Council,City Development,Recreation,Premises,Removal Of Workplace Waste,126,17/10/2011,1110-00499,426.00,R,Associated Waste Management Limited
http://statistics.data.gov.uk/doc/local-authority/00DA,Leeds City Council,City Development,Recreation,Premises,Removal Of Workplace Waste,126,20/10/2011,1110-00500,1517.08,R,Associated Waste Management Limited
http://statistics.data.gov.uk/doc/local-authority/00DA,Leeds City Council,City Development,Recreation,Premises,Removal Of Workplace Waste,126,25/10/2011,1110-00501,1066.39,R,Associated Waste Management Limited
http://statistics.data.gov.uk/doc/local-authority/00DA,Leeds City Council,Environment & Neighbourhoods,Streetscene Environmental Services,Supplies and Services,Recycling & Reuse Charges,234,25/10/2011,1110-00502,6331.01,R,Associated Waste Management Limited
http://statistics.data.gov.uk/doc/local-authority/00DA,Leeds City Council,Environment & Neighbourhoods,Streetscene Environmental Services,Supplies and Services,Waste Disposal Charges,236,25/10/2011,1110-00503,12075.00,R,Associated Waste Management Limited
http://statistics.data.gov.uk/doc/local-authority/00DA,Leeds City Council,Environment & Neighbourhoods,Streetscene Environmental Services,Supplies and Services,Waste Disposal Charges,236,25/10/2011,1110-00504,21777.40,R,Associated Waste Management Limited
http://statistics.data.gov.uk/doc/local-authority/00DA,Leeds City Council,Environment & Neighbourhoods,Streetscene Environmental Services,Supplies and Services,Recycling & Reuse Charges,234,26/10/2011,1110-00505,5198.94,R,Associated Waste Management Limited
http://statistics.data.gov.uk/doc/local-authority/00DA,Leeds City Council,Environment & Neighbourhoods,Streetscene Environmental Services,Supplies and Services,Waste Disposal Charges,236,26/10/2011,1110-00506,9655.20,R,Associated Waste Management Limited
http://statistics.data.gov.uk/doc/local-authority/00DA,Leeds City Council,Environment & Neighbourhoods,Streetscene Environmental Services,Supplies and Services,Waste Disposal Charges,236,26/10/2011,1110-00507,18143.94,R,Associated Waste Management Limited
http://statistics.data.gov.uk/doc/local-authority/00DA,Leeds City Council,Adult Social Care,Roseville Enterprises,Premises,Removal Of Workplace Waste,126,28/10/2011,1110-00508,-4136.02,R,Associated Waste Management Limited
http://statistics.data.gov.uk/doc/local-authority/00DA,Leeds City Council,Adult Social Care,Roseville Enterprises,Premises,Removal Of Workplace Waste,126,28/10/2011,1110-00509,4377.74,R,Associated Waste Management Limited
http://statistics.data.gov.uk/doc/local-authority/00DA,Leeds City Council,City Development,Recreation,Premises,Removal Of Workplace Waste,126,28/10/2011,1110-00510,568.00,R,Associated Waste Management Limited
http://statistics.data.gov.uk/doc/local-authority/00DA,Leeds City Council,City Development,Recreation,Premises,Removal Of Workplace Waste,126,28/10/2011,1110-00511,1010.68,R,Associated Waste Management Limited
http://statistics.data.gov.uk/doc/local-authority/00DA,Leeds City Council,Central & Corporate Functions,Corporate Governance,Supplies and Services,Memberships,226,21/10/2011,1110-00512,440.00,R,Association Of Electoral Administrators
http://statistics.data.gov.uk/doc/local-authority/00DA,East - North East,East - North East,Technical Services,Premises,H.R.A. - Special Maintenance,106,03/10/2011,1110-00513,599.00,R,Astor Bannerman Medical Ltd
http://statistics.data.gov.uk/doc/local-authority/00DA,Leeds City Council,Adult Social Care,Assessment And Care Management,Support Services,Legal Disbursements,411,28/10/2011,1110-00514,766.67,R,Aswini Weereratne
http://statistics.data.gov.uk/doc/local-authority/00DA,Leeds City Council,City Development,Highways,Supplies and Services,Other Hired And Contracted Services,265,10/10/2011,1110-00515,6989.63,R,Atkins Limited
http://statistics.data.gov.uk/doc/local-authority/00DA,Leeds City Council,Adult Social Care,Services For Older People - 65 And Over,Third Party Payments,Nursing Home,570,26/10/2011,1110-00516,13691.76,R,Atkinson Court
http://statistics.data.gov.uk/doc/local-authority/00DA,Leeds City Council,Adult Social Care,Services For Older People - 65 And Over,Third Party Payments,Nursing Care Emi,574,26/10/2011,1110-00517,10257.76,R,Atkinson Court
http://statistics.data.gov.uk/doc/local-authority/00DA,Leeds City Council,Central & Corporate Functions,Commercial Services Trading Services,Supplies and Services,Other Hired And Contracted Services,265,28/10/2011,1110-00518,654.00,R,Atkinsons Fencing Limited
http://statistics.data.gov.uk/doc/local-authority/00DA,Leeds City Council,Central & Corporate Functions,Commercial Services Trading Services,Supplies and Services,Other Hired And Contracted Services,265,28/10/2011,1110-00519,2202.00,R,Atkinsons Fencing Limited
http://statistics.data.gov.uk/doc/local-authority/00DA,Leeds City Council,Adult Social Care,Services For Older People - 65 And Over,Third Party Payments,Nursing Home,570,26/10/2011,1110-00520,1584.00,R,Attlee Court
http://statistics.data.gov.uk/doc/local-authority/00DA,Leeds City Council,Adult Social Care,Services For Older People - 65 And Over,Third Party Payments,Nursing Care Emi,574,26/10/2011,1110-00521,1143.36,R,Attlee Court
http://statistics.data.gov.uk/doc/local-authority/00DA,Leeds City Council,City Development,Libraries  Arts & Heritage,Supplies and Services,Books & Audio-Visual Materials,206,21/10/2011,1110-00522,610.66,R,Audiogo Ltd
http://statistics.data.gov.uk/doc/local-authority/00DA,Leeds City Council,City Development,Libraries  Arts & Heritage,Supplies and Services,Books & Audio-Visual Materials,206,21/10/2011,1110-00523,691.25,R,Audiogo Ltd
http://statistics.data.gov.uk/doc/local-authority/00DA,Leeds City Council,City Development,Libraries  Arts & Heritage,Supplies and Services,Books & Audio-Visual Materials,206,25/10/2011,1110-00524,1090.38,R,Audiogo Ltd
http://statistics.data.gov.uk/doc/local-authority/00DA,Leeds City Council as Accountable Body,Social Services Pooled Budgets,Jcs For People With Learning Disabilitie,Third Party Payments,Residential,580,26/10/2011,1110-00525,8217.00,R,Autism Care (Uk) Ltd
http://statistics.data.gov.uk/doc/local-authority/00DA,Leeds City Council,Childrens Services,Safeguarding Targeted & Specialist,Third Party Payments,Services Rendered By Other Organisations,511,03/10/2011,1110-00526,3074.76,R,Autism Partnership Uk Ltd
http://statistics.data.gov.uk/doc/local-authority/00DA,Leeds City Council,Childrens Services,Safeguarding Targeted & Specialist,Third Party Payments,Services Rendered By Other Organisations,511,05/10/2011,1110-00527,1038.50,R,Autism Partnership Uk Ltd
http://statistics.data.gov.uk/doc/local-authority/00DA,Leeds City Council,Childrens Services,Safeguarding Targeted & Specialist,Third Party Payments,Services Rendered By Other Organisations,511,14/10/2011,1110-00528,477.00,R,Autism Partnership Uk Ltd
http://statistics.data.gov.uk/doc/local-authority/00DA,Leeds City Council,Childrens Services,Safeguarding Targeted & Specialist,Third Party Payments,Services Rendered By Other Organisations,511,14/10/2011,1110-00529,524.00,R,Autism Partnership Uk Ltd
http://statistics.data.gov.uk/doc/local-authority/00DA,Leeds City Council,Childrens Services,Safeguarding Targeted & Specialist,Third Party Payments,Services Rendered By Other Organisations,511,14/10/2011,1110-00530,556.50,R,Autism Partnership Uk Ltd
http://statistics.data.gov.uk/doc/local-authority/00DA,Leeds City Council,Childrens Services,Safeguarding Targeted & Specialist,Third Party Payments,Services Rendered By Other Organisations,511,14/10/2011,1110-00531,3061.23,R,Autism Partnership Uk Ltd
http://statistics.data.gov.uk/doc/local-authority/00DA,Leeds City Council,Childrens Services,Safeguarding Targeted & Specialist,Third Party Payments,Services Rendered By Other Organisations,511,18/10/2011,1110-00532,813.25,R,Autism Partnership Uk Ltd
http://statistics.data.gov.uk/doc/local-authority/00DA,Leeds City Council,City Development,Recreation,Supplies and Services,Food & Drink,231,07/10/2011,1110-00533,543.27,R,Autobar Uk Ltd
http://statistics.data.gov.uk/doc/local-authority/00DA,Leeds City Council,City Development,Libraries  Arts & Heritage,Supplies and Services,Bought In Professional Services,277,14/10/2011,1110-00534,950.00,R,Av & C Limited
http://statistics.data.gov.uk/doc/local-authority/00DA,East - North East,East - North East,Housing Services,Employees,Temporary Staff-Basic,009,05/10/2011,1110-00535,6133.33,R,Avalon
http://statistics.data.gov.uk/doc/local-authority/00DA,Leeds City Council as Accountable Body,Social Services Pooled Budgets,Jcs For People With Learning Disabilitie,Third Party Payments,Home Care,568,05/10/2011,1110-00536,1332.20,R,Avalon
http://statistics.data.gov.uk/doc/local-authority/00DA,Leeds City Council as Accountable Body,Social Services Pooled Budgets,Jcs For People With Learning Disabilitie,Third Party Payments,Home Care,568,28/10/2011,1110-00537,887.18,R,Avalon
http://statistics.data.gov.uk/doc/local-authority/00DA,Leeds City Council as Accountable Body,Social Services Pooled Budgets,Jcs For People With Learning Disabilitie,Third Party Payments,Residential,580,07/10/2011,1110-00538,4642.20,R,Avens Ltd
http://statistics.data.gov.uk/doc/local-authority/00DA,Leeds City Council,Central & Corporate Functions,Commercial Services Trading Services,Supplies and Services,Publication And Promotion,267,14/10/2011,1110-00539,980.00,R,Avf Marketing Ltd
http://statistics.data.gov.uk/doc/local-authority/00DA,East - North East,East - North East,Construction Services,Supplies and Services,Other Materials,205,05/10/2011,1110-00540,2010.00,R,Avocet Hardware Ltd
http://statistics.data.gov.uk/doc/local-authority/00DA,East - North East,East - North East,Construction Services,Supplies and Services,Other Materials,205,12/10/2011,1110-00541,1005.00,R,Avocet Hardware Ltd
http://statistics.data.gov.uk/doc/local-authority/00DA,East - North East,East - North East,Construction Services,Supplies and Services,Other Materials,205,14/10/2011,1110-00542,837.50,R,Avocet Hardware Ltd
http://statistics.data.gov.uk/doc/local-authority/00DA,East - North East,East - North East,Construction Services,Supplies and Services,Other Materials,205,14/10/2011,1110-00543,837.50,R,Avocet Hardware Ltd
http://statistics.data.gov.uk/doc/local-authority/00DA,East - North East,East - North East,Construction Services,Supplies and Services,Other Materials,205,19/10/2011,1110-00544,837.50,R,Avocet Hardware Ltd
http://statistics.data.gov.uk/doc/local-authority/00DA,East - North East,East - North East,Construction Services,Supplies and Services,Other Materials,205,19/10/2011,1110-00545,1005.00,R,Avocet Hardware Ltd
http://statistics.data.gov.uk/doc/local-authority/00DA,East - North East,East - North East,Construction Services,Supplies and Services,Other Materials,205,21/10/2011,1110-00546,502.50,R,Avocet Hardware Ltd
http://statistics.data.gov.uk/doc/local-authority/00DA,East - North East,East - North East,Construction Services,Supplies and Services,Other Materials,205,21/10/2011,1110-00547,1005.00,R,Avocet Hardware Ltd
http://statistics.data.gov.uk/doc/local-authority/00DA,East - North East,East - North East,Construction Services,Supplies and Services,Other Materials,205,21/10/2011,1110-00548,1038.50,R,Avocet Hardware Ltd
http://statistics.data.gov.uk/doc/local-authority/00DA,East - North East,East - North East,Construction Services,Supplies and Services,Other Materials,205,28/10/2011,1110-00549,2680.00,R,Avocet Hardware Ltd
http://statistics.data.gov.uk/doc/local-authority/00DA,Leeds City Council as Accountable Body,Social Services Pooled Budgets,Jcs For People With Learning Disabilitie,Third Party Payments,Residential,580,26/10/2011,1110-00550,4143.32,R,Avon Lodge
http://statistics.data.gov.uk/doc/local-authority/00DA,Leeds City Council,Environment & Neighbourhoods,Statutory Housing,Supplies and Services,Other Hired And Contracted Services,265,12/10/2011,1110-00551,1000.00,R,Aws Ltd
http://statistics.data.gov.uk/doc/local-authority/00DA,Leeds City Council,Adult Social Care,Services For Older People - 65 And Over,Third Party Payments,Nursing Home,570,26/10/2011,1110-00552,1221.00,R,Ayresome Court Nursing Home
http://statistics.data.gov.uk/doc/local-authority/00DA,Leeds City Council,Environment & Neighbourhoods,Environmental Health,Capital,Construction,3,07/10/2011,1110-00553,766.30,C,B & K Passmore
http://statistics.data.gov.uk/doc/local-authority/00DA,Leeds City Council,Environment & Neighbourhoods,Environmental Health,Capital,Construction,3,10/10/2011,1110-00554,4150.00,C,B & K Passmore
http://statistics.data.gov.uk/doc/local-authority/00DA,Leeds City Council,Environment & Neighbourhoods,Environmental Health,Capital,Construction,3,10/10/2011,1110-00555,4150.00,C,B & K Passmore
http://statistics.data.gov.uk/doc/local-authority/00DA,Leeds City Council,Environment & Neighbourhoods,Environmental Health,Capital,Construction,3,10/10/2011,1110-00556,4720.00,C,B & K Passmore
http://statistics.data.gov.uk/doc/local-authority/00DA,Leeds City Council,Environment & Neighbourhoods,Environmental Health,Capital,Construction,3,10/10/2011,1110-00557,16834.55,C,B & K Passmore
http://statistics.data.gov.uk/doc/local-authority/00DA,Leeds City Council,Environment & Neighbourhoods,Environmental Health,Capital,Construction,3,17/10/2011,1110-00558,2890.00,C,B & K Passmore
http://statistics.data.gov.uk/doc/local-authority/00DA,Leeds City Council,Environment & Neighbourhoods,Environmental Health,Capital,Construction,3,17/10/2011,1110-00559,2890.00,C,B & K Passmore
http://statistics.data.gov.uk/doc/local-authority/00DA,Leeds City Council,Environment & Neighbourhoods,Environmental Health,Capital,Construction,3,17/10/2011,1110-00560,4150.00,C,B & K Passmore
http://statistics.data.gov.uk/doc/local-authority/00DA,Leeds City Council,Environment & Neighbourhoods,Environmental Health,Capital,Construction,3,19/10/2011,1110-00561,2890.00,C,B & K Passmore
http://statistics.data.gov.uk/doc/local-authority/00DA,Leeds City Council,Environment & Neighbourhoods,Environmental Health,Capital,Construction,3,19/10/2011,1110-00562,3100.00,C,B & K Passmore
http://statistics.data.gov.uk/doc/local-authority/00DA,Leeds City Council,Environment & Neighbourhoods,Environmental Health,Capital,Construction,3,19/10/2011,1110-00563,4150.00,C,B & K Passmore
http://statistics.data.gov.uk/doc/local-authority/00DA,Leeds City Council,Environment & Neighbourhoods,Environmental Health,Capital,Construction,3,19/10/2011,1110-00564,4150.00,C,B & K Passmore
http://statistics.data.gov.uk/doc/local-authority/00DA,Leeds City Council,Environment & Neighbourhoods,Environmental Health,Capital,Construction,3,19/10/2011,1110-00565,8998.62,C,B & K Passmore
http://statistics.data.gov.uk/doc/local-authority/00DA,Leeds City Council,Environment & Neighbourhoods,South South East,Capital,Construction,3,19/10/2011,1110-00566,3450.00,C,B & K Passmore
http://statistics.data.gov.uk/doc/local-authority/00DA,Leeds City Council,Environment & Neighbourhoods,South South East,Capital,Construction,3,19/10/2011,1110-00567,3450.00,C,B & K Passmore
http://statistics.data.gov.uk/doc/local-authority/00DA,Leeds City Council,Environment & Neighbourhoods,South South East,Capital,Construction,3,19/10/2011,1110-00568,3450.00,C,B & K Passmore
http://statistics.data.gov.uk/doc/local-authority/00DA,Leeds City Council,Environment & Neighbourhoods,South South East,Capital,Construction,3,19/10/2011,1110-00569,3450.00,C,B & K Passmore
http://statistics.data.gov.uk/doc/local-authority/00DA,Leeds City Council,Environment & Neighbourhoods,South South East,Capital,Construction,3,19/10/2011,1110-00570,4236.00,C,B & K Passmore
http://statistics.data.gov.uk/doc/local-authority/00DA,Leeds City Council,Environment & Neighbourhoods,South South East,Capital,Construction,3,19/10/2011,1110-00571,5541.89,C,B & K Passmore
http://statistics.data.gov.uk/doc/local-authority/00DA,Leeds City Council,Environment & Neighbourhoods,South South East,Capital,Construction,3,21/10/2011,1110-00572,25800.83,C,B & K Passmore
http://statistics.data.gov.uk/doc/local-authority/00DA,Leeds City Council,Environment & Neighbourhoods,Environmental Health,Capital,Construction,3,27/10/2011,1110-00573,5204.23,C,B & K Passmore
http://statistics.data.gov.uk/doc/local-authority/00DA,Leeds City Council,Environment & Neighbourhoods,Environmental Health,Capital,Construction,3,27/10/2011,1110-00574,5276.90,C,B & K Passmore
http://statistics.data.gov.uk/doc/local-authority/00DA,Leeds City Council,Environment & Neighbourhoods,Environmental Health,Capital,Construction,3,28/10/2011,1110-00575,2890.00,C,B & K Passmore
http://statistics.data.gov.uk/doc/local-authority/00DA,Leeds City Council,City Development,Libraries  Arts & Heritage,Supplies and Services,Operational Furniture And Equipment,203,14/10/2011,1110-00576,525.00,R,Back Care Solutions Ltd
http://statistics.data.gov.uk/doc/local-authority/00DA,Leeds City Council,Environment & Neighbourhoods,Environmental Action (East North East),Supplies and Services,Office Furniture & Equipment,201,26/10/2011,1110-00577,837.00,R,Back Care Solutions Ltd
http://statistics.data.gov.uk/doc/local-authority/00DA,West - North West ,West - North West,Customer And Tenancy,Employees,Temporary Staff-Basic,009,06/10/2011,1110-00578,587.30,R,Badenoch & Clark Ltd
http://statistics.data.gov.uk/doc/local-authority/00DA,West - North West ,West - North West,Customer And Tenancy,Employees,Temporary Staff-Basic,009,06/10/2011,1110-00579,620.86,R,Badenoch & Clark Ltd
http://statistics.data.gov.uk/doc/local-authority/00DA,West - North West ,West - North West,Customer And Tenancy,Employees,Temporary Staff-Basic,009,13/10/2011,1110-00580,446.69,R,Badenoch & Clark Ltd
http://statistics.data.gov.uk/doc/local-authority/00DA,West - North West ,West - North West,Customer And Tenancy,Employees,Temporary Staff-Basic,009,13/10/2011,1110-00581,599.51,R,Badenoch & Clark Ltd
http://statistics.data.gov.uk/doc/local-authority/00DA,West - North West ,West - North West,Customer And Tenancy,Employees,Temporary Staff-Basic,009,13/10/2011,1110-00582,639.26,R,Badenoch & Clark Ltd
http://statistics.data.gov.uk/doc/local-authority/00DA,West - North West ,West - North West,Customer And Tenancy,Employees,Temporary Staff-Basic,009,14/10/2011,1110-00583,469.84,R,Badenoch & Clark Ltd
http://statistics.data.gov.uk/doc/local-authority/00DA,West - North West ,West - North West,Customer And Tenancy,Employees,Temporary Staff-Basic,009,14/10/2011,1110-00584,525.75,R,Badenoch & Clark Ltd
http://statistics.data.gov.uk/doc/local-authority/00DA,West - North West ,West - North West,Customer And Tenancy,Employees,Temporary Staff-Basic,009,14/10/2011,1110-00585,525.75,R,Badenoch & Clark Ltd
http://statistics.data.gov.uk/doc/local-authority/00DA,West - North West ,West - North West,Customer And Tenancy,Employees,Temporary Staff-Basic,009,14/10/2011,1110-00586,525.75,R,Badenoch & Clark Ltd
http://statistics.data.gov.uk/doc/local-authority/00DA,West - North West ,West - North West,Customer And Tenancy,Employees,Temporary Staff-Basic,009,14/10/2011,1110-00587,620.86,R,Badenoch & Clark Ltd
http://statistics.data.gov.uk/doc/local-authority/00DA,West - North West ,West - North West,Customer And Tenancy,Employees,Temporary Staff-Basic,009,14/10/2011,1110-00588,620.86,R,Badenoch & Clark Ltd
http://statistics.data.gov.uk/doc/local-authority/00DA,West - North West ,West - North West,Customer And Tenancy,Employees,Temporary Staff-Basic,009,14/10/2011,1110-00589,829.91,R,Badenoch & Clark Ltd
http://statistics.data.gov.uk/doc/local-authority/00DA,West - North West ,West - North West,Customer And Tenancy,Employees,Temporary Staff-Basic,009,19/10/2011,1110-00590,687.67,R,Badenoch & Clark Ltd
http://statistics.data.gov.uk/doc/local-authority/00DA,West - North West ,West - North West,Customer And Tenancy,Employees,Temporary Staff-Basic,009,20/10/2011,1110-00591,455.24,R,Badenoch & Clark Ltd
http://statistics.data.gov.uk/doc/local-authority/00DA,West - North West ,West - North West,Customer And Tenancy,Employees,Temporary Staff-Basic,009,20/10/2011,1110-00592,472.13,R,Badenoch & Clark Ltd
http://statistics.data.gov.uk/doc/local-authority/00DA,West - North West ,West - North West,Customer And Tenancy,Employees,Temporary Staff-Basic,009,20/10/2011,1110-00593,503.40,R,Badenoch & Clark Ltd
http://statistics.data.gov.uk/doc/local-authority/00DA,West - North West ,West - North West,Customer And Tenancy,Employees,Temporary Staff-Basic,009,20/10/2011,1110-00594,587.30,R,Badenoch & Clark Ltd
http://statistics.data.gov.uk/doc/local-authority/00DA,West - North West ,West - North West,Customer And Tenancy,Employees,Temporary Staff-Basic,009,20/10/2011,1110-00595,620.86,R,Badenoch & Clark Ltd
http://statistics.data.gov.uk/doc/local-authority/00DA,West - North West ,West - North West,Customer And Tenancy,Employees,Temporary Staff-Basic,009,20/10/2011,1110-00596,620.86,R,Badenoch & Clark Ltd
http://statistics.data.gov.uk/doc/local-authority/00DA,West - North West ,West - North West,Customer And Tenancy,Employees,Temporary Staff-Basic,009,20/10/2011,1110-00597,620.86,R,Badenoch & Clark Ltd
http://statistics.data.gov.uk/doc/local-authority/00DA,West - North West ,West - North West,Customer And Tenancy,Employees,Temporary Staff-Basic,009,21/10/2011,1110-00598,620.86,R,Badenoch & Clark Ltd
http://statistics.data.gov.uk/doc/local-authority/00DA,West - North West ,West - North West,Customer And Tenancy,Employees,Temporary Staff-Basic,009,27/10/2011,1110-00599,472.13,R,Badenoch & Clark Ltd
http://statistics.data.gov.uk/doc/local-authority/00DA,West - North West ,West - North West,Customer And Tenancy,Employees,Temporary Staff-Basic,009,27/10/2011,1110-00600,587.30,R,Badenoch & Clark Ltd
http://statistics.data.gov.uk/doc/local-authority/00DA,West - North West ,West - North West,Customer And Tenancy,Employees,Temporary Staff-Basic,009,28/10/2011,1110-00601,444.67,R,Badenoch & Clark Ltd
http://statistics.data.gov.uk/doc/local-authority/00DA,West - North West ,West - North West,Customer And Tenancy,Employees,Temporary Staff-Basic,009,28/10/2011,1110-00602,489.51,R,Badenoch & Clark Ltd
http://statistics.data.gov.uk/doc/local-authority/00DA,West - North West ,West - North West,Customer And Tenancy,Employees,Temporary Staff-Basic,009,28/10/2011,1110-00603,489.51,R,Badenoch & Clark Ltd
http://statistics.data.gov.uk/doc/local-authority/00DA,West - North West ,West - North West,Customer And Tenancy,Employees,Temporary Staff-Basic,009,28/10/2011,1110-00604,505.47,R,Badenoch & Clark Ltd
http://statistics.data.gov.uk/doc/local-authority/00DA,West - North West ,West - North West,Customer And Tenancy,Employees,Temporary Staff-Basic,009,28/10/2011,1110-00605,578.91,R,Badenoch & Clark Ltd
http://statistics.data.gov.uk/doc/local-authority/00DA,West - North West ,West - North West,Customer And Tenancy,Employees,Temporary Staff-Basic,009,28/10/2011,1110-00606,617.14,R,Badenoch & Clark Ltd
http://statistics.data.gov.uk/doc/local-authority/00DA,West - North West ,West - North West,Customer And Tenancy,Employees,Temporary Staff-Basic,009,28/10/2011,1110-00607,620.86,R,Badenoch & Clark Ltd
http://statistics.data.gov.uk/doc/local-authority/00DA,West - North West ,West - North West,Customer And Tenancy,Employees,Temporary Staff-Basic,009,28/10/2011,1110-00608,829.91,R,Badenoch & Clark Ltd
http://statistics.data.gov.uk/doc/local-authority/00DA,West - North West ,West - North West,Customer And Tenancy,Employees,Temporary Staff-Basic,009,28/10/2011,1110-00609,852.34,R,Badenoch & Clark Ltd
http://statistics.data.gov.uk/doc/local-authority/00DA,Leeds City Council,Adult Social Care,Services For Adults Under 65 Mental/Dis,Supplies and Services,Operational Furniture And Equipment,203,07/10/2011,1110-00610,440.00,R,Baileys Cleaning Services
http://statistics.data.gov.uk/doc/local-authority/00DA,Leeds City Council,Insurance,Insurance,Supplies and Services,Other Hired And Contracted Services,265,06/10/2011,1110-00611,450.00,R,Bakers Solicitors
http://statistics.data.gov.uk/doc/local-authority/00DA,Leeds City Council,City Development,Libraries  Arts & Heritage,Transport,Hire of movable plant and machinery,315,01/09/2011,1110-00612,1500.00,R,Balmers Garden
http://statistics.data.gov.uk/doc/local-authority/00DA,Leeds City Council,City Development,Highways,Capital,Construction,3,17/10/2011,1110-00613,14767.10,C,Balvac Ltd
http://statistics.data.gov.uk/doc/local-authority/00DA,Leeds City Council,City Development,Libraries  Arts & Heritage,Capital,Construction,3,07/10/2011,1110-00614,34263.31,C,Bam Construction Ltd
http://statistics.data.gov.uk/doc/local-authority/00DA,Leeds City Council,City Development,Asset Management Services,Capital,Construction,3,26/10/2011,1110-00615,1484100.00,C,Bam Construction Ltd
http://statistics.data.gov.uk/doc/local-authority/00DA,Leeds City Council,Environment & Neighbourhoods,Strategy & Commissioning,Supplies and Services,Other Hired And Contracted Services,265,11/10/2011,1110-00616,1250.00,R,Bangladesh Centre Leeds.
http://statistics.data.gov.uk/doc/local-authority/00DA,Leeds City Council,Childrens Services,Learning Skills & Universal,Third Party Payments,Services Rendered By Other Organisations,511,20/10/2011,1110-00617,760.00,R,Barca Leeds
http://statistics.data.gov.uk/doc/local-authority/00DA,Leeds City Council,Environment & Neighbourhoods,Safer Leeds Drugs Team,Third Party Payments,Services Rendered By Voluntary Sector,505,24/10/2011,1110-00618,52283.25,R,Barca Leeds
http://statistics.data.gov.uk/doc/local-authority/00DA,Leeds City Council,Other Education Services,Refurbishment Works,Capital,Construction,3,03/10/2011,1110-00619,5441.90,C,Bardsey Building Contractors Ltd
http://statistics.data.gov.uk/doc/local-authority/00DA,Leeds City Council,City Development,Recreation,Supplies and Services,Operational Materials,205,12/10/2011,1110-00620,581.40,R,Barenbrug Uk Ltd
http://statistics.data.gov.uk/doc/local-authority/00DA,Leeds City Council,Insurance,Insurance,Supplies and Services,Insurance Claims,248,27/10/2011,1110-00621,7000.00,R,Barlow Robbins Llp
http://statistics.data.gov.uk/doc/local-authority/00DA,Leeds City Council,Childrens Services,Safeguarding Targeted & Specialist,Supplies and Services,Other Hired And Contracted Services,265,06/10/2011,1110-00622,27381.33,R,Barnardo Services Ltd
http://statistics.data.gov.uk/doc/local-authority/00DA,Leeds City Council,Environment & Neighbourhoods,Statutory Housing,Supplies and Services,Non-Recurring Grants,227,04/10/2011,1110-00623,3750.00,R,Barnardos Yorkshire
http://statistics.data.gov.uk/doc/local-authority/00DA,Leeds City Council,Childrens Services,Safeguarding Targeted & Specialist,Third Party Payments,Services Rendered By Schools,506,19/10/2011,1110-00624,16538.17,R,Barnardos Yorkshire
http://statistics.data.gov.uk/doc/local-authority/00DA,Leeds City Council,Childrens Services,Safeguarding Targeted & Specialist,Third Party Payments,Services Rendered By Voluntary Sector,505,25/10/2011,1110-00625,60000.00,R,Barnardos Yorkshire
http://statistics.data.gov.uk/doc/local-authority/00DA,Leeds City Council,Other Education Services,Primary Schools,Capital,Other Costs,7,11/10/2011,1110-00626,757.00,C,Barnes & Associates
http://statistics.data.gov.uk/doc/local-authority/00DA,Leeds City Council,City Development,Highways,Supplies and Services,Operational Materials,205,25/10/2011,1110-00627,1735.94,R,Barriers Direct
http://statistics.data.gov.uk/doc/local-authority/00DA,Leeds City Council,City Development,Asset Management Services,Premises,Plant and Machinery,102,07/10/2011,1110-00628,1907.00,R,Bas Ltd
http://statistics.data.gov.uk/doc/local-authority/00DA,Leeds City Council,Environment & Neighbourhoods,Streetscene Environmental Services,Supplies and Services,Publication And Promotion,267,05/10/2011,1110-00629,1400.00,R,Bauer Radio Ltd
http://statistics.data.gov.uk/doc/local-authority/00DA,Leeds City Council,City Development,Recreation,Supplies and Services,Publication And Promotion,267,19/10/2011,1110-00630,1000.00,R,Bauer Radio Ltd
http://statistics.data.gov.uk/doc/local-authority/00DA,Leeds City Council,Central & Corporate Functions,Commercial Services Trading Services,Transport,Fuel (Non LCC Supplies),321,05/10/2011,1110-00631,11096.00,R,Bayford Oil
http://statistics.data.gov.uk/doc/local-authority/00DA,Leeds City Council,Central & Corporate Functions,Commercial Services Trading Services,Transport,Fuel (Non LCC Supplies),321,05/10/2011,1110-00632,19918.80,R,Bayford Oil
http://statistics.data.gov.uk/doc/local-authority/00DA,Leeds City Council,Central & Corporate Functions,Commercial Services Trading Services,Transport,Fuel (Non LCC Supplies),321,06/10/2011,1110-00633,1880.70,R,Bayford Oil
http://statistics.data.gov.uk/doc/local-authority/00DA,Leeds City Council,Central & Corporate Functions,Commercial Services Trading Services,Transport,Fuel (Non LCC Supplies),321,07/10/2011,1110-00634,1817.83,R,Bayford Oil
http://statistics.data.gov.uk/doc/local-authority/00DA,Leeds City Council,Central & Corporate Functions,Commercial Services Trading Services,Transport,Fuel (Non LCC Supplies),321,07/10/2011,1110-00635,1944.90,R,Bayford Oil
http://statistics.data.gov.uk/doc/local-authority/00DA,Leeds City Council,Central & Corporate Functions,Commercial Services Trading Services,Transport,Fuel (Non LCC Supplies),321,07/10/2011,1110-00636,11286.63,R,Bayford Oil
http://statistics.data.gov.uk/doc/local-authority/00DA,Leeds City Council,Central & Corporate Functions,Commercial Services Trading Services,Transport,Fuel (Non LCC Supplies),321,07/10/2011,1110-00637,39494.00,R,Bayford Oil
http://statistics.data.gov.uk/doc/local-authority/00DA,Leeds City Council,City Development,Recreation,Transport,Fuel (Non LCC Supplies),321,07/10/2011,1110-00638,1261.17,R,Bayford Oil
http://statistics.data.gov.uk/doc/local-authority/00DA,Leeds City Council,City Development,Recreation,Transport,Fuel (Non LCC Supplies),321,07/10/2011,1110-00639,3830.68,R,Bayford Oil
http://statistics.data.gov.uk/doc/local-authority/00DA,Leeds City Council,City Development,Recreation,Transport,Fuel (Non LCC Supplies),321,12/10/2011,1110-00640,15284.14,R,Bayford Oil
http://statistics.data.gov.uk/doc/local-authority/00DA,Leeds City Council,Central & Corporate Functions,Commercial Services Trading Services,Transport,Fuel (Non LCC Supplies),321,14/10/2011,1110-00641,16956.00,R,Bayford Oil
http://statistics.data.gov.uk/doc/local-authority/00DA,Leeds City Council,Central & Corporate Functions,Commercial Services Trading Services,Transport,Fuel (Non LCC Supplies),321,14/10/2011,1110-00642,20396.96,R,Bayford Oil
http://statistics.data.gov.uk/doc/local-authority/00DA,Leeds City Council,Central & Corporate Functions,Commercial Services Trading Services,Transport,Fuel (Non LCC Supplies),321,14/10/2011,1110-00643,24846.80,R,Bayford Oil
http://statistics.data.gov.uk/doc/local-authority/00DA,Leeds City Council,Central & Corporate Functions,Commercial Services Trading Services,Transport,Fuel (Non LCC Supplies),321,14/10/2011,1110-00644,39530.13,R,Bayford Oil
http://statistics.data.gov.uk/doc/local-authority/00DA,Leeds City Council,City Development,Recreation,Transport,Fuel (Non LCC Supplies),321,14/10/2011,1110-00645,1271.99,R,Bayford Oil
http://statistics.data.gov.uk/doc/local-authority/00DA,Leeds City Council,City Development,Recreation,Transport,Fuel (Non LCC Supplies),321,14/10/2011,1110-00646,2463.54,R,Bayford Oil
http://statistics.data.gov.uk/doc/local-authority/00DA,Leeds City Council,Childrens Services,Learning Skills & Universal,Premises,Oil,122,19/10/2011,1110-00647,1316.99,R,Bayford Oil
http://statistics.data.gov.uk/doc/local-authority/00DA,Leeds City Council,City Development,Libraries  Arts & Heritage,Premises,Oil,122,19/10/2011,1110-00648,1491.09,R,Bayford Oil
http://statistics.data.gov.uk/doc/local-authority/00DA,Leeds City Council,Central & Corporate Functions,Commercial Services Trading Services,Transport,Fuel (Non LCC Supplies),321,19/10/2011,1110-00649,16971.00,R,Bayford Oil
http://statistics.data.gov.uk/doc/local-authority/00DA,Leeds City Council,City Development,Recreation,Transport,Fuel (Non LCC Supplies),321,19/10/2011,1110-00650,1261.80,R,Bayford Oil
http://statistics.data.gov.uk/doc/local-authority/00DA,Leeds City Council,Central & Corporate Functions,Commercial Services Trading Services,Transport,Fuel (Non LCC Supplies),321,21/10/2011,1110-00651,11314.39,R,Bayford Oil
http://statistics.data.gov.uk/doc/local-authority/00DA,Leeds City Council,Central & Corporate Functions,Commercial Services Trading Services,Transport,Fuel (Non LCC Supplies),321,21/10/2011,1110-00652,20305.80,R,Bayford Oil
http://statistics.data.gov.uk/doc/local-authority/00DA,Leeds City Council,Central & Corporate Functions,Commercial Services Trading Services,Transport,Fuel (Non LCC Supplies),321,21/10/2011,1110-00653,39480.12,R,Bayford Oil
http://statistics.data.gov.uk/doc/local-authority/00DA,Leeds City Council,City Development,Recreation,Transport,Fuel (Non LCC Supplies),321,26/10/2011,1110-00654,1304.60,R,Bayford Oil
http://statistics.data.gov.uk/doc/local-authority/00DA,Leeds City Council,City Development,Recreation,Transport,Fuel (Non LCC Supplies),321,26/10/2011,1110-00655,1304.60,R,Bayford Oil
http://statistics.data.gov.uk/doc/local-authority/00DA,Leeds City Council,City Development,Recreation,Transport,Fuel (Non LCC Supplies),321,26/10/2011,1110-00656,4308.80,R,Bayford Oil
http://statistics.data.gov.uk/doc/local-authority/00DA,Leeds City Council,City Development,Recreation,Transport,Fuel (Non LCC Supplies),321,26/10/2011,1110-00657,16951.50,R,Bayford Oil
http://statistics.data.gov.uk/doc/local-authority/00DA,Leeds City Council,City Development,Recreation,Transport,Fuel (Non LCC Supplies),321,27/10/2011,1110-00658,4226.79,R,Bayford Oil
http://statistics.data.gov.uk/doc/local-authority/00DA,Leeds City Council,Central & Corporate Functions,Commercial Services Trading Services,Transport,Fuel (Non LCC Supplies),321,28/10/2011,1110-00659,1955.70,R,Bayford Oil
http://statistics.data.gov.uk/doc/local-authority/00DA,Leeds City Council,Central & Corporate Functions,Commercial Services Trading Services,Transport,Fuel (Non LCC Supplies),321,28/10/2011,1110-00660,1956.35,R,Bayford Oil
http://statistics.data.gov.uk/doc/local-authority/00DA,Leeds City Council,Central & Corporate Functions,Commercial Services Trading Services,Transport,Fuel (Non LCC Supplies),321,28/10/2011,1110-00661,11419.13,R,Bayford Oil
http://statistics.data.gov.uk/doc/local-authority/00DA,Leeds City Council,Central & Corporate Functions,Commercial Services Trading Services,Transport,Fuel (Non LCC Supplies),321,28/10/2011,1110-00662,16998.00,R,Bayford Oil
http://statistics.data.gov.uk/doc/local-authority/00DA,Leeds City Council,Central & Corporate Functions,Commercial Services Trading Services,Transport,Fuel (Non LCC Supplies),321,28/10/2011,1110-00663,20361.60,R,Bayford Oil
http://statistics.data.gov.uk/doc/local-authority/00DA,Leeds City Council,Central & Corporate Functions,Commercial Services Trading Services,Transport,Fuel (Non LCC Supplies),321,28/10/2011,1110-00664,24886.40,R,Bayford Oil
http://statistics.data.gov.uk/doc/local-authority/00DA,Leeds City Council,Adult Social Care,Services For Older People Under 65 P/Dis,Third Party Payments,Residential,580,26/10/2011,1110-00665,7984.00,R,Baylis Place
http://statistics.data.gov.uk/doc/local-authority/00DA,Leeds City Council,City Development,Libraries  Arts & Heritage,Supplies and Services,Other Hired And Contracted Services,265,20/10/2011,1110-00666,700.00,R,Be Festival C.I.C
http://statistics.data.gov.uk/doc/local-authority/00DA,Leeds City Council,Central & Corporate Functions,Information Technology,Supplies and Services,Networks,090,04/10/2011,1110-00667,-2250.00,R,Beacon Communication Technology (North)
http://statistics.data.gov.uk/doc/local-authority/00DA,Leeds City Council,Central & Corporate Functions,Information Technology,Supplies and Services,Telephones,213,04/10/2011,1110-00668,425.00,R,Beacon Communication Technology (North)
http://statistics.data.gov.uk/doc/local-authority/00DA,Leeds City Council,Central & Corporate Functions,Information Technology,Supplies and Services,Telephones,213,04/10/2011,1110-00669,425.00,R,Beacon Communication Technology (North)
http://statistics.data.gov.uk/doc/local-authority/00DA,Leeds City Council,Central & Corporate Functions,Information Technology,Supplies and Services,Other Hired And Contracted Services,265,04/10/2011,1110-00670,520.00,R,Beacon Communication Technology (North)
http://statistics.data.gov.uk/doc/local-authority/00DA,Leeds City Council,City Development,Libraries  Arts & Heritage,Capital,Other Costs,7,04/10/2011,1110-00671,1575.00,C,Beacon Communication Technology (North)
http://statistics.data.gov.uk/doc/local-authority/00DA,Leeds City Council,Central & Corporate Functions,Information Technology,Supplies and Services,Networks,090,13/10/2011,1110-00672,4925.00,R,Beacon Communication Technology (North)
http://statistics.data.gov.uk/doc/local-authority/00DA,Leeds City Council,Central & Corporate Functions,Information Technology,Supplies and Services,Telephones,213,13/10/2011,1110-00673,435.70,R,Beacon Communication Technology (North)
http://statistics.data.gov.uk/doc/local-authority/00DA,Leeds City Council,Environment & Neighbourhoods,Regeneration Management,Capital,Construction,3,13/10/2011,1110-00674,1250.00,C,Beacon Communication Technology (North)
http://statistics.data.gov.uk/doc/local-authority/00DA,Leeds City Council,Central & Corporate Functions,Information Technology,Supplies and Services,Telephones,213,20/10/2011,1110-00675,493.50,R,Beacon Communication Technology (North)
http://statistics.data.gov.uk/doc/local-authority/00DA,Leeds City Council,Central & Corporate Functions,Information Technology,Supplies and Services,Networks,090,24/10/2011,1110-00676,2425.00,R,Beacon Communication Technology (North)
http://statistics.data.gov.uk/doc/local-authority/00DA,Leeds City Council,Central & Corporate Functions,Information Technology,Supplies and Services,Computer Software & Equipment,214,24/10/2011,1110-00677,489.00,R,Beacon Communication Technology (North)
http://statistics.data.gov.uk/doc/local-authority/00DA,Leeds City Council,Central & Corporate Functions,Information Technology,Supplies and Services,Telephones,213,28/10/2011,1110-00678,436.90,R,Beacon Communication Technology (North)
http://statistics.data.gov.uk/doc/local-authority/00DA,Leeds City Council,Strategic Accounts,Miscellaneous,Supplies and Services,Non-Recurring Grants,227,06/10/2011,1110-00679,750.00,R,Bea-Owls
http://statistics.data.gov.uk/doc/local-authority/00DA,Leeds City Council,Adult Social Care,Services For Adults Under 65 Learn/Dis,Premises,First Aid Requisites,128,14/10/2011,1110-00680,603.10,R,Beaucare Medical Ltd
http://statistics.data.gov.uk/doc/local-authority/00DA,Leeds City Council,Adult Social Care,Services For Older People - 65 And Over,Third Party Payments,Residential,580,26/10/2011,1110-00681,1225.00,R,Beech Lodge Residential Home
http://statistics.data.gov.uk/doc/local-authority/00DA,Leeds City Council,Central & Corporate Functions,Commercial Services Trading Services,Supplies and Services,Other Hired And Contracted Services,265,27/10/2011,1110-00682,480.00,R,Beechfield Tree Services
http://statistics.data.gov.uk/doc/local-authority/00DA,Leeds City Council,Childrens Services,Learning Skills & Universal,Third Party Payments,Services Rendered By Voluntary Sector,505,07/10/2011,1110-00683,435.00,R,Beechtree Headingley Kindergarten
http://statistics.data.gov.uk/doc/local-authority/00DA,Leeds City Council,Childrens Services,Learning Skills & Universal,Third Party Payments,Services Rendered By Voluntary Sector,505,07/10/2011,1110-00684,784.00,R,Beechtree Kindergarten
http://statistics.data.gov.uk/doc/local-authority/00DA,Leeds City Council,Central & Corporate Functions,Executive Support,Supplies and Services,'Well Being' Large Grants Projects,230,27/10/2011,1110-00685,5000.00,R,Beeston Festival
http://statistics.data.gov.uk/doc/local-authority/00DA,Leeds City Council,Environment & Neighbourhoods,Strategy & Commissioning,Third Party Payments,Supporting Ppl - Block Gross Chargeable,514,07/10/2011,1110-00686,12947.81,R,Behind Closed Doors (Bcd)
http://statistics.data.gov.uk/doc/local-authority/00DA,Leeds City Council,Central & Corporate Functions,Support And Facilities Trading Services,Supplies and Services,Other Hired And Contracted Services,265,21/10/2011,1110-00687,2960.00,R,Bell Group Uk
http://statistics.data.gov.uk/doc/local-authority/00DA,Leeds City Council,Central & Corporate Functions,Support And Facilities Trading Services,Supplies and Services,Other Hired And Contracted Services,265,21/10/2011,1110-00688,3552.00,R,Bell Group Uk
http://statistics.data.gov.uk/doc/local-authority/00DA,Leeds City Council,Adult Social Care,Services For Older People - 65 And Over,Third Party Payments,Nursing Home,570,27/10/2011,1110-00689,1355.36,R,Belle Green Court Care Home
http://statistics.data.gov.uk/doc/local-authority/00DA,Leeds City Council,Environment & Neighbourhoods,Strategy & Commissioning,Third Party Payments,Supporting People - Block Subsidy,513,07/10/2011,1110-00690,5720.96,R,Belle Isle Tenant Management
http://statistics.data.gov.uk/doc/local-authority/00DA,Leeds City Council,Environment & Neighbourhoods,Strategy & Commissioning,Third Party Payments,Supporting Ppl - Block Gross Chargeable,514,07/10/2011,1110-00691,2755.24,R,Belle Isle Tenant Management
http://statistics.data.gov.uk/doc/local-authority/00DA,Leeds City Council,Environment & Neighbourhoods,Strategy & Commissioning,Third Party Payments,Supporting Ppl - Block Gross Chargeable,514,07/10/2011,1110-00692,3188.78,R,Belle Isle Tenant Management
http://statistics.data.gov.uk/doc/local-authority/00DA,East - North East,East - North East,Technical Services,Premises,General Maintenance,104,03/10/2011,1110-00693,1088.10,R,Bellway Homes Ltd (Yorkshire Division)
http://statistics.data.gov.uk/doc/local-authority/00DA,Leeds City Council,Adult Social Care,Services For Older People - 65 And Over,Third Party Payments,Residential,580,26/10/2011,1110-00694,954.68,R,Belvedere Residential Home
http://statistics.data.gov.uk/doc/local-authority/00DA,Leeds City Council,Central & Corporate Functions,Commercial Services Trading Services,Transport,Vehicle Spares,345,04/10/2011,1110-00695,490.47,R,Benfield Ford Leeds (Parts Invs)
http://statistics.data.gov.uk/doc/local-authority/00DA,Leeds City Council,Central & Corporate Functions,Commercial Services Trading Services,Transport,Vehicle Spares,345,07/10/2011,1110-00696,460.89,R,Benfield Ford Leeds (Parts Invs)
http://statistics.data.gov.uk/doc/local-authority/00DA,Leeds City Council,Adult Social Care,Other Adult Services,Third Party Payments,Residential - Drugs & Alcohol,583,26/10/2011,1110-00697,14134.82,R,Bennett House
http://statistics.data.gov.uk/doc/local-authority/00DA,Leeds City Council,Adult Social Care,Services For Older People - 65 And Over,Third Party Payments,Residential Care Emi,571,26/10/2011,1110-00698,74288.49,R,Berkley Court
http://statistics.data.gov.uk/doc/local-authority/00DA,Leeds City Council,Adult Social Care,Services For Older People - 65 And Over,Third Party Payments,Residential,580,26/10/2011,1110-00699,32212.47,R,Berkley Court
http://statistics.data.gov.uk/doc/local-authority/00DA,Leeds City Council,Insurance,Insurance,Support Services,Legal Disbursements,411,03/10/2011,1110-00700,942.00,R,Berrymans Lace Mawer
http://statistics.data.gov.uk/doc/local-authority/00DA,Leeds City Council,Childrens Services,Safeguarding Targeted & Specialist,Support Services,Legal Disbursements,411,06/10/2011,1110-00701,793.50,R,Berrymans Lace Mawer
http://statistics.data.gov.uk/doc/local-authority/00DA,Leeds City Council,City Development,Highways,Support Services,Legal Disbursements,411,06/10/2011,1110-00702,897.00,R,Berrymans Lace Mawer
http://statistics.data.gov.uk/doc/local-authority/00DA,Leeds City Council,Adult Social Care,Social Services Support Services,Support Services,Legal Disbursements,411,07/10/2011,1110-00703,862.50,R,Berrymans Lace Mawer
http://statistics.data.gov.uk/doc/local-authority/00DA,Leeds City Council,Adult Social Care,Social Services Support Services,Support Services,Legal Disbursements,411,21/10/2011,1110-00704,1184.50,R,Berrymans Lace Mawer
http://statistics.data.gov.uk/doc/local-authority/00DA,Leeds City Council,Childrens Services,Safeguarding Targeted & Specialist,Support Services,Legal Disbursements,411,21/10/2011,1110-00705,831.80,R,Berrymans Lace Mawer
http://statistics.data.gov.uk/doc/local-authority/00DA,Leeds City Council,Central & Corporate Functions,Human Resources,Support Services,Legal Disbursements,411,28/10/2011,1110-00706,7125.00,R,Berrymans Lace Mawer
http://statistics.data.gov.uk/doc/local-authority/00DA,Leeds City Council,Adult Social Care,Services For Older People - 65 And Over,Third Party Payments,Residential Care Emi,571,26/10/2011,1110-00707,1760.92,R,Bethel House
http://statistics.data.gov.uk/doc/local-authority/00DA,Leeds City Council,Childrens Services,Safeguarding Targeted & Specialist,Third Party Payments,Services Rendered By Schools,506,14/10/2011,1110-00708,12096.00,R,Bettercare Keys Ltd
http://statistics.data.gov.uk/doc/local-authority/00DA,Leeds City Council,Adult Social Care,Services For Older People - 65 And Over,Third Party Payments,Nursing Care Emi,574,26/10/2011,1110-00709,1728.00,R,Bewick Lodge
http://statistics.data.gov.uk/doc/local-authority/00DA,Leeds City Council,Environment & Neighbourhoods,Streetscene Environmental Services,Supplies and Services,Recycling & Reuse Charges,234,06/10/2011,1110-00710,1915.38,R,Biffa Waste Services Ltd
http://statistics.data.gov.uk/doc/local-authority/00DA,Leeds City Council,Environment & Neighbourhoods,Streetscene Environmental Services,Supplies and Services,Waste Disposal Charges,236,06/10/2011,1110-00711,5658.11,R,Biffa Waste Services Ltd
http://statistics.data.gov.uk/doc/local-authority/00DA,Leeds City Council,Environment & Neighbourhoods,Streetscene Environmental Services,Supplies and Services,Waste Disposal Charges,236,06/10/2011,1110-00712,43691.32,R,Biffa Waste Services Ltd
http://statistics.data.gov.uk/doc/local-authority/00DA,Leeds City Council,Environment & Neighbourhoods,Streetscene Environmental Services,Supplies and Services,Waste Disposal Charges,236,06/10/2011,1110-00713,102056.71,R,Biffa Waste Services Ltd
http://statistics.data.gov.uk/doc/local-authority/00DA,Leeds City Council,Environment & Neighbourhoods,Streetscene Environmental Services,Supplies and Services,Recycling & Reuse Charges,234,12/10/2011,1110-00714,2440.75,R,Biffa Waste Services Ltd
http://statistics.data.gov.uk/doc/local-authority/00DA,Leeds City Council,Environment & Neighbourhoods,Streetscene Environmental Services,Supplies and Services,Waste Disposal Charges,236,12/10/2011,1110-00715,12270.23,R,Biffa Waste Services Ltd
http://statistics.data.gov.uk/doc/local-authority/00DA,Leeds City Council,Environment & Neighbourhoods,Streetscene Environmental Services,Supplies and Services,Waste Disposal Charges,236,12/10/2011,1110-00716,55389.41,R,Biffa Waste Services Ltd
http://statistics.data.gov.uk/doc/local-authority/00DA,Leeds City Council,Environment & Neighbourhoods,Streetscene Environmental Services,Supplies and Services,Waste Disposal Charges,236,12/10/2011,1110-00717,98367.96,R,Biffa Waste Services Ltd
http://statistics.data.gov.uk/doc/local-authority/00DA,Leeds City Council,Environment & Neighbourhoods,Streetscene Environmental Services,Supplies and Services,Recycling & Reuse Charges,234,14/10/2011,1110-00718,1512.13,R,Biffa Waste Services Ltd
http://statistics.data.gov.uk/doc/local-authority/00DA,Leeds City Council,Environment & Neighbourhoods,Streetscene Environmental Services,Supplies and Services,Waste Disposal Charges,236,14/10/2011,1110-00719,64413.52,R,Biffa Waste Services Ltd
http://statistics.data.gov.uk/doc/local-authority/00DA,Leeds City Council,Environment & Neighbourhoods,Streetscene Environmental Services,Supplies and Services,Waste Disposal Charges,236,14/10/2011,1110-00720,92532.21,R,Biffa Waste Services Ltd
http://statistics.data.gov.uk/doc/local-authority/00DA,Leeds City Council,Environment & Neighbourhoods,Streetscene Environmental Services,Supplies and Services,Recycling & Reuse Charges,234,19/10/2011,1110-00721,1738.50,R,Biffa Waste Services Ltd
http://statistics.data.gov.uk/doc/local-authority/00DA,Leeds City Council,Environment & Neighbourhoods,Streetscene Environmental Services,Supplies and Services,Waste Disposal Charges,236,19/10/2011,1110-00722,6034.76,R,Biffa Waste Services Ltd
http://statistics.data.gov.uk/doc/local-authority/00DA,Leeds City Council,Environment & Neighbourhoods,Streetscene Environmental Services,Supplies and Services,Waste Disposal Charges,236,19/10/2011,1110-00723,57725.55,R,Biffa Waste Services Ltd
http://statistics.data.gov.uk/doc/local-authority/00DA,Leeds City Council,Environment & Neighbourhoods,Streetscene Environmental Services,Supplies and Services,Waste Disposal Charges,236,19/10/2011,1110-00724,93720.36,R,Biffa Waste Services Ltd
http://statistics.data.gov.uk/doc/local-authority/00DA,Leeds City Council,Environment & Neighbourhoods,Streetscene Environmental Services,Supplies and Services,Waste Disposal Charges,236,25/10/2011,1110-00725,5741.99,R,Biffa Waste Services Ltd
http://statistics.data.gov.uk/doc/local-authority/00DA,Leeds City Council,City Development,Libraries  Arts & Heritage,Supplies and Services,Resaleable Material,204,16/09/2011,1110-00726,1457.88,R,Big Jigs Wooden Toy
http://statistics.data.gov.uk/doc/local-authority/00DA,East - North East,East - North East,Construction Services,Supplies and Services,Other Materials,205,07/10/2011,1110-00727,1748.79,R,Bilbeck (Merchants) Ltd
http://statistics.data.gov.uk/doc/local-authority/00DA,East - North East,East - North East,Construction Services,Supplies and Services,Other Materials,205,14/10/2011,1110-00728,1862.63,R,Bilbeck (Merchants) Ltd
http://statistics.data.gov.uk/doc/local-authority/00DA,East - North East,East - North East,Construction Services,Supplies and Services,Other Materials,205,14/10/2011,1110-00729,2451.12,R,Bilbeck (Merchants) Ltd
http://statistics.data.gov.uk/doc/local-authority/00DA,East - North East,East - North East,Construction Services,Supplies and Services,Other Materials,205,27/10/2011,1110-00730,726.87,R,Bilbeck (Merchants) Ltd
http://statistics.data.gov.uk/doc/local-authority/00DA,East - North East,East - North East,Construction Services,Supplies and Services,Other Materials,205,27/10/2011,1110-00731,750.49,R,Bilbeck (Merchants) Ltd
http://statistics.data.gov.uk/doc/local-authority/00DA,East - North East,East - North East,Construction Services,Supplies and Services,Other Materials,205,27/10/2011,1110-00732,859.58,R,Bilbeck (Merchants) Ltd
http://statistics.data.gov.uk/doc/local-authority/00DA,East - North East,East - North East,Construction Services,Supplies and Services,Other Materials,205,27/10/2011,1110-00733,877.95,R,Bilbeck (Merchants) Ltd
http://statistics.data.gov.uk/doc/local-authority/00DA,East - North East,East - North East,Construction Services,Supplies and Services,Other Materials,205,27/10/2011,1110-00734,1637.34,R,Bilbeck (Merchants) Ltd
http://statistics.data.gov.uk/doc/local-authority/00DA,East - North East,East - North East,Construction Services,Supplies and Services,Other Materials,205,27/10/2011,1110-00735,2320.37,R,Bilbeck (Merchants) Ltd
http://statistics.data.gov.uk/doc/local-authority/00DA,West - North West ,West - North West,Regeneration/Customer Research,Supplies and Services,Grants To Outside Bodies,227,10/10/2011,1110-00736,460.00,R,Billing View Community Group
http://statistics.data.gov.uk/doc/local-authority/00DA,Leeds City Council,City Development,Recreation,Transport,Plant Spares,346,17/10/2011,1110-00737,542.00,R,Binson Bearings
http://statistics.data.gov.uk/doc/local-authority/00DA,Leeds City Council,Environment & Neighbourhoods,Streetscene Environmental Services,Supplies and Services,Recycling & Reuse Charges,234,03/10/2011,1110-00738,3656.14,R,Biowise Ltd
http://statistics.data.gov.uk/doc/local-authority/00DA,Leeds City Council,Environment & Neighbourhoods,Streetscene Environmental Services,Supplies and Services,Recycling & Reuse Charges,234,10/10/2011,1110-00739,8099.30,R,Biowise Ltd
http://statistics.data.gov.uk/doc/local-authority/00DA,Leeds City Council,Environment & Neighbourhoods,Streetscene Environmental Services,Supplies and Services,Recycling & Reuse Charges,234,11/10/2011,1110-00740,3754.40,R,Biowise Ltd
http://statistics.data.gov.uk/doc/local-authority/00DA,Leeds City Council,Environment & Neighbourhoods,Streetscene Environmental Services,Supplies and Services,Recycling & Reuse Charges,234,25/10/2011,1110-00741,4966.34,R,Biowise Ltd
http://statistics.data.gov.uk/doc/local-authority/00DA,Leeds City Council,Environment & Neighbourhoods,Streetscene Environmental Services,Supplies and Services,Recycling & Reuse Charges,234,25/10/2011,1110-00742,5832.72,R,Biowise Ltd
http://statistics.data.gov.uk/doc/local-authority/00DA,Leeds City Council,Central & Corporate Functions,Commercial Services Trading Services,Supplies and Services,Other Hired And Contracted Services,265,26/10/2011,1110-00743,1979.80,R,Bison Bede Limited
http://statistics.data.gov.uk/doc/local-authority/00DA,Leeds City Council,Adult Social Care,Services For Older People - 65 And Over,Third Party Payments,Nursing Home,570,31/10/2011,1110-00744,4049.08,R,Bistre Nursing Home
http://statistics.data.gov.uk/doc/local-authority/00DA,Leeds City Council,City Development,Libraries  Arts & Heritage,Supplies and Services,Resaleable Material,204,22/09/2011,1110-00745,1321.92,R,Black & Blum
http://statistics.data.gov.uk/doc/local-authority/00DA,Leeds City Council,Central & Corporate Functions,Information Technology,Supplies and Services,Computer Software & Equipment,214,25/10/2011,1110-00746,7670.00,R,Blackburn It Services Ltd
http://statistics.data.gov.uk/doc/local-authority/00DA,Leeds City Council,Central & Corporate Functions,Support And Facilities Trading Services,Supplies and Services,Operational Materials,205,21/10/2011,1110-00747,3765.75,R,Blackburns Metals Limited
http://statistics.data.gov.uk/doc/local-authority/00DA,Leeds City Council,Environment & Neighbourhoods,Belle Isle,Capital,Construction,3,05/10/2011,1110-00748,15604.24,C,Blackie Ltd
http://statistics.data.gov.uk/doc/local-authority/00DA,Leeds City Council,Environment & Neighbourhoods,Belle Isle,Capital,Construction,3,11/10/2011,1110-00749,1243.44,C,Blackie Ltd
http://statistics.data.gov.uk/doc/local-authority/00DA,Leeds City Council,Environment & Neighbourhoods,Belle Isle,Capital,Construction,3,11/10/2011,1110-00750,2740.00,C,Blackie Ltd
http://statistics.data.gov.uk/doc/local-authority/00DA,Leeds City Council,Environment & Neighbourhoods,Belle Isle,Capital,Construction,3,18/10/2011,1110-00751,2560.00,C,Blackie Ltd
http://statistics.data.gov.uk/doc/local-authority/00DA,Leeds City Council,Environment & Neighbourhoods,Belle Isle,Capital,Construction,3,19/10/2011,1110-00752,19351.82,C,Blackie Ltd
http://statistics.data.gov.uk/doc/local-authority/00DA,Leeds City Council,Environment & Neighbourhoods,Belle Isle,Capital,Construction,3,26/10/2011,1110-00753,7793.22,C,Blackie Ltd
http://statistics.data.gov.uk/doc/local-authority/00DA,Leeds City Council,Childrens Services,Learning Skills & Universal,Supplies and Services,Admissions Entry fees,283,28/09/2011,1110-00754,677.50,R,Blackpool Pleasure
http://statistics.data.gov.uk/doc/local-authority/00DA,Leeds City Council,Environment & Neighbourhoods,Environmental Health,Capital,Construction,3,11/10/2011,1110-00755,35037.85,C,Bluesky International Limited
http://statistics.data.gov.uk/doc/local-authority/00DA,Leeds City Council,Central & Corporate Functions,Information Technology,Supplies and Services,Computer Software & Equipment,214,28/10/2011,1110-00756,1764.00,R,Bluesky International Limited
http://statistics.data.gov.uk/doc/local-authority/00DA,Leeds City Council,City Development,Recreation,Supplies and Services,Operational Furniture And Equipment,203,28/10/2011,1110-00757,742.10,R,Boc Limited
http://statistics.data.gov.uk/doc/local-authority/00DA,Leeds City Council,City Development,Recreation,Supplies and Services,Operational Materials,205,12/10/2011,1110-00758,560.00,R,Bocm Pauls Ltd
http://statistics.data.gov.uk/doc/local-authority/00DA,Leeds City Council,Central & Corporate Functions,Commercial Services Trading Services,Supplies and Services,Operational Materials,205,07/10/2011,1110-00759,447.04,R,Boiler & Heating Supplies Ltd
http://statistics.data.gov.uk/doc/local-authority/00DA,Leeds City Council,Central & Corporate Functions,Commercial Services Trading Services,Supplies and Services,Operational Materials,205,07/10/2011,1110-00760,703.69,R,Boiler & Heating Supplies Ltd
http://statistics.data.gov.uk/doc/local-authority/00DA,Leeds City Council,Central & Corporate Functions,Commercial Services Trading Services,Supplies and Services,Operational Materials,205,14/10/2011,1110-00761,530.00,R,Boiler & Heating Supplies Ltd
http://statistics.data.gov.uk/doc/local-authority/00DA,Leeds City Council,Central & Corporate Functions,Commercial Services Trading Services,Supplies and Services,Operational Materials,205,14/10/2011,1110-00762,550.00,R,Boiler & Heating Supplies Ltd
http://statistics.data.gov.uk/doc/local-authority/00DA,Leeds City Council,Central & Corporate Functions,Commercial Services Trading Services,Supplies and Services,Operational Materials,205,14/10/2011,1110-00763,579.40,R,Boiler & Heating Supplies Ltd
http://statistics.data.gov.uk/doc/local-authority/00DA,Leeds City Council,Central & Corporate Functions,Commercial Services Trading Services,Supplies and Services,Operational Materials,205,14/10/2011,1110-00764,980.00,R,Boiler & Heating Supplies Ltd
http://statistics.data.gov.uk/doc/local-authority/00DA,Leeds City Council,Central & Corporate Functions,Commercial Services Trading Services,Supplies and Services,Operational Materials,205,28/10/2011,1110-00765,683.60,R,Boiler & Heating Supplies Ltd
http://statistics.data.gov.uk/doc/local-authority/00DA,Leeds City Council,Central & Corporate Functions,Commercial Services Trading Services,Supplies and Services,Operational Materials,205,28/10/2011,1110-00766,945.00,R,Boiler & Heating Supplies Ltd
http://statistics.data.gov.uk/doc/local-authority/00DA,Leeds City Council,City Development,Libraries  Arts & Heritage,Supplies and Services,Books & Audio-Visual Materials,206,14/10/2011,1110-00767,1001.84,R,Books Asia
http://statistics.data.gov.uk/doc/local-authority/00DA,Leeds City Council,Adult Social Care,Services For Older People - 65 And Over,Third Party Payments,Residential Care Emi,571,26/10/2011,1110-00768,1503.04,R,Boroughbridge Lodge
http://statistics.data.gov.uk/doc/local-authority/00DA,Leeds City Council,City Development,Economic Development,Supplies and Services,Publication And Promotion,267,06/10/2011,1110-00769,463.00,R,Bowery Visual Arts Ltd
http://statistics.data.gov.uk/doc/local-authority/00DA,Leeds City Council,Environment & Neighbourhoods,Strategy & Commissioning,Third Party Payments,Supporting Ppl - Block Gross Chargeable,514,07/10/2011,1110-00770,1100.80,R,Bradford And Northern Housing
http://statistics.data.gov.uk/doc/local-authority/00DA,Leeds City Council,Childrens Services,Learning Skills & Universal,Supplies and Services,Other Hired And Contracted Services,265,19/10/2011,1110-00771,500.00,R,Bradford College
http://statistics.data.gov.uk/doc/local-authority/00DA,Leeds City Council as Accountable Body,Social Services Pooled Budgets,Jcs For People With Learning Disabilitie,Third Party Payments,Home Care,568,06/10/2011,1110-00772,26984.00,R,Bradford District Care Trust
http://statistics.data.gov.uk/doc/local-authority/00DA,Leeds City Council,Adult Social Care,Services For Older People - 65 And Over,Third Party Payments,Nursing Home,570,26/10/2011,1110-00773,6804.49,R,Bradford Independent (St Ives) Ltd
http://statistics.data.gov.uk/doc/local-authority/00DA,Leeds City Council,Adult Social Care,Services For Older People Under 65 P/Dis,Third Party Payments,Nursing Home,570,26/10/2011,1110-00774,6819.49,R,Bradford Independent (St Ives) Ltd
http://statistics.data.gov.uk/doc/local-authority/00DA,Leeds City Council,Adult Social Care,Services For Adults Under 65 Mental/Dis,Third Party Payments,Residential,580,26/10/2011,1110-00775,1601.76,R,Bradford Independent (St Ives) Ltd
http://statistics.data.gov.uk/doc/local-authority/00DA,Leeds City Council,Adult Social Care,Services For Older People Under 65 P/Dis,Third Party Payments,Residential,580,26/10/2011,1110-00776,5633.21,R,Bradford Independent (St Ives) Ltd
http://statistics.data.gov.uk/doc/local-authority/00DA,Leeds City Council,Adult Social Care,Services For Adults Under 65 Mental/Dis,Third Party Payments,Nursing Home,570,26/10/2011,1110-00777,3430.32,R,Bradford Independent Health Care
http://statistics.data.gov.uk/doc/local-authority/00DA,Leeds City Council,Adult Social Care,Services For Older People - 65 And Over,Third Party Payments,Nursing Home,570,26/10/2011,1110-00778,2863.55,R,Bradford Independent Health Care
http://statistics.data.gov.uk/doc/local-authority/00DA,Leeds City Council,Adult Social Care,Services For Older People - 65 And Over,Third Party Payments,Residential Care Emi,571,26/10/2011,1110-00779,1779.80,R,Bradford Independent Health Care
http://statistics.data.gov.uk/doc/local-authority/00DA,Leeds City Council,Adult Social Care,Services For Older People - 65 And Over,Third Party Payments,Nursing Care Emi,574,26/10/2011,1110-00780,4995.76,R,Bradford Independent Health Care
http://statistics.data.gov.uk/doc/local-authority/00DA,Leeds City Council,Adult Social Care,Services For Adults Under 65 Mental/Dis,Third Party Payments,Residential,580,26/10/2011,1110-00781,1275.64,R,Bradford Independent Health Care
http://statistics.data.gov.uk/doc/local-authority/00DA,Leeds City Council,Adult Social Care,Services For Adults Under 65 Mental/Dis,Third Party Payments,Nursing Home,570,26/10/2011,1110-00782,18936.40,R,Bradford Independent Health Care
http://statistics.data.gov.uk/doc/local-authority/00DA,Leeds City Council,Adult Social Care,Services For Older People - 65 And Over,Third Party Payments,Nursing Home,570,26/10/2011,1110-00783,14802.68,R,Bradford Independent Health Care
http://statistics.data.gov.uk/doc/local-authority/00DA,Leeds City Council as Accountable Body,Social Services Pooled Budgets,Jcs For People With Learning Disabilitie,Third Party Payments,Nursing Home,570,26/10/2011,1110-00784,1808.20,R,Bradford Independent Health Care
http://statistics.data.gov.uk/doc/local-authority/00DA,Leeds City Council,Adult Social Care,Services For Older People - 65 And Over,Third Party Payments,Residential Care Emi,571,26/10/2011,1110-00785,1727.88,R,Bradford Independent Health Care
http://statistics.data.gov.uk/doc/local-authority/00DA,Leeds City Council,Adult Social Care,Services For Older People - 65 And Over,Third Party Payments,Nursing Care Emi,574,26/10/2011,1110-00786,3238.80,R,Bradford Independent Health Care
http://statistics.data.gov.uk/doc/local-authority/00DA,Leeds City Council,Adult Social Care,Services For Older People - 65 And Over,Third Party Payments,Residential,580,26/10/2011,1110-00787,1080.60,R,Bradford Independent Health Care
http://statistics.data.gov.uk/doc/local-authority/00DA,Leeds City Council,Adult Social Care,Services For Adults Under 65 Mental/Dis,Third Party Payments,Nursing Home,570,26/10/2011,1110-00788,1420.08,R,Bradford Independent Health Care Owlett
http://statistics.data.gov.uk/doc/local-authority/00DA,Leeds City Council,Adult Social Care,Services For Older People - 65 And Over,Third Party Payments,Nursing Home,570,26/10/2011,1110-00789,37069.27,R,Bradford Independent Health Care Owlett
http://statistics.data.gov.uk/doc/local-authority/00DA,Leeds City Council,Adult Social Care,Services For Older People - 65 And Over,Third Party Payments,Residential,580,26/10/2011,1110-00790,1001.80,R,Bradford Independent Health Care Owlett
http://statistics.data.gov.uk/doc/local-authority/00DA,Leeds City Council,Childrens Services,Safeguarding Targeted & Specialist,Third Party Payments,Rent,552,06/10/2011,1110-00791,471.25,R,Bradford Metropolitan District Council
http://statistics.data.gov.uk/doc/local-authority/00DA,Aire Valley Homes Leeds,Aire Valley Homes Leeds,E. Offices,Premises,H.R.A. - Special Maintenance,106,05/10/2011,1110-00792,1220.80,R,Bradley Environmental Consultants
http://statistics.data.gov.uk/doc/local-authority/00DA,Aire Valley Homes Leeds,Aire Valley Homes Leeds,S. Offices,Premises,H.R.A. - Special Maintenance,106,05/10/2011,1110-00793,4518.05,R,Bradley Environmental Consultants
http://statistics.data.gov.uk/doc/local-authority/00DA,West - North West ,West - North West,Property And Maintenance,Premises,H.R.A. - Special Maintenance,106,05/10/2011,1110-00794,11460.75,R,Bradley Environmental Consultants
http://statistics.data.gov.uk/doc/local-authority/00DA,Leeds City Council,Environment & Neighbourhoods,South South East,Capital,Construction,3,06/10/2011,1110-00795,474.15,C,Bradley Environmental Consultants
http://statistics.data.gov.uk/doc/local-authority/00DA,Leeds City Council,Environment & Neighbourhoods,South South East,Capital,Construction,3,06/10/2011,1110-00796,474.15,C,Bradley Environmental Consultants
http://statistics.data.gov.uk/doc/local-authority/00DA,Leeds City Council,Environment & Neighbourhoods,South South East,Capital,Construction,3,06/10/2011,1110-00797,474.15,C,Bradley Environmental Consultants
http://statistics.data.gov.uk/doc/local-authority/00DA,West - North West ,West - North West,Property And Maintenance,Premises,H.R.A. - Special Maintenance,106,12/10/2011,1110-00798,939.30,R,Bradley Environmental Consultants
http://statistics.data.gov.uk/doc/local-authority/00DA,Aire Valley Homes Leeds,Aire Valley Homes Leeds,E. Offices,Premises,H.R.A. - Special Maintenance,106,19/10/2011,1110-00799,610.40,R,Bradley Environmental Consultants
http://statistics.data.gov.uk/doc/local-authority/00DA,Aire Valley Homes Leeds,Aire Valley Homes Leeds,S. Offices,Premises,H.R.A. - Special Maintenance,106,19/10/2011,1110-00800,9079.70,R,Bradley Environmental Consultants
http://statistics.data.gov.uk/doc/local-authority/00DA,West - North West ,West - North West,Property And Maintenance,Premises,H.R.A. - Special Maintenance,106,19/10/2011,1110-00801,14099.15,R,Bradley Environmental Consultants
http://statistics.data.gov.uk/doc/local-authority/00DA,Leeds City Council,Environment & Neighbourhoods,South South East,Capital,Construction,3,19/10/2011,1110-00802,1716.75,C,Bradley Environmental Consultants
http://statistics.data.gov.uk/doc/local-authority/00DA,West - North West ,West - North West,Property And Maintenance,Premises,H.R.A. - Special Maintenance,106,26/10/2011,1110-00803,8739.40,R,Bradley Environmental Consultants
http://statistics.data.gov.uk/doc/local-authority/00DA,Leeds City Council,Adult Social Care,Services For Older People - 65 And Over,Third Party Payments,Sheltered Accommodation,569,26/10/2011,1110-00804,4930.56,R,Brain Injury Rehabilitation Trust
http://statistics.data.gov.uk/doc/local-authority/00DA,Leeds City Council,Adult Social Care,Services For Older People Under 65 P/Dis,Third Party Payments,Sheltered Accommodation,569,26/10/2011,1110-00805,14977.17,R,Brain Injury Rehabilitation Trust
http://statistics.data.gov.uk/doc/local-authority/00DA,Leeds City Council,Adult Social Care,Services For Adults Under 65 Mental/Dis,Third Party Payments,Nursing Home,570,26/10/2011,1110-00806,3782.20,R,Brain Injury Rehabilitation Trust
http://statistics.data.gov.uk/doc/local-authority/00DA,Leeds City Council,Adult Social Care,Services For Older People Under 65 P/Dis,Third Party Payments,Residential,580,26/10/2011,1110-00807,8001.42,R,Brain Injury Rehabilitation Trust
http://statistics.data.gov.uk/doc/local-authority/00DA,Leeds City Council,Adult Social Care,Services For Older People Under 65 P/Dis,Third Party Payments,Sheltered Accommodation,569,26/10/2011,1110-00808,9730.21,R,Brain Injury Rehabilitation Trust
http://statistics.data.gov.uk/doc/local-authority/00DA,Leeds City Council,Adult Social Care,Services For Older People Under 65 P/Dis,Third Party Payments,Home Care,568,07/10/2011,1110-00809,654.68,R,Brain Injury Rehabillitation Trust
http://statistics.data.gov.uk/doc/local-authority/00DA,Leeds City Council,Adult Social Care,Services For Older People Under 65 P/Dis,Third Party Payments,Home Care,568,07/10/2011,1110-00810,655.84,R,Brain Injury Rehabillitation Trust
http://statistics.data.gov.uk/doc/local-authority/00DA,Leeds City Council as Accountable Body,Social Services Pooled Budgets,Jcs For People With Learning Disabilitie,Third Party Payments,Home Care,568,21/10/2011,1110-00811,1524.30,R,Brain Injury Rehabillitation Trust
http://statistics.data.gov.uk/doc/local-authority/00DA,Leeds City Council,Childrens Services,Learning Skills & Universal,Supplies and Services,Other Hired And Contracted Services,265,21/10/2011,1110-00812,478.08,R,Brainpop Uk Limited
http://statistics.data.gov.uk/doc/local-authority/00DA,Leeds City Council,Central & Corporate Functions,Commercial Services Trading Services,Supplies and Services,Food & Drink,231,12/10/2011,1110-00813,443.12,R,Brake Bros Ltd
http://statistics.data.gov.uk/doc/local-authority/00DA,Leeds City Council,City Development,Highways,Capital,Construction,3,06/10/2011,1110-00814,9262.22,C,Brambledown Landscape Services Ltd
http://statistics.data.gov.uk/doc/local-authority/00DA,Leeds City Council,Adult Social Care,Services For Older People - 65 And Over,Employees,Training Costs,071,28/10/2011,1110-00815,600.00,R,Bramley Elderly Action
http://statistics.data.gov.uk/doc/local-authority/00DA,Leeds City Council,Childrens Services,Safeguarding Targeted & Specialist,Third Party Payments,Contact,548,12/10/2011,1110-00816,423.96,R,Bramley Family Support Project
http://statistics.data.gov.uk/doc/local-authority/00DA,Leeds City Council,Childrens Services,Safeguarding Targeted & Specialist,Third Party Payments,Contact,548,12/10/2011,1110-00817,494.60,R,Bramley Family Support Project
http://statistics.data.gov.uk/doc/local-authority/00DA,Leeds City Council,Childrens Services,Safeguarding Targeted & Specialist,Third Party Payments,Contact,548,19/10/2011,1110-00818,529.90,R,Bramley Family Support Project
http://statistics.data.gov.uk/doc/local-authority/00DA,Leeds City Council,Childrens Services,Safeguarding Targeted & Specialist,Third Party Payments,Contact,548,19/10/2011,1110-00819,602.80,R,Bramley Family Support Project
http://statistics.data.gov.uk/doc/local-authority/00DA,Leeds City Council,Adult Social Care,Services For Older People - 65 And Over,Third Party Payments,Nursing Home,570,26/10/2011,1110-00820,36094.25,R,Brandon House
http://statistics.data.gov.uk/doc/local-authority/00DA,Leeds City Council,Adult Social Care,Services For Older People - 65 And Over,Third Party Payments,Nursing Care Emi,574,26/10/2011,1110-00821,1178.52,R,Brandon House
http://statistics.data.gov.uk/doc/local-authority/00DA,Leeds City Council,Adult Social Care,Services For Older People - 65 And Over,Third Party Payments,Residential,580,26/10/2011,1110-00822,1126.60,R,Brandon House
http://statistics.data.gov.uk/doc/local-authority/00DA,Leeds City Council,Childrens Services,Learning Skills & Universal,Supplies and Services,Other Hired And Contracted Services,265,13/10/2011,1110-00823,1000.00,R,Breakers Unify
http://statistics.data.gov.uk/doc/local-authority/00DA,Leeds City Council,Insurance,Insurance,Supplies and Services,Insurance Claims,248,27/10/2011,1110-00824,7500.00,R,Brearleys Solicitors
http://statistics.data.gov.uk/doc/local-authority/00DA,Leeds City Council,Childrens Services,Safeguarding Targeted & Specialist,Third Party Payments,Services Rendered By Schools,506,05/10/2011,1110-00825,20597.00,R,Breckenbrough School Ltd
http://statistics.data.gov.uk/doc/local-authority/00DA,Leeds City Council,Central & Corporate Functions,Commercial Services Trading Services,Transport,Fuel (Non LCC Supplies),321,12/10/2011,1110-00826,475.00,R,Brenntag Uk Limited
http://statistics.data.gov.uk/doc/local-authority/00DA,Leeds City Council,Central & Corporate Functions,Commercial Services Trading Services,Transport,Fuel (Non LCC Supplies),321,14/10/2011,1110-00827,475.00,R,Brenntag Uk Limited
http://statistics.data.gov.uk/doc/local-authority/00DA,Leeds City Council,Central & Corporate Functions,Commercial Services Trading Services,Transport,Fuel (Non LCC Supplies),321,19/10/2011,1110-00828,475.00,R,Brenntag Uk Limited
http://statistics.data.gov.uk/doc/local-authority/00DA,Leeds City Council,Central & Corporate Functions,Commercial Services Trading Services,Transport,Fuel (Non LCC Supplies),321,28/10/2011,1110-00829,475.00,R,Brenntag Uk Limited
http://statistics.data.gov.uk/doc/local-authority/00DA,Leeds City Council,Central & Corporate Functions,Commercial Services Trading Services,Transport,External Hire -Occasional,304,28/10/2011,1110-00830,661.74,R,Briggs Equipment Uk Ltd
http://statistics.data.gov.uk/doc/local-authority/00DA,Leeds City Council,Childrens Services,Learning Skills & Universal,Third Party Payments,Services Rendered By Other Organisations,511,07/10/2011,1110-00831,1347.00,R,Bright Beginnings Childcare Centre
http://statistics.data.gov.uk/doc/local-authority/00DA,Leeds City Council,Childrens Services,Learning Skills & Universal,Third Party Payments,Services Rendered By Other Organisations,511,07/10/2011,1110-00832,545.00,R,Bright Horizons Family Solutions
http://statistics.data.gov.uk/doc/local-authority/00DA,Leeds City Council,Childrens Services,Safeguarding Targeted & Specialist,Third Party Payments,Fostering - Placement Support,550,26/10/2011,1110-00833,496.00,R,Bright Skies Day Nursery
http://statistics.data.gov.uk/doc/local-authority/00DA,Leeds City Council,Childrens Services,Learning Skills & Universal,Third Party Payments,Services Rendered By Other Organisations,511,07/10/2011,1110-00834,1160.00,R,Bright Sparks Pre-School
http://statistics.data.gov.uk/doc/local-authority/00DA,Leeds City Council,Adult Social Care,Services For Adults Under 65 Mental/Dis,Third Party Payments,Residential,580,26/10/2011,1110-00835,1900.00,R,Britannia Nursing Home
http://statistics.data.gov.uk/doc/local-authority/00DA,Leeds City Council,Childrens Services,Safeguarding Targeted & Specialist,Third Party Payments,Panel Expenses,543,26/10/2011,1110-00836,2478.00,R,British Agencies For Adoption &
http://statistics.data.gov.uk/doc/local-authority/00DA,Leeds City Council,Childrens Services,Safeguarding Targeted & Specialist,Third Party Payments,Payments To Voluntary Organisations,561,31/10/2011,1110-00837,2418.00,R,British Agencies For Adoption &
http://statistics.data.gov.uk/doc/local-authority/00DA,Leeds City Council,Central & Corporate Functions,Support And Facilities General Fund,Premises,Gas,123,11/10/2011,1110-00838,2047.96,R,British Gas Business
http://statistics.data.gov.uk/doc/local-authority/00DA,Leeds City Council,City Development,Asset Management Services,Premises,Electricity,124,21/10/2011,1110-00839,3069.25,R,British Gas Business
http://statistics.data.gov.uk/doc/local-authority/00DA,Leeds City Council,Environment & Neighbourhoods,Belle Isle,Capital,Construction,3,07/10/2011,1110-00840,2680.00,C,British Gas Services Ltd
http://statistics.data.gov.uk/doc/local-authority/00DA,Leeds City Council,Environment & Neighbourhoods,Belle Isle,Capital,Construction,3,07/10/2011,1110-00841,6948.33,C,British Gas Services Ltd
http://statistics.data.gov.uk/doc/local-authority/00DA,Leeds City Council,Environment & Neighbourhoods,East North East,Capital,Construction,3,07/10/2011,1110-00842,18035.00,C,British Gas Services Ltd
http://statistics.data.gov.uk/doc/local-authority/00DA,Leeds City Council,Environment & Neighbourhoods,West North West,Capital,Construction,3,07/10/2011,1110-00843,3090.98,C,British Gas Services Ltd
http://statistics.data.gov.uk/doc/local-authority/00DA,Leeds City Council,Environment & Neighbourhoods,West North West,Capital,Construction,3,07/10/2011,1110-00844,12194.32,C,British Gas Services Ltd
http://statistics.data.gov.uk/doc/local-authority/00DA,Leeds City Council,Environment & Neighbourhoods,East North East,Capital,Construction,3,11/10/2011,1110-00845,11864.00,C,British Gas Services Ltd
http://statistics.data.gov.uk/doc/local-authority/00DA,Leeds City Council,Environment & Neighbourhoods,West North West,Capital,Construction,3,11/10/2011,1110-00846,3374.07,C,British Gas Services Ltd
http://statistics.data.gov.uk/doc/local-authority/00DA,Leeds City Council,Environment & Neighbourhoods,West North West,Capital,Construction,3,11/10/2011,1110-00847,15593.29,C,British Gas Services Ltd
http://statistics.data.gov.uk/doc/local-authority/00DA,Leeds City Council,Environment & Neighbourhoods,Belle Isle,Capital,Construction,3,24/10/2011,1110-00848,3693.00,C,British Gas Services Ltd
http://statistics.data.gov.uk/doc/local-authority/00DA,Leeds City Council,Environment & Neighbourhoods,East North East,Capital,Construction,3,24/10/2011,1110-00849,26471.00,C,British Gas Services Ltd
http://statistics.data.gov.uk/doc/local-authority/00DA,Leeds City Council,Environment & Neighbourhoods,South South East,Capital,Construction,3,24/10/2011,1110-00850,6050.00,C,British Gas Services Ltd
http://statistics.data.gov.uk/doc/local-authority/00DA,Leeds City Council,Environment & Neighbourhoods,West North West,Capital,Construction,3,24/10/2011,1110-00851,7524.04,C,British Gas Services Ltd
http://statistics.data.gov.uk/doc/local-authority/00DA,Leeds City Council,Environment & Neighbourhoods,West North West,Capital,Construction,3,25/10/2011,1110-00852,27878.93,C,British Gas Services Ltd
http://statistics.data.gov.uk/doc/local-authority/00DA,Leeds City Council,Central & Corporate Functions,Executive Support,Supplies and Services,Durban Procurement/ CLGGPS,269,29/09/2011,1110-00853,877.53,R,British Midlands
http://statistics.data.gov.uk/doc/local-authority/00DA,Leeds City Council,Environment & Neighbourhoods,Environmental Health,Supplies and Services,Advertising,211,14/10/2011,1110-00854,500.00,R,British Pest Control Association
http://statistics.data.gov.uk/doc/local-authority/00DA,Leeds City Council,City Development,Highways,Capital,Other Costs,7,03/10/2011,1110-00855,1577.26,C,British Telecom
http://statistics.data.gov.uk/doc/local-authority/00DA,Leeds City Council,Adult Social Care,Other Generic Services,Supplies and Services,Telephones,213,07/10/2011,1110-00856,718.24,R,British Telecom
http://statistics.data.gov.uk/doc/local-authority/00DA,Leeds City Council,Environment & Neighbourhoods,Community Safety,Supplies and Services,Telephones,213,14/10/2011,1110-00857,2792.03,R,British Telecom Bt/Bacs
http://statistics.data.gov.uk/doc/local-authority/00DA,Aire Valley Homes Leeds,Aire Valley Homes Leeds,Aire Valley Homes Leeds,Supplies and Services,Telephones,213,26/10/2011,1110-00858,4023.06,R,British Telecom Bt/Bacs
http://statistics.data.gov.uk/doc/local-authority/00DA,Leeds City Council,Central & Corporate Functions,Information Technology,Supplies and Services,Computer Software & Equipment,214,27/10/2011,1110-00859,94547.86,R,British Telecom Bt/Bacs
http://statistics.data.gov.uk/doc/local-authority/00DA,West - North West ,West - North West,Corporate Services,Supplies and Services,Telephones,213,28/10/2011,1110-00860,732.41,R,British Telecom Bt/Bacs
http://statistics.data.gov.uk/doc/local-authority/00DA,Leeds City Council,Central & Corporate Functions,Commercial Services Trading Services,Supplies and Services,Other Hired And Contracted Services,265,14/10/2011,1110-00861,455.00,R,British Telecommunications Plc
http://statistics.data.gov.uk/doc/local-authority/00DA,Leeds City Council,Central & Corporate Functions,Commercial Services Trading Services,Supplies and Services,Other Hired And Contracted Services,265,14/10/2011,1110-00862,1570.00,R,British Telecommunications Plc
http://statistics.data.gov.uk/doc/local-authority/00DA,Leeds City Council,City Development,Libraries  Arts & Heritage,Supplies and Services,Other Hired And Contracted Services,265,06/10/2011,1110-00863,20500.00,R,Brm Productions
http://statistics.data.gov.uk/doc/local-authority/00DA,Leeds City Council,Adult Social Care,Services For Older People - 65 And Over,Third Party Payments,Residential,580,26/10/2011,1110-00864,1053.12,R,Broadway Lodge
http://statistics.data.gov.uk/doc/local-authority/00DA,Leeds City Council,Central & Corporate Functions,Commercial Services Trading Services,Supplies and Services,Operational Materials,205,07/10/2011,1110-00865,4886.00,R,Broag Ltd
http://statistics.data.gov.uk/doc/local-authority/00DA,Leeds City Council,Adult Social Care,Services For Older People - 65 And Over,Third Party Payments,Nursing Home,570,26/10/2011,1110-00866,1273.60,R,Brooklands Residential Home
http://statistics.data.gov.uk/doc/local-authority/00DA,Leeds City Council,Adult Social Care,Services For Older People - 65 And Over,Third Party Payments,Residential Care Emi,571,26/10/2011,1110-00867,3646.60,R,Brooklands Residential Home
http://statistics.data.gov.uk/doc/local-authority/00DA,Leeds City Council,Adult Social Care,Services For Older People - 65 And Over,Third Party Payments,Residential,580,26/10/2011,1110-00868,13194.57,R,Brooklands Residential Home
http://statistics.data.gov.uk/doc/local-authority/00DA,Leeds City Council as Accountable Body,Social Services Pooled Budgets,Jcs For People With Learning Disabilitie,Third Party Payments,Residential,580,14/10/2011,1110-00869,2029.60,R,Brookvale
http://statistics.data.gov.uk/doc/local-authority/00DA,Leeds City Council as Accountable Body,Social Services Pooled Budgets,Jcs For People With Learning Disabilitie,Third Party Payments,Residential,580,26/10/2011,1110-00870,2029.60,R,Brookvale (For The Mentally
http://statistics.data.gov.uk/doc/local-authority/00DA,Leeds City Council,Childrens Services,Safeguarding Targeted & Specialist,Transport,Private Hire,360,07/10/2011,1110-00871,1152.00,R,Broomhill Cars Ltd
http://statistics.data.gov.uk/doc/local-authority/00DA,Leeds City Council,Childrens Services,Safeguarding Targeted & Specialist,Transport,Private Hire,360,28/10/2011,1110-00872,1872.00,R,Broomhill Cars Ltd
http://statistics.data.gov.uk/doc/local-authority/00DA,Leeds City Council as Accountable Body,Social Services Pooled Budgets,Jcs For People With Learning Disabilitie,Third Party Payments,Residential,580,26/10/2011,1110-00873,1850.72,R,Brothers Of Charity
http://statistics.data.gov.uk/doc/local-authority/00DA,Leeds City Council,Childrens Services,Learning Skills & Universal,Third Party Payments,Services Rendered By Voluntary Sector,505,07/10/2011,1110-00874,787.00,R,Brownberrie Lane Pre-School
http://statistics.data.gov.uk/doc/local-authority/00DA,Leeds City Council,Childrens Services,Safeguarding Targeted & Specialist,Third Party Payments,Other External Residential Placements,508,05/10/2011,1110-00875,18000.00,R,Browning House
http://statistics.data.gov.uk/doc/local-authority/00DA,Leeds City Council,Childrens Services,Safeguarding Targeted & Specialist,Third Party Payments,Other External Residential Placements,508,21/10/2011,1110-00876,1835.00,R,Browning House
http://statistics.data.gov.uk/doc/local-authority/00DA,Leeds City Council,Childrens Services,Safeguarding Targeted & Specialist,Third Party Payments,Other External Residential Placements,508,21/10/2011,1110-00877,5000.00,R,Browning House
http://statistics.data.gov.uk/doc/local-authority/00DA,Leeds City Council,Childrens Services,Safeguarding Targeted & Specialist,Third Party Payments,Other External Residential Placements,508,21/10/2011,1110-00878,7200.00,R,Browning House
http://statistics.data.gov.uk/doc/local-authority/00DA,Leeds City Council,Childrens Services,Safeguarding Targeted & Specialist,Third Party Payments,Other External Residential Placements,508,21/10/2011,1110-00879,7200.00,R,Browning House
http://statistics.data.gov.uk/doc/local-authority/00DA,Leeds City Council,Childrens Services,Safeguarding Targeted & Specialist,Third Party Payments,Other External Residential Placements,508,21/10/2011,1110-00880,8800.00,R,Browning House
http://statistics.data.gov.uk/doc/local-authority/00DA,Leeds City Council,Childrens Services,Safeguarding Targeted & Specialist,Third Party Payments,Other External Residential Placements,508,21/10/2011,1110-00881,18000.00,R,Browning House
http://statistics.data.gov.uk/doc/local-authority/00DA,Leeds City Council,Childrens Services,Safeguarding Targeted & Specialist,Third Party Payments,Other External Residential Placements,508,25/10/2011,1110-00882,13200.00,R,Browning House
http://statistics.data.gov.uk/doc/local-authority/00DA,Leeds City Council,Childrens Services,Safeguarding Targeted & Specialist,Third Party Payments,Other External Residential Placements,508,25/10/2011,1110-00883,18000.00,R,Browning House
http://statistics.data.gov.uk/doc/local-authority/00DA,Leeds City Council,Childrens Services,Safeguarding Targeted & Specialist,Third Party Payments,Other External Residential Placements,508,25/10/2011,1110-00884,22018.00,R,Browning House
http://statistics.data.gov.uk/doc/local-authority/00DA,Leeds City Council,Environment & Neighbourhoods,Streetscene Environmental Services,Supplies and Services,Operational Furniture And Equipment,203,11/10/2011,1110-00885,712.00,R,Broxap Ltd
http://statistics.data.gov.uk/doc/local-authority/00DA,Leeds City Council,City Development,Recreation,Supplies and Services,Operational Materials,205,21/10/2011,1110-00886,583.00,R,Broxap Ltd
http://statistics.data.gov.uk/doc/local-authority/00DA,Leeds City Council,City Development,Recreation,Supplies and Services,Operational Materials,205,28/10/2011,1110-00887,583.00,R,Broxap Ltd
http://statistics.data.gov.uk/doc/local-authority/00DA,Leeds City Council,City Development,Recreation,Supplies and Services,Operational Materials,205,28/10/2011,1110-00888,583.00,R,Broxap Ltd
http://statistics.data.gov.uk/doc/local-authority/00DA,Leeds City Council,City Development,Asset Management Services,Premises,Electricity,124,26/10/2011,1110-00889,497.57,R,Bruntwood 2000 Alpha Portfolio Ltd
http://statistics.data.gov.uk/doc/local-authority/00DA,Leeds City Council,City Development,Asset Management Services,Premises,Electricity,124,27/10/2011,1110-00890,1709.69,R,Bruntwood 2000 Alpha Portfolio Ltd
http://statistics.data.gov.uk/doc/local-authority/00DA,Leeds City Council,City Development,Asset Management Services,Premises,Electricity,124,27/10/2011,1110-00891,1983.77,R,Bruntwood 2000 Alpha Portfolio Ltd
